{"text_format":"1","workbook":"xlsx","n_sheets":11,"sheets":["ANASAYFA","Yak. Mal. Tek. Formu","Yak. Mal. Hes. Cet.","Onay Belgesi","Teklif Mektubu","Piy. Fi. Ar. Tut","Mua. Kab. Tut.","MYS Yk. Maliyet","AÇIKLAMALAR","KAYNAK","YAK.MAL KYN"],"not_rendered":{"charts":0,"images":1,"macros":1,"external_links":0,"defined_names":0,"comments":0,"pivot_tables":0},"unopened":[],"bounds":{"document_bytes":16777216,"sheet_cells":100000,"rows_first":2000,"rows_last":500,"rows_between":2000,"halvings":0,"cell_chars":16384,"cell_head_chars":4096},"cells_cut":0,"cells_raw":0,"read":"whole","date_system":"1900"}

{"sheet":"ANASAYFA","index":0,"n_rows":24,"n_cols":16,"rows_kept":24,"cut":false,"hidden":false,"merged":[[12,2,12,3],[13,2,13,3],[2,9,2,10],[2,11,2,12],[2,13,2,14],[1,4,3,4],[1,5,3,5],[1,6,3,6],[1,7,3,7],[1,0,1,3],[3,1,3,3],[4,2,4,3],[5,2,5,3],[6,0,6,3],[10,0,10,3],[9,2,9,3],[11,2,11,3],[7,2,7,3],[8,2,8,3],[0,0,0,15],[2,2,2,3],[1,15,3,15],[1,9,1,10],[1,11,1,12],[1,13,1,14]]}
["DOĞRUDAN TEMİN (22-D) TAŞINIR MAL ALIMI UYGULAMASI (MYS V2)"]
["DOĞRUDAN TEMİN KURUM BİLGİLERİ",null,null,null,"SIRA","Malzemenin Adı","Niteliği","Miktarı","FİRMA VKN→",null,null,null,null,null,null,"KDV ORANI"]
["Kurumun Adı - İlçesi","Köyceğiz Anaokulu","KÖYCEĞİZ",null,null,null,null,null,"FİRMA ADI →"]
["Harcama Birimi Kur. Kodu (KBS)",null,null,null,null,null,null,null,"Birimi","Birim Fiyat","Toplam Fiyat","Birim Fiyat","Toplam Fiyat","Birim Fiyat","Toplam Fiyat"]
["Harcama Yetk. Adı - Görevi",null,"Okul Müdürü",null,1,"Ürün Adı","Paketli, 20 gr, A Kalite",1,"Adet",null,{"$f":"H5*J5","v":0},null,{"$f":"H5*L5","v":0},null,{"$f":"H5*N5","v":0},0.2]
["Gerç. Görv. Adı - Görevi",null,"Müdür Yardımcısı",null,{"$f":"IF(F6<>\"\",MAX(E5+1),\"\")","v":""},null,null,null,null,null,{"$f":"H6*J6","v":0},null,{"$f":"H6*L6","v":0},null,{"$f":"H6*N6","v":0}]
["DOĞRUDAN TEMİN GÖREVLİLERİ",null,null,null,{"$f":"IF(F7<>\"\",MAX($E$5:E6)+1,\"\")","v":""},null,null,null,null,null,{"$f":"H7*J7","v":0},null,0,null,0]
["1. Görevli","2. Görevli","3. Görevli",null,{"$f":"IF(F8<>\"\",MAX($E$5:E7)+1,\"\")","v":""},null,"ı",null,null,null,0,null,0,null,0]
[null,null,null,null,{"$f":"IF(F9<>\"\",MAX($E$5:E8)+1,\"\")","v":""},null,null,null,null,null,0,null,0,null,0]
["Öğretmen","Öğretmen","Öğretmen",null,{"$f":"IF(F10<>\"\",MAX($E$5:E9)+1,\"\")","v":""},null,null,null,null,null,0,null,0,null,0]
["MUAYENE VE KABUL GÖREVLİLERİ",null,null,null,{"$f":"IF(F11<>\"\",MAX($E$5:E10)+1,\"\")","v":""},null,null,null,null,null,0,null,0,null,0]
["1. Görevli","2. Görevli","3. Görevli",null,{"$f":"IF(F12<>\"\",MAX($E$5:E11)+1,\"\")","v":""},null,null,null,null,null,0,null,0,null,0]
[null,null,null,null,{"$f":"IF(F13<>\"\",MAX($E$5:E12)+1,\"\")","v":""},null,null,null,null,null,0,null,0,null,0]
["Öğretmen","Öğretmen","Öğretmen",null,{"$f":"IF(F14<>\"\",MAX($E$5:E13)+1,\"\")","v":""},null,null,null,null,null,0,null,0,null,0]
["1. Bütçe Tertibi  (MYS Ödenek Kodu)","40.149.915.23385.13.68.01.03.02","7. Yaklaşık Maliyet Teklif Tarihi","2023-06-17",{"$f":"IF(F15<>\"\",MAX($E$5:E14)+1,\"\")","v":""},null,null,null,null,null,0,null,0,null,0]
["2. Kullanılabilir Ödenek Miktarı",null,"8. Yaklaşık Maliyet Tutanak Tarihi","2023-06-17",{"$f":"IF(F16<>\"\",MAX($E$5:E15)+1,\"\")","v":""},null,null,null,null,null,0,null,0,null,0]
["3. İşin Tanımı","10 Kalem Gıda Malzemesi Alımı","9. Piyasa Araştırması Teklif Tarihi","2023-06-19",{"$f":"IF(F17<>\"\",MAX($E$5:E16)+1,\"\")","v":""},null,null,null,null,null,0,null,0,null,0]
["4. İşin Niteliği (MYS Faaliyet Kodu)","3.2.4 Yiyecek, İçecek ve Yem Alımları","10. Piyasa Araştırması Tutanak Tarihi","2023-06-19",{"$f":"IF(F18<>\"\",MAX($E$5:E17)+1,\"\")","v":""},null,null,null,null,null,0,null,0,null,0]
["5. Görevlendirme Yazısı Tarihi","17.06.2023","11. Muayene ve Kabul Tutanak Tarihi","2023-06-20",{"$f":"IF(F19<>\"\",MAX($E$5:E18)+1,\"\")","v":""},null,null,null,null,null,0,null,0,null,0]
["6. Görevlendirme Yazısı Sayısı",78531478,"12. Alım Yapılan Firma Adresi",null,{"$f":"IF(F20<>\"\",MAX($E$5:E19)+1,\"\")","v":""},null,null,null,null,null,0,null,0,null,{"$f":"H20*N20","v":0}]
[]
[]
[]
[null,null,null,null,null,null,null,null,null,null,null,null,null," "]

{"sheet":"Yak. Mal. Tek. Formu","index":1,"n_rows":36,"n_cols":6,"rows_kept":36,"cut":false,"hidden":false,"merged":[[8,2,8,3],[8,4,8,5],[0,0,0,5],[1,0,1,5],[3,0,3,5],[4,4,4,5],[7,0,7,5],[30,0,30,4],[33,4,33,5],[34,4,34,5],[35,4,35,5],[9,2,9,3],[9,4,9,5],[10,0,10,1],[10,2,10,3],[10,4,10,5],[11,0,11,5]]}
["FİYAT ARAŞTIRMASI"]
["(Yaklaşık Maliyete Esas Olmak Üzere)"]
[]
[{"$f":"CONCATENATE(KAYNAK!D2,KAYNAK!D3)","v":"   Köyceğiz Anaokulu İhale yetkilisince aşağıda cins ve miktarı yazılı malzeme alımı için fiyat araştırması yapmak üzere görevlendirilmiş bulunmaktayız.4734 Sayılı Kamu İhale Kanununun 9. Maddesi gereğince aşağıda cins ve nevi belirtilen mal ve emtianın KDV hariç olmak üzere fiyatlarının bildirilmesi rica olunur"}]
[null,null," ",null,{"$f":"IFERROR(ANASAYFA!D15,ANASAYFA!D15)","v":"2023-06-17"}]
[" "," ",null," "," "]
[" ",null,null,null," "]
["FİYAT ARAŞTIRMASI GÖREVLİLERİ"]
["Adı Soyadı",{"$f":"IF(ISBLANK(ANASAYFA!A9),\" \",ANASAYFA!A9)","v":" "},{"$f":"IF(ISBLANK(ANASAYFA!B9),\" \",ANASAYFA!B9)","v":" "},null,{"$f":"IF(ISBLANK(ANASAYFA!C9),\" \",ANASAYFA!C9)","v":" "}]
["Ünvanı",{"$f":"IF(ISBLANK(ANASAYFA!A10),\" \",ANASAYFA!A10)","v":"Öğretmen"},{"$f":"IF(ISBLANK(ANASAYFA!B10),\" \",ANASAYFA!B10)","v":"Öğretmen"},null,{"$f":"IF(ISBLANK(ANASAYFA!C10),\" \",ANASAYFA!C10)","v":"Öğretmen"}]
["İmzası",null," "]
["SATIN ALINACAK MALZEMENİN"]
["SIRA NO","CİNS VE ESVAFI","MİKTARI","BİRİMİ","BİRİM FİYAT (KDV HARİÇ","TOPLAM TUTARI  (KDV HARİÇ)"]
[{"$f":"IF(ISBLANK(ANASAYFA!E5),\" \",ANASAYFA!E5)","v":1},{"$f":"IF(ISBLANK(ANASAYFA!$F5),\"\",CONCATENATE(ANASAYFA!$F5,\" \",ANASAYFA!G5))","v":"Ürün Adı Paketli, 20 gr, A Kalite"},{"$f":"IF(ISBLANK(ANASAYFA!H5),\" \",ANASAYFA!H5)","v":1},{"$f":"IF(ISBLANK(ANASAYFA!I5),\" \",ANASAYFA!I5)","v":"Adet"}]
[{"$f":"IF(ISBLANK(ANASAYFA!E6),\" \",ANASAYFA!E6)","v":""},{"$f":"IF(ISBLANK(ANASAYFA!$F6),\"\",CONCATENATE(ANASAYFA!$F6,\" \",ANASAYFA!G6))","v":""},{"$f":"IF(ISBLANK(ANASAYFA!H6),\" \",ANASAYFA!H6)","v":" "},{"$f":"IF(ISBLANK(ANASAYFA!I6),\" \",ANASAYFA!I6)","v":" "}]
[{"$f":"IF(ISBLANK(ANASAYFA!E7),\" \",ANASAYFA!E7)","v":""},{"$f":"IF(ISBLANK(ANASAYFA!$F7),\"\",CONCATENATE(ANASAYFA!$F7,\" \",ANASAYFA!G7))","v":""},{"$f":"IF(ISBLANK(ANASAYFA!H7),\" \",ANASAYFA!H7)","v":" "},{"$f":"IF(ISBLANK(ANASAYFA!I7),\" \",ANASAYFA!I7)","v":" "}]
[{"$f":"IF(ISBLANK(ANASAYFA!E8),\" \",ANASAYFA!E8)","v":""},{"$f":"IF(ISBLANK(ANASAYFA!$F8),\"\",CONCATENATE(ANASAYFA!$F8,\" \",ANASAYFA!G8))","v":""},{"$f":"IF(ISBLANK(ANASAYFA!H8),\" \",ANASAYFA!H8)","v":" "},{"$f":"IF(ISBLANK(ANASAYFA!I8),\" \",ANASAYFA!I8)","v":" "}]
[{"$f":"IF(ISBLANK(ANASAYFA!E9),\" \",ANASAYFA!E9)","v":""},{"$f":"IF(ISBLANK(ANASAYFA!$F9),\"\",CONCATENATE(ANASAYFA!$F9,\" \",ANASAYFA!G9))","v":""},{"$f":"IF(ISBLANK(ANASAYFA!H9),\" \",ANASAYFA!H9)","v":" "},{"$f":"IF(ISBLANK(ANASAYFA!I9),\" \",ANASAYFA!I9)","v":" "}]
[{"$f":"IF(ISBLANK(ANASAYFA!E10),\" \",ANASAYFA!E10)","v":""},{"$f":"IF(ISBLANK(ANASAYFA!$F10),\"\",CONCATENATE(ANASAYFA!$F10,\" \",ANASAYFA!G10))","v":""},{"$f":"IF(ISBLANK(ANASAYFA!H10),\" \",ANASAYFA!H10)","v":" "},{"$f":"IF(ISBLANK(ANASAYFA!I10),\" \",ANASAYFA!I10)","v":" "}]
[{"$f":"IF(ISBLANK(ANASAYFA!E11),\" \",ANASAYFA!E11)","v":""},{"$f":"IF(ISBLANK(ANASAYFA!$F11),\"\",CONCATENATE(ANASAYFA!$F11,\" \",ANASAYFA!G11))","v":""},{"$f":"IF(ISBLANK(ANASAYFA!H11),\" \",ANASAYFA!H11)","v":" "},{"$f":"IF(ISBLANK(ANASAYFA!I11),\"\",ANASAYFA!I11)","v":""}]
[{"$f":"IF(ISBLANK(ANASAYFA!E12),\" \",ANASAYFA!E12)","v":""},{"$f":"IF(ISBLANK(ANASAYFA!$F12),\"\",CONCATENATE(ANASAYFA!$F12,\" \",ANASAYFA!G12))","v":""},{"$f":"IF(ISBLANK(ANASAYFA!H12),\" \",ANASAYFA!H12)","v":" "},{"$f":"IF(ISBLANK(ANASAYFA!I12),\"\",ANASAYFA!I12)","v":""}]
[{"$f":"IF(ISBLANK(ANASAYFA!E13),\" \",ANASAYFA!E13)","v":""},{"$f":"IF(ISBLANK(ANASAYFA!$F13),\"\",CONCATENATE(ANASAYFA!$F13,\" \",ANASAYFA!G13))","v":""},{"$f":"IF(ISBLANK(ANASAYFA!H13),\" \",ANASAYFA!H13)","v":" "},{"$f":"IF(ISBLANK(ANASAYFA!I13),\" \",ANASAYFA!I13)","v":" "}]
[{"$f":"IF(ISBLANK(ANASAYFA!E14),\" \",ANASAYFA!E14)","v":""},{"$f":"IF(ISBLANK(ANASAYFA!$F14),\"\",CONCATENATE(ANASAYFA!$F14,\" \",ANASAYFA!G14))","v":""},{"$f":"IF(ISBLANK(ANASAYFA!H14),\" \",ANASAYFA!H14)","v":" "},{"$f":"IF(ISBLANK(ANASAYFA!I14),\" \",ANASAYFA!I14)","v":" "}]
[{"$f":"IF(ISBLANK(ANASAYFA!E15),\" \",ANASAYFA!E15)","v":""},{"$f":"IF(ISBLANK(ANASAYFA!$F15),\"\",CONCATENATE(ANASAYFA!$F15,\" \",ANASAYFA!G15))","v":""},{"$f":"IF(ISBLANK(ANASAYFA!H15),\" \",ANASAYFA!H15)","v":" "},{"$f":"IF(ISBLANK(ANASAYFA!I15),\" \",ANASAYFA!I15)","v":" "}]
[{"$f":"IF(ISBLANK(ANASAYFA!E16),\" \",ANASAYFA!E16)","v":""},{"$f":"IF(ISBLANK(ANASAYFA!$F16),\"\",CONCATENATE(ANASAYFA!$F16,\" \",ANASAYFA!G16))","v":""},{"$f":"IF(ISBLANK(ANASAYFA!H16),\" \",ANASAYFA!H16)","v":" "},{"$f":"IF(ISBLANK(ANASAYFA!I16),\" \",ANASAYFA!I16)","v":" "}]
[{"$f":"IF(ISBLANK(ANASAYFA!E17),\" \",ANASAYFA!E17)","v":""},{"$f":"IF(ISBLANK(ANASAYFA!$F17),\"\",CONCATENATE(ANASAYFA!$F17,\" \",ANASAYFA!G17))","v":""},{"$f":"IF(ISBLANK(ANASAYFA!H17),\" \",ANASAYFA!H17)","v":" "},{"$f":"IF(ISBLANK(ANASAYFA!I17),\" \",ANASAYFA!I17)","v":" "}]
[{"$f":"IF(ISBLANK(ANASAYFA!E18),\" \",ANASAYFA!E18)","v":""},{"$f":"IF(ISBLANK(ANASAYFA!$F18),\"\",CONCATENATE(ANASAYFA!$F18,\" \",ANASAYFA!G18))","v":""},{"$f":"IF(ISBLANK(ANASAYFA!H18),\" \",ANASAYFA!H18)","v":" "},{"$f":"IF(ISBLANK(ANASAYFA!I18),\" \",ANASAYFA!I18)","v":" "}]
[{"$f":"IF(ISBLANK(ANASAYFA!E19),\" \",ANASAYFA!E19)","v":""},{"$f":"IF(ISBLANK(ANASAYFA!$F19),\"\",CONCATENATE(ANASAYFA!$F19,\" \",ANASAYFA!G19))","v":""},{"$f":"IF(ISBLANK(ANASAYFA!H19),\" \",ANASAYFA!H19)","v":" "},{"$f":"IF(ISBLANK(ANASAYFA!I19),\" \",ANASAYFA!I19)","v":" "}]
[{"$f":"IF(ISBLANK(ANASAYFA!E20),\" \",ANASAYFA!E20)","v":""},{"$f":"IF(ISBLANK(ANASAYFA!$F20),\"\",CONCATENATE(ANASAYFA!$F20,\" \",ANASAYFA!G20))","v":""},{"$f":"IF(ISBLANK(ANASAYFA!H20),\" \",ANASAYFA!H20)","v":" "},{"$f":"IF(ISBLANK(ANASAYFA!I20),\" \",ANASAYFA!I20)","v":" "}]
[{"$f":"IF(ISBLANK(ANASAYFA!E21),\" \",ANASAYFA!E21)","v":" "},{"$f":"IF(ISBLANK(ANASAYFA!$F21),\"\",CONCATENATE(ANASAYFA!$F21,\" \",ANASAYFA!G21))","v":""},{"$f":"IF(ISBLANK(ANASAYFA!H21),\" \",ANASAYFA!H21)","v":" "},{"$f":"IF(ISBLANK(ANASAYFA!I21),\" \",ANASAYFA!I21)","v":" "}]
["TOPLAM KDV HARİÇ TUTAR"]
[]
[" "," "]
[null,null,null," ","TARİH"]
[null,null,null,null,"KİŞİ/FİRMA YETKİLİSİ"]
[null,null,null,null,"KAŞE ve İMZA"]

{"sheet":"Yak. Mal. Hes. Cet.","index":2,"n_rows":30,"n_cols":13,"rows_kept":30,"cut":false,"hidden":false,"merged":[[5,12,6,12],[0,0,0,10],[0,11,4,12],[1,0,1,2],[1,3,1,10],[2,0,2,2],[2,3,2,10],[3,0,3,2],[3,3,3,10],[4,0,5,4],[4,5,4,10],[5,5,5,6],[5,7,5,8],[5,9,5,10],[5,11,6,11],[28,4,28,6],[29,4,29,6],[29,1,29,2],[24,0,24,4],[25,0,25,12],[28,1,28,2],[28,8,28,10],[29,8,29,10],[26,1,26,10]]}
["YAKLAŞIK MALİYET HESAP CETVELİ",null,null,null,null,null,null,null,null,null,null,"İdarece Tespit ve Takdir Edilen Yaklaşık Maliyet (KDV HARİÇ)"]
["İdarenin Adı",null,null,{"$f":"'Onay Belgesi'!E2","v":"Köyceğiz Anaokulu"}]
["Yapılan Alımın Adı, Niteliği",null,null,{"$f":"IF(ISBLANK(ANASAYFA!B17),\" \",ANASAYFA!B17)","v":"10 Kalem Gıda Malzemesi Alımı"}]
["Düzenleme Tarihi",null,null,{"$f":"IF(ISBLANK(ANASAYFA!D16),\" \",ANASAYFA!D16)","v":"2023-06-17"}]
[" ",null,null,null,null,"Kişiler / Kurumlar / Firmalar ve Yaklaşık Maliyet için Bildirilen Fiyatlar (KDV HARİÇ)"]
[null,null,null,null,null,{"$f":"IF(ISBLANK(ANASAYFA!J3),\" \",ANASAYFA!J3)","v":" "},null,{"$f":"IF(ISBLANK(ANASAYFA!L3),\" \",ANASAYFA!L3)","v":" "},null,{"$f":"IF(ISBLANK(ANASAYFA!N3),\" \",ANASAYFA!N3)","v":" "},null,"Birim Yaklaşık Maliyet Fiyatı","Toplam Yaklaşık Maliyet Fiyatı"]
["SIRA","Cinsi","Özelliği","Miktarı","Ölçüsü","Birim Fiyat","Toplam Fiyat","Birim Fiyat","Toplam Fiyat","Birim Fiyat","Toplam Fiyat"]
[{"$f":"IF(ISBLANK(ANASAYFA!E5),\" \",ANASAYFA!E5)","v":1},{"$f":"IF(ISBLANK(ANASAYFA!F5),\"\",ANASAYFA!F5)","v":"Ürün Adı"},{"$f":"IF(ISBLANK(ANASAYFA!G5),\" \",ANASAYFA!G5)","v":"Paketli, 20 gr, A Kalite"},{"$f":"IF(ISBLANK(ANASAYFA!H5),\" \",ANASAYFA!H5)","v":1},{"$f":"IF(ISBLANK(ANASAYFA!I5),\" \",ANASAYFA!I5)","v":"Adet"},{"$f":"IF(ISBLANK(ANASAYFA!J5),\" \",ANASAYFA!J5)","v":" "},{"$f":"IFERROR(F8*D8,\" \")","v":" "},{"$f":"IF(ISBLANK(ANASAYFA!L5),\" \",ANASAYFA!L5)","v":" "},{"$f":"IFERROR(H8*D8,\" \")","v":" "},{"$f":"IF(ISBLANK(ANASAYFA!N5),\" \",ANASAYFA!N5)","v":" "},{"$f":"IFERROR(D8*J8,\" \")","v":" "},{"$f":"IFERROR((F8+H8+J8)/3,\" \")","v":" "},{"$f":"IFERROR((G8+I8+K8)/3,\" \")","v":" "}]
[{"$f":"IF(ISBLANK(ANASAYFA!E6),\" \",ANASAYFA!E6)","v":""},{"$f":"IF(ISBLANK(ANASAYFA!$F6),\"\",ANASAYFA!F6)","v":""},{"$f":"IF(ISBLANK(ANASAYFA!G6),\" \",ANASAYFA!G6)","v":" "},{"$f":"IF(ISBLANK(ANASAYFA!H6),\" \",ANASAYFA!H6)","v":" "},{"$f":"IF(ISBLANK(ANASAYFA!I6),\" \",ANASAYFA!I6)","v":" "},{"$f":"IF(ISBLANK(ANASAYFA!J6),\" \",ANASAYFA!J6)","v":" "},{"$f":"IFERROR(F9*D9,\" \")","v":" "},{"$f":"IF(ISBLANK(ANASAYFA!L6),\" \",ANASAYFA!L6)","v":" "},{"$f":"IFERROR(H9*D9,\" \")","v":" "},{"$f":"IF(ISBLANK(ANASAYFA!N6),\" \",ANASAYFA!N6)","v":" "},{"$f":"IFERROR(D9*J9,\" \")","v":" "},{"$f":"IFERROR((F9+H9+J9)/3,\" \")","v":" "},{"$f":"IFERROR((G9+I9+K9)/3,\" \")","v":" "}]
[{"$f":"IF(ISBLANK(ANASAYFA!E7),\" \",ANASAYFA!E7)","v":""},{"$f":"IF(ISBLANK(ANASAYFA!$F7),\"\",ANASAYFA!F7)","v":""},{"$f":"IF(ISBLANK(ANASAYFA!G7),\" \",ANASAYFA!G7)","v":" "},{"$f":"IF(ISBLANK(ANASAYFA!H7),\" \",ANASAYFA!H7)","v":" "},{"$f":"IF(ISBLANK(ANASAYFA!I7),\" \",ANASAYFA!I7)","v":" "},{"$f":"IF(ISBLANK(ANASAYFA!J7),\" \",ANASAYFA!J7)","v":" "}," ",{"$f":"IF(ISBLANK(ANASAYFA!L7),\" \",ANASAYFA!L7)","v":" "}," ",{"$f":"IF(ISBLANK(ANASAYFA!N7),\" \",ANASAYFA!N7)","v":" "}," "," "," "]
[{"$f":"IF(ISBLANK(ANASAYFA!E8),\" \",ANASAYFA!E8)","v":""},{"$f":"IF(ISBLANK(ANASAYFA!$F8),\"\",ANASAYFA!F8)","v":""},{"$f":"IF(ISBLANK(ANASAYFA!G8),\" \",ANASAYFA!G8)","v":"ı"},{"$f":"IF(ISBLANK(ANASAYFA!H8),\" \",ANASAYFA!H8)","v":" "},{"$f":"IF(ISBLANK(ANASAYFA!I8),\" \",ANASAYFA!I8)","v":" "},{"$f":"IF(ISBLANK(ANASAYFA!J8),\" \",ANASAYFA!J8)","v":" "}," ",{"$f":"IF(ISBLANK(ANASAYFA!L8),\" \",ANASAYFA!L8)","v":" "}," ",{"$f":"IF(ISBLANK(ANASAYFA!N8),\" \",ANASAYFA!N8)","v":" "}," "," "," "]
[{"$f":"IF(ISBLANK(ANASAYFA!E9),\" \",ANASAYFA!E9)","v":""},{"$f":"IF(ISBLANK(ANASAYFA!$F9),\"\",ANASAYFA!F9)","v":""},{"$f":"IF(ISBLANK(ANASAYFA!G9),\" \",ANASAYFA!G9)","v":" "},{"$f":"IF(ISBLANK(ANASAYFA!H9),\" \",ANASAYFA!H9)","v":" "},{"$f":"IF(ISBLANK(ANASAYFA!I9),\" \",ANASAYFA!I9)","v":" "},{"$f":"IF(ISBLANK(ANASAYFA!J9),\" \",ANASAYFA!J9)","v":" "}," ",{"$f":"IF(ISBLANK(ANASAYFA!L9),\" \",ANASAYFA!L9)","v":" "}," ",{"$f":"IF(ISBLANK(ANASAYFA!N9),\" \",ANASAYFA!N9)","v":" "}," "," "," "]
[{"$f":"IF(ISBLANK(ANASAYFA!E10),\" \",ANASAYFA!E10)","v":""},{"$f":"IF(ISBLANK(ANASAYFA!$F10),\"\",ANASAYFA!F10)","v":""},{"$f":"IF(ISBLANK(ANASAYFA!G10),\" \",ANASAYFA!G10)","v":" "},{"$f":"IF(ISBLANK(ANASAYFA!H10),\" \",ANASAYFA!H10)","v":" "},{"$f":"IF(ISBLANK(ANASAYFA!I10),\" \",ANASAYFA!I10)","v":" "},{"$f":"IF(ISBLANK(ANASAYFA!J10),\" \",ANASAYFA!J10)","v":" "}," ",{"$f":"IF(ISBLANK(ANASAYFA!L10),\" \",ANASAYFA!L10)","v":" "}," ",{"$f":"IF(ISBLANK(ANASAYFA!N10),\" \",ANASAYFA!N10)","v":" "}," "," "," "]
[{"$f":"IF(ISBLANK(ANASAYFA!E11),\" \",ANASAYFA!E11)","v":""},{"$f":"IF(ISBLANK(ANASAYFA!$F11),\"\",ANASAYFA!F11)","v":""},{"$f":"IF(ISBLANK(ANASAYFA!G11),\" \",ANASAYFA!G11)","v":" "},{"$f":"IF(ISBLANK(ANASAYFA!H11),\" \",ANASAYFA!H11)","v":" "},{"$f":"IF(ISBLANK(ANASAYFA!I11),\" \",ANASAYFA!I11)","v":" "},{"$f":"IF(ISBLANK(ANASAYFA!J11),\" \",ANASAYFA!J11)","v":" "}," ",{"$f":"IF(ISBLANK(ANASAYFA!L11),\" \",ANASAYFA!L11)","v":" "}," ",{"$f":"IF(ISBLANK(ANASAYFA!N11),\" \",ANASAYFA!N11)","v":" "}," "," "," "]
[{"$f":"IF(ISBLANK(ANASAYFA!E12),\" \",ANASAYFA!E12)","v":""},{"$f":"IF(ISBLANK(ANASAYFA!$F12),\"\",ANASAYFA!F12)","v":""},{"$f":"IF(ISBLANK(ANASAYFA!G12),\" \",ANASAYFA!G12)","v":" "},{"$f":"IF(ISBLANK(ANASAYFA!H12),\" \",ANASAYFA!H12)","v":" "},{"$f":"IF(ISBLANK(ANASAYFA!I12),\" \",ANASAYFA!I12)","v":" "},{"$f":"IF(ISBLANK(ANASAYFA!J12),\" \",ANASAYFA!J12)","v":" "}," ",{"$f":"IF(ISBLANK(ANASAYFA!L12),\" \",ANASAYFA!L12)","v":" "}," ",{"$f":"IF(ISBLANK(ANASAYFA!N12),\" \",ANASAYFA!N12)","v":" "}," "," "," "]
[{"$f":"IF(ISBLANK(ANASAYFA!E13),\" \",ANASAYFA!E13)","v":""},{"$f":"IF(ISBLANK(ANASAYFA!$F13),\"\",ANASAYFA!F13)","v":""},{"$f":"IF(ISBLANK(ANASAYFA!G13),\" \",ANASAYFA!G13)","v":" "},{"$f":"IF(ISBLANK(ANASAYFA!H13),\" \",ANASAYFA!H13)","v":" "},{"$f":"IF(ISBLANK(ANASAYFA!I13),\" \",ANASAYFA!I13)","v":" "},{"$f":"IF(ISBLANK(ANASAYFA!J13),\" \",ANASAYFA!J13)","v":" "}," ",{"$f":"IF(ISBLANK(ANASAYFA!L13),\" \",ANASAYFA!L13)","v":" "}," ",{"$f":"IF(ISBLANK(ANASAYFA!N13),\" \",ANASAYFA!N13)","v":" "}," "," "," "]
[{"$f":"IF(ISBLANK(ANASAYFA!E14),\" \",ANASAYFA!E14)","v":""},{"$f":"IF(ISBLANK(ANASAYFA!$F14),\"\",ANASAYFA!F14)","v":""},{"$f":"IF(ISBLANK(ANASAYFA!G14),\" \",ANASAYFA!G14)","v":" "},{"$f":"IF(ISBLANK(ANASAYFA!H14),\" \",ANASAYFA!H14)","v":" "},{"$f":"IF(ISBLANK(ANASAYFA!I14),\" \",ANASAYFA!I14)","v":" "},{"$f":"IF(ISBLANK(ANASAYFA!J14),\" \",ANASAYFA!J14)","v":" "}," ",{"$f":"IF(ISBLANK(ANASAYFA!L14),\" \",ANASAYFA!L14)","v":" "}," ",{"$f":"IF(ISBLANK(ANASAYFA!N14),\" \",ANASAYFA!N14)","v":" "}," "," "," "]
[{"$f":"IF(ISBLANK(ANASAYFA!E15),\" \",ANASAYFA!E15)","v":""},{"$f":"IF(ISBLANK(ANASAYFA!$F15),\"\",ANASAYFA!F15)","v":""},{"$f":"IF(ISBLANK(ANASAYFA!G15),\" \",ANASAYFA!G15)","v":" "},{"$f":"IF(ISBLANK(ANASAYFA!H15),\" \",ANASAYFA!H15)","v":" "},{"$f":"IF(ISBLANK(ANASAYFA!I15),\" \",ANASAYFA!I15)","v":" "},{"$f":"IF(ISBLANK(ANASAYFA!J15),\" \",ANASAYFA!J15)","v":" "}," ",{"$f":"IF(ISBLANK(ANASAYFA!L15),\" \",ANASAYFA!L15)","v":" "}," ",{"$f":"IF(ISBLANK(ANASAYFA!N15),\" \",ANASAYFA!N15)","v":" "}," "," "," "]
[{"$f":"IF(ISBLANK(ANASAYFA!E16),\" \",ANASAYFA!E16)","v":""},{"$f":"IF(ISBLANK(ANASAYFA!$F16),\"\",ANASAYFA!F16)","v":""},{"$f":"IF(ISBLANK(ANASAYFA!G16),\" \",ANASAYFA!G16)","v":" "},{"$f":"IF(ISBLANK(ANASAYFA!H16),\" \",ANASAYFA!H16)","v":" "},{"$f":"IF(ISBLANK(ANASAYFA!I16),\" \",ANASAYFA!I16)","v":" "},{"$f":"IF(ISBLANK(ANASAYFA!J16),\" \",ANASAYFA!J16)","v":" "}," ",{"$f":"IF(ISBLANK(ANASAYFA!L16),\" \",ANASAYFA!L16)","v":" "}," ",{"$f":"IF(ISBLANK(ANASAYFA!N16),\" \",ANASAYFA!N16)","v":" "}," "," "," "]
[{"$f":"IF(ISBLANK(ANASAYFA!E17),\" \",ANASAYFA!E17)","v":""},{"$f":"IF(ISBLANK(ANASAYFA!$F17),\"\",ANASAYFA!F17)","v":""},{"$f":"IF(ISBLANK(ANASAYFA!G17),\" \",ANASAYFA!G17)","v":" "},{"$f":"IF(ISBLANK(ANASAYFA!H17),\" \",ANASAYFA!H17)","v":" "},{"$f":"IF(ISBLANK(ANASAYFA!I17),\" \",ANASAYFA!I17)","v":" "},{"$f":"IF(ISBLANK(ANASAYFA!J17),\" \",ANASAYFA!J17)","v":" "}," ",{"$f":"IF(ISBLANK(ANASAYFA!L17),\" \",ANASAYFA!L17)","v":" "}," ",{"$f":"IF(ISBLANK(ANASAYFA!N17),\" \",ANASAYFA!N17)","v":" "}," "," "," "]
[{"$f":"IF(ISBLANK(ANASAYFA!E18),\" \",ANASAYFA!E18)","v":""},{"$f":"IF(ISBLANK(ANASAYFA!$F18),\"\",ANASAYFA!F18)","v":""},{"$f":"IF(ISBLANK(ANASAYFA!G18),\" \",ANASAYFA!G18)","v":" "},{"$f":"IF(ISBLANK(ANASAYFA!H18),\" \",ANASAYFA!H18)","v":" "},{"$f":"IF(ISBLANK(ANASAYFA!I18),\" \",ANASAYFA!I18)","v":" "},{"$f":"IF(ISBLANK(ANASAYFA!J18),\" \",ANASAYFA!J18)","v":" "}," ",{"$f":"IF(ISBLANK(ANASAYFA!L18),\" \",ANASAYFA!L18)","v":" "}," ",{"$f":"IF(ISBLANK(ANASAYFA!N18),\" \",ANASAYFA!N18)","v":" "}," "," "," "]
[{"$f":"IF(ISBLANK(ANASAYFA!E19),\" \",ANASAYFA!E19)","v":""},{"$f":"IF(ISBLANK(ANASAYFA!$F19),\"\",ANASAYFA!F19)","v":""},{"$f":"IF(ISBLANK(ANASAYFA!G19),\" \",ANASAYFA!G19)","v":" "},{"$f":"IF(ISBLANK(ANASAYFA!H19),\" \",ANASAYFA!H19)","v":" "},{"$f":"IF(ISBLANK(ANASAYFA!I19),\" \",ANASAYFA!I19)","v":" "},{"$f":"IF(ISBLANK(ANASAYFA!J19),\" \",ANASAYFA!J19)","v":" "}," ",{"$f":"IF(ISBLANK(ANASAYFA!L19),\" \",ANASAYFA!L19)","v":" "}," ",{"$f":"IF(ISBLANK(ANASAYFA!N19),\" \",ANASAYFA!N19)","v":" "}," "," "," "]
[{"$f":"IF(ISBLANK(ANASAYFA!E20),\" \",ANASAYFA!E20)","v":""},{"$f":"IF(ISBLANK(ANASAYFA!$F20),\"\",ANASAYFA!F20)","v":""},{"$f":"IF(ISBLANK(ANASAYFA!G20),\" \",ANASAYFA!G20)","v":" "},{"$f":"IF(ISBLANK(ANASAYFA!H20),\" \",ANASAYFA!H20)","v":" "},{"$f":"IF(ISBLANK(ANASAYFA!I20),\" \",ANASAYFA!I20)","v":" "},{"$f":"IF(ISBLANK(ANASAYFA!J20),\" \",ANASAYFA!J20)","v":" "}," ",{"$f":"IF(ISBLANK(ANASAYFA!L20),\" \",ANASAYFA!L20)","v":" "}," ",{"$f":"IF(ISBLANK(ANASAYFA!N20),\" \",ANASAYFA!N20)","v":" "}," "," "," "]
[{"$f":"IF(ISBLANK(ANASAYFA!E21),\" \",ANASAYFA!E21)","v":" "},{"$f":"IF(ISBLANK(ANASAYFA!$F21),\"\",ANASAYFA!F21)","v":""},{"$f":"IF(ISBLANK(ANASAYFA!G21),\" \",ANASAYFA!G21)","v":" "},{"$f":"IF(ISBLANK(ANASAYFA!H21),\" \",ANASAYFA!H21)","v":" "},{"$f":"IF(ISBLANK(ANASAYFA!I21),\" \",ANASAYFA!I21)","v":" "},{"$f":"IF(ISBLANK(ANASAYFA!J21),\" \",ANASAYFA!J21)","v":" "}," ",{"$f":"IF(ISBLANK(ANASAYFA!L21),\" \",ANASAYFA!L21)","v":" "}," ",{"$f":"IF(ISBLANK(ANASAYFA!N21),\" \",ANASAYFA!N21)","v":" "}," "," "," "]
["Kişiler / Firmalarca Bildirilen Yaklaşık Maliyet Fiyatı Toplamı (KDV HARİÇ)",null,null,null,null,"TOPLAM",{"$f":"SUM(G8:G24)","v":0},"TOPLAM",{"$f":"SUM(I8:I24)","v":0},"TOPLAM",{"$f":"SUM(K8:K24)","v":0},"TOPLAM",{"$f":"SUM(M8:M24)","v":0}]
["          İdaremizce ihtiyaç duyulan ve satın alınması düşünülen yukarıda cinsi, özellikleri ve miktarları yazılı malların 4734 Sayılı Kamu İhale Kanununun 9. maddesi gereğince Yaklaşık Maliyetinin tesbitine esas olmak üzere ilgili Kişi, Kurum ve Firmalardan her türlü fiyat araştırması yapılmıştır. araştırma sonuçları yukarıdaki tabloda gösterilmiştir.\n          Yukarıda açıklandığı üzere doğrudan temin yoluyla alımı yapılması düşünülen Malların fiyat araştırması neticesinde 4734 Sayılı Kamu İhale Kanununun 9. maddesi gereğinice Yaklaşık Maliyetinin KDV HARİÇ yukarıda belirtildiği gibi takdir ve tespit edilerek iş bu hesap cetveli tarafımızca imza altına alınmıştır."]
[" ","YAKLAŞIK MALİYET TESPİTİ YAPAN GÖREVLİLER"]
[]
[" ",{"$f":"IF(ISBLANK(ANASAYFA!A9),\" \",ANASAYFA!A9)","v":" "},null,null,{"$f":"IF(ISBLANK(ANASAYFA!B9),\" \",ANASAYFA!B9)","v":" "},null,null,null,{"$f":"IF(ISBLANK(ANASAYFA!C9),\" \",ANASAYFA!C9)","v":" "}]
[null,{"$f":"IF(ISBLANK(ANASAYFA!A10),\" \",ANASAYFA!A10)","v":"Öğretmen"},null,null,{"$f":"IF(ISBLANK(ANASAYFA!B10),\" \",ANASAYFA!B10)","v":"Öğretmen"},null,null,null,{"$f":"IF(ISBLANK(ANASAYFA!C10),\" \",ANASAYFA!C10)","v":"Öğretmen"}]

{"sheet":"Onay Belgesi","index":3,"n_rows":34,"n_cols":7,"rows_kept":34,"cut":false,"hidden":false,"merged":[[3,1,4,6],[0,1,0,6],[1,1,1,3],[1,4,1,6],[2,1,2,3],[2,4,2,6],[11,1,11,3],[11,4,11,6],[5,1,5,3],[5,4,5,6],[6,1,6,3],[6,4,6,6],[7,1,7,3],[7,4,7,6],[8,1,8,6],[9,1,9,3],[9,4,9,6],[10,1,10,3],[10,4,10,6],[12,1,12,3],[12,4,12,6],[13,1,13,3],[13,4,13,6],[14,1,14,3],[14,4,14,6],[15,1,15,3],[15,4,15,6],[16,1,16,3],[16,4,16,6],[17,1,17,3],[17,4,17,6],[18,1,18,3],[18,4,18,6],[19,1,19,3],[19,4,19,6],[20,1,23,3],[20,4,20,5],[21,4,21,5],[22,4,22,5],[23,4,23,5],[29,1,29,3],[29,4,29,6],[30,1,30,3],[30,4,30,6],[24,1,24,6],[25,1,25,6],[26,1,26,6],[27,1,27,3],[27,4,27,6],[28,1,28,3],[28,4,28,6]]}
[null,"ONAY BELGESİ"]
[null,"Doğrudan Temin Yapan İdarenin Adı",null,null,{"$f":"IF(ISBLANK(ANASAYFA!B3),\"  \",ANASAYFA!B3)","v":"Köyceğiz Anaokulu"}]
[null,"Belge Tarihi ve Sayısı",null,null,{"$f":"IF(ISBLANK(ANASAYFA!B19),\" \",CONCATENATE(ANASAYFA!B19,\" - \",ANASAYFA!B20))","v":"17.06.2023 - 78531478"}]
[null,{"$f":"\" \"&UPPER(ANASAYFA!B3)&\" MÜDÜRLÜK MAKAMINA\"","v":" KÖYCEĞİZ ANAOKULU MÜDÜRLÜK MAKAMINA"}]
[]
[null,"İşin Tanımı",null,null,{"$f":"IF(ISBLANK(ANASAYFA!B17),\" \",ANASAYFA!B17)","v":"10 Kalem Gıda Malzemesi Alımı"}]
[null,"İşin Niteliği",null,null,{"$f":"IF(ISBLANK(ANASAYFA!B18),\" \",ANASAYFA!B18)","v":"3.2.4 Yiyecek, İçecek ve Yem Alımları"}]
[null,"İşin Miktarı",null,null,{"$f":"KAYNAK!J28","v":"1 Adet"}]
[]
[null,"Yaklaşık Maliyet (KDV HARİÇ)",null,null,{"$f":"IF(ISBLANK('Yak. Mal. Hes. Cet.'!M25),\" \",'Yak. Mal. Hes. Cet.'!M25)","v":0}]
[null,"Kullanılabilir Ödenek Tutarı",null,null,{"$f":"IF(ISBLANK(ANASAYFA!B16),\" \",ANASAYFA!B16)","v":" "}]
[null,"Yatırım Projesi Numarası (Varsa)",null,null,"Yatırım Projesi Değildir."]
[null,"Bütçe Tertibi ",null,null,{"$f":"IF(ISBLANK(ANASAYFA!B15),\" \",ANASAYFA!B15)","v":"40.149.915.23385.13.68.01.03.02"}]
[null,"Avans Verilecekse Miktarı",null,null,"Avans Verilmeyecektir"]
[null,"İhale Usulu",null,null,"4734 Sayılı Kanunun 22/d Maddesi"]
[null,"İlan Şekli ve Adeti ",null,null,"İlan Yapılmayacak"]
[null,"İhale Dökümanı Satış Bedeli",null,null,"Yoktur."]
[null,"Fiyat Farkı Ödenecekse Dayanağı BKK",null,null,"Ödenmeyecek"]
[null,"Şartname Düzenlenip Düzenlenmeyeceği",null,null,"Düzenlenmeyecektir"]
[null,"Şartname Düzenlenip Düzenlenmeyeceği",null,null,"Düzenlenmeyecektir"]
[null,"Doğrudan Temin Yoluyla Mal / Hizmet satın alınacaksa piyasa fiyat araştırması yapmak üzere görevlendirilecek kişiler",null,null,"Adı Soyadı",null,"Unvanı"]
[null,null,null,null,{"$f":"IF(ISBLANK(ANASAYFA!A9),\" \",ANASAYFA!A9)","v":" "},null,{"$f":"IF(ISBLANK(ANASAYFA!A10),\" \",ANASAYFA!A10)","v":"Öğretmen"}]
[null,null,null,null,{"$f":"IF(ISBLANK(ANASAYFA!B9),\" \",ANASAYFA!B9)","v":" "},null,{"$f":"IF(ISBLANK(ANASAYFA!B10),\" \",ANASAYFA!B10)","v":"Öğretmen"}]
[null,null,null,null,{"$f":"IF(ISBLANK(ANASAYFA!C9),\" \",ANASAYFA!C9)","v":" "},null,{"$f":"IF(ISBLANK(ANASAYFA!C10),\" \",ANASAYFA!C10)","v":"Öğretmen"}]
[null,"DİĞER AÇIKLAMALAR"]
[null," "]
[null,"ONAY"]
[null,"Yukarıda Belirtilen Malzemelerin Satın alınması için ilgililerin görevlendirilmeleri hususunu Onaylarınıza arz ve teklif ederim.",null,null,"UYGUNDUR"]
[null," "]
[null,{"$f":"IF(ISBLANK(ANASAYFA!B6),\" \",ANASAYFA!B6)","v":" "},null,null,{"$f":"IF(ISBLANK(ANASAYFA!B5),\" \",ANASAYFA!B5)","v":" "}]
[null,{"$f":"IF(ISBLANK(ANASAYFA!C6),\" \",ANASAYFA!C6)","v":"Müdür Yardımcısı"},null,null,{"$f":"IF(ISBLANK(ANASAYFA!C5),\" \",ANASAYFA!C5)","v":"Okul Müdürü"}]
[]
[null," "]
[null," "]

{"sheet":"Teklif Mektubu","index":4,"n_rows":37,"n_cols":7,"rows_kept":37,"cut":false,"hidden":false,"merged":[[36,5,36,6],[11,0,11,6],[10,0,10,6],[13,0,13,6],[32,0,32,5],[34,5,34,6],[35,5,35,6],[7,0,7,1],[7,3,7,4],[7,5,7,6],[8,0,8,1],[8,3,8,4],[8,5,8,6],[5,0,5,6],[0,0,0,6],[1,0,1,6],[2,0,2,6],[3,0,3,6],[4,5,4,6]]}
["İDARİ/TEKNİK ŞARTNAME VE TEKLİF MEKTUBU"]
[]
["İLGİLİ FİRMALARA"]
[{"$f":"CONCATENATE(KAYNAK!D2,KAYNAK!D3)","v":"   Köyceğiz Anaokulu İhale yetkilisince aşağıda cins ve miktarı yazılı malzeme alımı için fiyat araştırması yapmak üzere görevlendirilmiş bulunmaktayız.4734 Sayılı Kamu İhale Kanununun 9. Maddesi gereğince aşağıda cins ve nevi belirtilen mal ve emtianın KDV hariç olmak üzere fiyatlarının bildirilmesi rica olunur"}]
[null,null," ",null,null,{"$f":"IF(ISBLANK(ANASAYFA!D17),\" \",ANASAYFA!D17)","v":"2023-06-19"}]
["FİYAT ARAŞTIRMASI GÖREVLİLERİ"]
[" "]
["Adı Soyadı",null,{"$f":"IF(ISBLANK(ANASAYFA!A9),\" \",ANASAYFA!A9)","v":" "},{"$f":"IF(ISBLANK(ANASAYFA!B9),\" \",ANASAYFA!B9)","v":" "},null,{"$f":"IF(ISBLANK(ANASAYFA!C9),\" \",ANASAYFA!C9)","v":" "}]
["Ünvanı",null,{"$f":"IF(ISBLANK(ANASAYFA!A10),\" \",ANASAYFA!A10)","v":"Öğretmen"},{"$f":"IF(ISBLANK(ANASAYFA!B10),\" \",ANASAYFA!B10)","v":"Öğretmen"},null,{"$f":"IF(ISBLANK(ANASAYFA!C10),\" \",ANASAYFA!C10)","v":"Öğretmen"}]
[]
["SATIN ALINACAK MALZEMEYE İLİŞKİN İDARİ ŞARTNAME"]
["1) Satın alınacak malzeme muayene ve kabul komisyonunun kontrol, sayım ve tartımından sonra teslim alınacaktır. Bozuk, kalitesiz ve tarihi geçen ve TSE standartlarına uygun olmayan malzemeler kabul edilmeyecektir.\n2) Ödemelerin mal müdürlüğü aracılığıyla yapılması halinde Binde 9.48 oranında damga vergisi kesilerek hakediş ödenecektir.\n3) Ödemenin kurum özel bütçesinden yapılması halinde bankanın belirleyeceği EFT - Havale ücreti kesilerek hakediş ödenecektir.\n4) Teklif Mektuplarının ilanda belirtilen Tarih ve Saate Kadar elden imza karşılığı ya da iadeli taahhütlü posta ile ulaştırılması gerekmektedir. Belirtilen tarih ve saatten sonra ulaştırılan ya da diğer yollarla ulaştırılan teklifler geçersiz sayılarak kabul edilmeyecektir.\n5) Teslimatın, teklifin onay tarihinden itibaren 30 iş günü içinde yapılması gereklidir.\n6) Malzemenin bedeli, yalnızca ilgili kişi/firmaya ait IBAN numarasına yapılacaktır. Diğer hesaplara ya da elden ödeme yapılamamaktadır.\n7) KDV dahil toplam tutarının 5000 TL üzerinde olması halinde, firmanın vergi dairesine borcu yoktur yazısı ibraz etmesi istenecektir.\n8) İstenilen malzemeler, okulun internet sitesinde belirtilen mevcut adresine teslim edilecektir. Satın alınan malzemenin nakliyesi /taşınması firmaya aittir. Firma ile ayrıca sözleşme yapılıp yapılmaması idarenin insiyatifindedir."]
[]
["SATIN ALINACAK MALZEMEYE İLİŞKİN TEKNİK ÖZELLİKLER"]
["S.N.","Malzemenin Cinsi","Malzemenin Niteliği","Miktarı","Birimi","Birim Fiyat        (KDV Hariç)","Toplam Tutar (KDV Hariç)"]
[{"$f":"IF(ISBLANK(ANASAYFA!E5),\" \",ANASAYFA!E5)","v":1},{"$f":"IF(ISBLANK(ANASAYFA!$F5),\"\",ANASAYFA!F5)","v":"Ürün Adı"},{"$f":"IF(ISBLANK(ANASAYFA!G5),\" \",ANASAYFA!G5)","v":"Paketli, 20 gr, A Kalite"},{"$f":"IF(ISBLANK(ANASAYFA!H5),\" \",ANASAYFA!H5)","v":1},{"$f":"IF(ISBLANK(ANASAYFA!I5),\" \",ANASAYFA!I5)","v":"Adet"}]
[{"$f":"IF(ISBLANK(ANASAYFA!E6),\" \",ANASAYFA!E6)","v":""},{"$f":"IF(ISBLANK(ANASAYFA!$F6),\"\",ANASAYFA!F6)","v":""},{"$f":"IF(ISBLANK(ANASAYFA!G6),\" \",ANASAYFA!G6)","v":" "},{"$f":"IF(ISBLANK(ANASAYFA!H6),\" \",ANASAYFA!H6)","v":" "},{"$f":"IF(ISBLANK(ANASAYFA!I6),\" \",ANASAYFA!I6)","v":" "}]
[{"$f":"IF(ISBLANK(ANASAYFA!E7),\" \",ANASAYFA!E7)","v":""},{"$f":"IF(ISBLANK(ANASAYFA!$F7),\"\",ANASAYFA!F7)","v":""},{"$f":"IF(ISBLANK(ANASAYFA!G7),\" \",ANASAYFA!G7)","v":" "},{"$f":"IF(ISBLANK(ANASAYFA!H7),\" \",ANASAYFA!H7)","v":" "},{"$f":"IF(ISBLANK(ANASAYFA!I7),\" \",ANASAYFA!I7)","v":" "}]
[{"$f":"IF(ISBLANK(ANASAYFA!E8),\" \",ANASAYFA!E8)","v":""},{"$f":"IF(ISBLANK(ANASAYFA!$F8),\"\",ANASAYFA!F8)","v":""},{"$f":"IF(ISBLANK(ANASAYFA!G8),\" \",ANASAYFA!G8)","v":"ı"},{"$f":"IF(ISBLANK(ANASAYFA!H8),\" \",ANASAYFA!H8)","v":" "},{"$f":"IF(ISBLANK(ANASAYFA!I8),\" \",ANASAYFA!I8)","v":" "}]
[{"$f":"IF(ISBLANK(ANASAYFA!E9),\" \",ANASAYFA!E9)","v":""},{"$f":"IF(ISBLANK(ANASAYFA!$F9),\"\",ANASAYFA!F9)","v":""},{"$f":"IF(ISBLANK(ANASAYFA!G9),\" \",ANASAYFA!G9)","v":" "},{"$f":"IF(ISBLANK(ANASAYFA!H9),\" \",ANASAYFA!H9)","v":" "},{"$f":"IF(ISBLANK(ANASAYFA!I9),\" \",ANASAYFA!I9)","v":" "}]
[{"$f":"IF(ISBLANK(ANASAYFA!E10),\" \",ANASAYFA!E10)","v":""},{"$f":"IF(ISBLANK(ANASAYFA!$F10),\"\",ANASAYFA!F10)","v":""},{"$f":"IF(ISBLANK(ANASAYFA!G10),\" \",ANASAYFA!G10)","v":" "},{"$f":"IF(ISBLANK(ANASAYFA!H10),\" \",ANASAYFA!H10)","v":" "},{"$f":"IF(ISBLANK(ANASAYFA!I10),\" \",ANASAYFA!I10)","v":" "}]
[{"$f":"IF(ISBLANK(ANASAYFA!E11),\" \",ANASAYFA!E11)","v":""},{"$f":"IF(ISBLANK(ANASAYFA!$F11),\"\",ANASAYFA!F11)","v":""},{"$f":"IF(ISBLANK(ANASAYFA!G11),\" \",ANASAYFA!G11)","v":" "},{"$f":"IF(ISBLANK(ANASAYFA!H11),\" \",ANASAYFA!H11)","v":" "},{"$f":"IF(ISBLANK(ANASAYFA!I11),\" \",ANASAYFA!I11)","v":" "}]
[{"$f":"IF(ISBLANK(ANASAYFA!E12),\" \",ANASAYFA!E12)","v":""},{"$f":"IF(ISBLANK(ANASAYFA!$F12),\"\",ANASAYFA!F12)","v":""},{"$f":"IF(ISBLANK(ANASAYFA!G12),\" \",ANASAYFA!G12)","v":" "},{"$f":"IF(ISBLANK(ANASAYFA!H12),\" \",ANASAYFA!H12)","v":" "},{"$f":"IF(ISBLANK(ANASAYFA!I12),\" \",ANASAYFA!I12)","v":" "}]
[{"$f":"IF(ISBLANK(ANASAYFA!E13),\" \",ANASAYFA!E13)","v":""},{"$f":"IF(ISBLANK(ANASAYFA!$F13),\"\",ANASAYFA!F13)","v":""},{"$f":"IF(ISBLANK(ANASAYFA!G13),\" \",ANASAYFA!G13)","v":" "},{"$f":"IF(ISBLANK(ANASAYFA!H13),\" \",ANASAYFA!H13)","v":" "},{"$f":"IF(ISBLANK(ANASAYFA!I13),\" \",ANASAYFA!I13)","v":" "}]
[{"$f":"IF(ISBLANK(ANASAYFA!E14),\" \",ANASAYFA!E14)","v":""},{"$f":"IF(ISBLANK(ANASAYFA!$F14),\"\",ANASAYFA!F14)","v":""},{"$f":"IF(ISBLANK(ANASAYFA!G14),\" \",ANASAYFA!G14)","v":" "},{"$f":"IF(ISBLANK(ANASAYFA!H14),\" \",ANASAYFA!H14)","v":" "},{"$f":"IF(ISBLANK(ANASAYFA!I14),\" \",ANASAYFA!I14)","v":" "}]
[{"$f":"IF(ISBLANK(ANASAYFA!E15),\" \",ANASAYFA!E15)","v":""},{"$f":"IF(ISBLANK(ANASAYFA!$F15),\"\",ANASAYFA!F15)","v":""},{"$f":"IF(ISBLANK(ANASAYFA!G15),\" \",ANASAYFA!G15)","v":" "},{"$f":"IF(ISBLANK(ANASAYFA!H15),\" \",ANASAYFA!H15)","v":" "},{"$f":"IF(ISBLANK(ANASAYFA!I15),\" \",ANASAYFA!I15)","v":" "}]
[{"$f":"IF(ISBLANK(ANASAYFA!E16),\" \",ANASAYFA!E16)","v":""},{"$f":"IF(ISBLANK(ANASAYFA!$F16),\"\",ANASAYFA!F16)","v":""},{"$f":"IF(ISBLANK(ANASAYFA!G16),\" \",ANASAYFA!G16)","v":" "},{"$f":"IF(ISBLANK(ANASAYFA!H16),\" \",ANASAYFA!H16)","v":" "},{"$f":"IF(ISBLANK(ANASAYFA!I16),\" \",ANASAYFA!I16)","v":" "}]
[{"$f":"IF(ISBLANK(ANASAYFA!E17),\" \",ANASAYFA!E17)","v":""},{"$f":"IF(ISBLANK(ANASAYFA!$F17),\"\",ANASAYFA!F17)","v":""},{"$f":"IF(ISBLANK(ANASAYFA!G17),\" \",ANASAYFA!G17)","v":" "},{"$f":"IF(ISBLANK(ANASAYFA!H17),\" \",ANASAYFA!H17)","v":" "},{"$f":"IF(ISBLANK(ANASAYFA!I17),\" \",ANASAYFA!I17)","v":" "}]
[{"$f":"IF(ISBLANK(ANASAYFA!E18),\" \",ANASAYFA!E18)","v":""},{"$f":"IF(ISBLANK(ANASAYFA!$F18),\"\",ANASAYFA!F18)","v":""},{"$f":"IF(ISBLANK(ANASAYFA!G18),\" \",ANASAYFA!G18)","v":" "},{"$f":"IF(ISBLANK(ANASAYFA!H18),\" \",ANASAYFA!H18)","v":" "},{"$f":"IF(ISBLANK(ANASAYFA!I18),\" \",ANASAYFA!I18)","v":" "}]
[{"$f":"IF(ISBLANK(ANASAYFA!E19),\" \",ANASAYFA!E19)","v":""},{"$f":"IF(ISBLANK(ANASAYFA!$F19),\"\",ANASAYFA!F19)","v":""},{"$f":"IF(ISBLANK(ANASAYFA!G19),\" \",ANASAYFA!G19)","v":" "},{"$f":"IF(ISBLANK(ANASAYFA!H19),\" \",ANASAYFA!H19)","v":" "},{"$f":"IF(ISBLANK(ANASAYFA!I19),\" \",ANASAYFA!I19)","v":" "}]
[{"$f":"IF(ISBLANK(ANASAYFA!E20),\" \",ANASAYFA!E20)","v":""},{"$f":"IF(ISBLANK(ANASAYFA!$F20),\"\",ANASAYFA!F20)","v":""},{"$f":"IF(ISBLANK(ANASAYFA!G20),\" \",ANASAYFA!G20)","v":" "},{"$f":"IF(ISBLANK(ANASAYFA!H20),\" \",ANASAYFA!H20)","v":" "},{"$f":"IF(ISBLANK(ANASAYFA!I20),\" \",ANASAYFA!I20)","v":" "}]
[{"$f":"IF(ISBLANK(ANASAYFA!E21),\" \",ANASAYFA!E21)","v":" "},{"$f":"IF(ISBLANK(ANASAYFA!$F21),\"\",ANASAYFA!F21)","v":""},{"$f":"IF(ISBLANK(ANASAYFA!G21),\" \",ANASAYFA!G21)","v":" "},{"$f":"IF(ISBLANK(ANASAYFA!H21),\" \",ANASAYFA!H21)","v":" "},{"$f":"IF(ISBLANK(ANASAYFA!I21),\" \",ANASAYFA!I21)","v":" "}]
["KDV HARİÇ TOPLAM TUTAR"]
[]
[" ",null,null,null," ","TARİH"]
[null,null,null," ",null,"KİŞİ/FİRMA YETKİLİSİ"]
[null,null,null,null,null,"KAŞE ve İMZA"]

{"sheet":"Piy. Fi. Ar. Tut","index":5,"n_rows":49,"n_cols":6,"rows_kept":49,"cut":false,"hidden":false,"merged":[[45,1,45,5],[49,2,49,3],[43,0,43,4],[44,1,44,5],[23,0,23,5],[24,0,25,0],[24,1,25,1],[24,2,24,5],[25,3,25,4],[26,3,26,4],[27,3,27,4],[28,3,28,4],[29,3,29,4],[30,3,30,4],[31,3,31,4],[32,3,32,4],[3,0,3,1],[4,0,5,0],[4,1,5,1],[4,2,4,5],[3,2,3,3],[0,0,0,5],[1,0,1,1],[1,2,1,5],[2,0,2,1],[2,2,2,5],[33,3,33,4],[34,3,34,4],[35,3,35,4],[41,3,41,4],[42,3,42,4],[36,3,36,4],[37,3,37,4],[38,3,38,4],[39,3,39,4],[40,3,40,4]]}
["PİYASA FİYAT ARAŞTIRMASI TUTANAĞI"]
["İdarenin Adı",null,{"$f":"KAYNAK!J8","v":"KÖYCEĞİZ ANAOKULU MÜDÜRLÜĞÜ"}]
["Yapılan İş / Mal / Hizmetin Adı, Niteliği",null,{"$f":"IF(ISBLANK(ANASAYFA!B17),\" \",ANASAYFA!B17)","v":"10 Kalem Gıda Malzemesi Alımı"}]
["Görevlendirme Onayı Tarihi ve Sayısı",null,{"$f":"'Onay Belgesi'!E3","v":"17.06.2023 - 78531478"},null,"Düzenleme Tarihi",{"$f":"IF(ISBLANK(ANASAYFA!D18),\" \",ANASAYFA!D18)","v":"2023-06-19"}]
[null,"Mal / Hizmet / Yapım İşi","Kişi / Firmalar ve Fiyat Teklifleri"]
[null,null,{"$f":"'Yak. Mal. Hes. Cet.'!F6","v":" "},{"$f":"'Yak. Mal. Hes. Cet.'!H6","v":" "},{"$f":"'Yak. Mal. Hes. Cet.'!J6","v":" "},"4 üncü FİRMA"]
[{"$f":"IF(ISBLANK(ANASAYFA!E5),\" \",ANASAYFA!E5)","v":1},{"$f":"PROPER(IF(ISBLANK(ANASAYFA!F5),\"\",(CONCATENATE('Yak. Mal. Tek. Formu'!B14,\" \",ANASAYFA!H5,\" \",ANASAYFA!I5))))","v":"Ürün Adı Paketli, 20 Gr, A Kalite 1 Adet"},{"$f":"IF(ANASAYFA!K5=0,\" \",ANASAYFA!K5)","v":" "},{"$f":"IF(ANASAYFA!M5=0,\" \",ANASAYFA!M5)","v":" "},{"$f":"IF(ANASAYFA!O5=0,\" \",ANASAYFA!O5)","v":" "}]
[{"$f":"IF(ISBLANK(ANASAYFA!E6),\" \",ANASAYFA!E6)","v":""},{"$f":"PROPER(IF(ISBLANK(ANASAYFA!F6),\"\",(CONCATENATE('Yak. Mal. Tek. Formu'!B15,\" \",ANASAYFA!H6,\" \",ANASAYFA!I6))))","v":""},{"$f":"IF(ANASAYFA!K6=0,\" \",ANASAYFA!K6)","v":" "},{"$f":"IF(ANASAYFA!M6=0,\" \",ANASAYFA!M6)","v":" "},{"$f":"IF(ANASAYFA!O6=0,\" \",ANASAYFA!O6)","v":" "}]
[{"$f":"IF(ISBLANK(ANASAYFA!E7),\" \",ANASAYFA!E7)","v":""},{"$f":"PROPER(IF(ISBLANK(ANASAYFA!F7),\"\",(CONCATENATE('Yak. Mal. Tek. Formu'!B16,\" \",ANASAYFA!H7,\" \",ANASAYFA!I7))))","v":""},{"$f":"IF(ANASAYFA!K7=0,\" \",ANASAYFA!K7)","v":" "},{"$f":"IF(ANASAYFA!M7=0,\" \",ANASAYFA!M7)","v":" "},{"$f":"IF(ANASAYFA!O7=0,\" \",ANASAYFA!O7)","v":" "}]
[{"$f":"IF(ISBLANK(ANASAYFA!E8),\" \",ANASAYFA!E8)","v":""},{"$f":"PROPER(IF(ISBLANK(ANASAYFA!F8),\"\",(CONCATENATE('Yak. Mal. Tek. Formu'!B17,\" \",ANASAYFA!H8,\" \",ANASAYFA!I8))))","v":""},{"$f":"IF(ANASAYFA!K8=0,\" \",ANASAYFA!K8)","v":" "},{"$f":"IF(ANASAYFA!M8=0,\" \",ANASAYFA!M8)","v":" "},{"$f":"IF(ANASAYFA!O8=0,\" \",ANASAYFA!O8)","v":" "}]
[{"$f":"IF(ISBLANK(ANASAYFA!E9),\" \",ANASAYFA!E9)","v":""},{"$f":"PROPER(IF(ISBLANK(ANASAYFA!F9),\"\",(CONCATENATE('Yak. Mal. Tek. Formu'!B18,\" \",ANASAYFA!H9,\" \",ANASAYFA!I9))))","v":""},{"$f":"IF(ANASAYFA!K9=0,\" \",ANASAYFA!K9)","v":" "},{"$f":"IF(ANASAYFA!M9=0,\" \",ANASAYFA!M9)","v":" "},{"$f":"IF(ANASAYFA!O9=0,\" \",ANASAYFA!O9)","v":" "}]
[{"$f":"IF(ISBLANK(ANASAYFA!E10),\" \",ANASAYFA!E10)","v":""},{"$f":"PROPER(IF(ISBLANK(ANASAYFA!F10),\"\",(CONCATENATE('Yak. Mal. Tek. Formu'!B19,\" \",ANASAYFA!H10,\" \",ANASAYFA!I10))))","v":""},{"$f":"IF(ANASAYFA!K10=0,\" \",ANASAYFA!K10)","v":" "},{"$f":"IF(ANASAYFA!M10=0,\" \",ANASAYFA!M10)","v":" "},{"$f":"IF(ANASAYFA!O10=0,\" \",ANASAYFA!O10)","v":" "}]
[{"$f":"IF(ISBLANK(ANASAYFA!E11),\" \",ANASAYFA!E11)","v":""},{"$f":"PROPER(IF(ISBLANK(ANASAYFA!F11),\"\",(CONCATENATE('Yak. Mal. Tek. Formu'!B20,\" \",ANASAYFA!H11,\" \",ANASAYFA!I11))))","v":""},{"$f":"IF(ANASAYFA!K11=0,\" \",ANASAYFA!K11)","v":" "},{"$f":"IF(ANASAYFA!M11=0,\" \",ANASAYFA!M11)","v":" "},{"$f":"IF(ANASAYFA!O11=0,\" \",ANASAYFA!O11)","v":" "}]
[{"$f":"IF(ISBLANK(ANASAYFA!E12),\" \",ANASAYFA!E12)","v":""},{"$f":"PROPER(IF(ISBLANK(ANASAYFA!F12),\"\",(CONCATENATE('Yak. Mal. Tek. Formu'!B21,\" \",ANASAYFA!H12,\" \",ANASAYFA!I12))))","v":""},{"$f":"IF(ANASAYFA!K12=0,\" \",ANASAYFA!K12)","v":" "},{"$f":"IF(ANASAYFA!M12=0,\" \",ANASAYFA!M12)","v":" "},{"$f":"IF(ANASAYFA!O12=0,\" \",ANASAYFA!O12)","v":" "}]
[{"$f":"IF(ISBLANK(ANASAYFA!E13),\" \",ANASAYFA!E13)","v":""},{"$f":"PROPER(IF(ISBLANK(ANASAYFA!F13),\"\",(CONCATENATE('Yak. Mal. Tek. Formu'!B22,\" \",ANASAYFA!H13,\" \",ANASAYFA!I13))))","v":""},{"$f":"IF(ANASAYFA!K13=0,\" \",ANASAYFA!K13)","v":" "},{"$f":"IF(ANASAYFA!M13=0,\" \",ANASAYFA!M13)","v":" "},{"$f":"IF(ANASAYFA!O13=0,\" \",ANASAYFA!O13)","v":" "}]
[{"$f":"IF(ISBLANK(ANASAYFA!E14),\" \",ANASAYFA!E14)","v":""},{"$f":"PROPER(IF(ISBLANK(ANASAYFA!F14),\"\",(CONCATENATE('Yak. Mal. Tek. Formu'!B23,\" \",ANASAYFA!H14,\" \",ANASAYFA!I14))))","v":""},{"$f":"IF(ANASAYFA!K14=0,\" \",ANASAYFA!K14)","v":" "},{"$f":"IF(ANASAYFA!M14=0,\" \",ANASAYFA!M14)","v":" "},{"$f":"IF(ANASAYFA!O14=0,\" \",ANASAYFA!O14)","v":" "}]
[{"$f":"IF(ISBLANK(ANASAYFA!E15),\" \",ANASAYFA!E15)","v":""},{"$f":"PROPER(IF(ISBLANK(ANASAYFA!F15),\"\",(CONCATENATE('Yak. Mal. Tek. Formu'!B24,\" \",ANASAYFA!H15,\" \",ANASAYFA!I15))))","v":""},{"$f":"IF(ANASAYFA!K15=0,\" \",ANASAYFA!K15)","v":" "},{"$f":"IF(ANASAYFA!M15=0,\" \",ANASAYFA!M15)","v":" "},{"$f":"IF(ANASAYFA!O15=0,\" \",ANASAYFA!O15)","v":" "}]
[{"$f":"IF(ISBLANK(ANASAYFA!E16),\" \",ANASAYFA!E16)","v":""},{"$f":"PROPER(IF(ISBLANK(ANASAYFA!F16),\"\",(CONCATENATE('Yak. Mal. Tek. Formu'!B25,\" \",ANASAYFA!H16,\" \",ANASAYFA!I16))))","v":""},{"$f":"IF(ANASAYFA!K16=0,\" \",ANASAYFA!K16)","v":" "},{"$f":"IF(ANASAYFA!M16=0,\" \",ANASAYFA!M16)","v":" "},{"$f":"IF(ANASAYFA!O16=0,\" \",ANASAYFA!O16)","v":" "}]
[{"$f":"IF(ISBLANK(ANASAYFA!E17),\" \",ANASAYFA!E17)","v":""},{"$f":"PROPER(IF(ISBLANK(ANASAYFA!F17),\"\",(CONCATENATE('Yak. Mal. Tek. Formu'!B26,\" \",ANASAYFA!H17,\" \",ANASAYFA!I17))))","v":""},{"$f":"IF(ANASAYFA!K17=0,\" \",ANASAYFA!K17)","v":" "},{"$f":"IF(ANASAYFA!M17=0,\" \",ANASAYFA!M17)","v":" "},{"$f":"IF(ANASAYFA!O17=0,\" \",ANASAYFA!O17)","v":" "}]
[{"$f":"IF(ISBLANK(ANASAYFA!E18),\" \",ANASAYFA!E18)","v":""},{"$f":"PROPER(IF(ISBLANK(ANASAYFA!F18),\"\",(CONCATENATE('Yak. Mal. Tek. Formu'!B27,\" \",ANASAYFA!H18,\" \",ANASAYFA!I18))))","v":""},{"$f":"IF(ANASAYFA!K18=0,\" \",ANASAYFA!K18)","v":" "},{"$f":"IF(ANASAYFA!M18=0,\" \",ANASAYFA!M18)","v":" "},{"$f":"IF(ANASAYFA!O18=0,\" \",ANASAYFA!O18)","v":" "}]
[{"$f":"IF(ISBLANK(ANASAYFA!E19),\" \",ANASAYFA!E19)","v":""},{"$f":"PROPER(IF(ISBLANK(ANASAYFA!F19),\"\",(CONCATENATE('Yak. Mal. Tek. Formu'!B28,\" \",ANASAYFA!H19,\" \",ANASAYFA!I19))))","v":""},{"$f":"IF(ANASAYFA!K19=0,\" \",ANASAYFA!K19)","v":" "},{"$f":"IF(ANASAYFA!M19=0,\" \",ANASAYFA!M19)","v":" "},{"$f":"IF(ANASAYFA!O19=0,\" \",ANASAYFA!O19)","v":" "}]
[{"$f":"IF(ISBLANK(ANASAYFA!E20),\" \",ANASAYFA!E20)","v":""},{"$f":"PROPER(IF(ISBLANK(ANASAYFA!F20),\"\",(CONCATENATE('Yak. Mal. Tek. Formu'!B29,\" \",ANASAYFA!H20,\" \",ANASAYFA!I20))))","v":""},{"$f":"IF(ANASAYFA!K20=0,\" \",ANASAYFA!K20)","v":" "},{"$f":"IF(ANASAYFA!M20=0,\" \",ANASAYFA!M20)","v":" "},{"$f":"IF(ANASAYFA!O20=0,\" \",ANASAYFA!O20)","v":" "}]
[{"$f":"IF(ISBLANK(ANASAYFA!E21),\" \",ANASAYFA!E21)","v":" "},{"$f":"PROPER(IF(ISBLANK(ANASAYFA!F21),\"\",(CONCATENATE('Yak. Mal. Tek. Formu'!B30,\" \",ANASAYFA!H21,\" \",ANASAYFA!I21))))","v":""},{"$f":"IF(ANASAYFA!K21=0,\" \",ANASAYFA!K21)","v":" "},{"$f":"IF(ANASAYFA!M21=0,\" \",ANASAYFA!M21)","v":" "},{"$f":"IF(ANASAYFA!O21=0,\" \",ANASAYFA!O21)","v":" "}]
["  "]
[null,"Mal / Hizmet / Yapım İşi","Uygun Görülen Kişi / Firma / Firmalar"]
[null,null,"Adı","Adresi",null,"Teklif  Ettiği Fiyat (KDV hariç)"]
[{"$f":"A7","v":1},"Ürün Adı Paketli, 20 Gr, A Kalite 1 Adet",{"$f":"_xlfn.IFS(F27=\"\",\" \",F27=C7,$C$6,F27=D7,$D$6,F27=E7,$E$6)","v":" "},{"$f":"IF(ISBLANK(ANASAYFA!$F5),\" \",ANASAYFA!$D$20)","v":0},null,{"$f":"IFERROR(SMALL(C7:E7,1),\"\")","v":""}]
["","",{"$f":"_xlfn.IFS(F28=\"\",\" \",F28=C8,$C$6,F28=D8,$D$6,F28=E8,$E$6)","v":" "},{"$f":"IF(ISBLANK(ANASAYFA!$F6),\" \",ANASAYFA!$D$20)","v":" "},null,""]
["","",{"$f":"_xlfn.IFS(F29=\"\",\" \",F29=C9,$C$6,F29=D9,$D$6,F29=E9,$E$6)","v":" "},{"$f":"IF(ISBLANK(ANASAYFA!$F7),\" \",ANASAYFA!$D$20)","v":" "},null,""]
["","",{"$f":"_xlfn.IFS(F30=\"\",\" \",F30=C10,$C$6,F30=D10,$D$6,F30=E10,$E$6)","v":" "},{"$f":"IF(ISBLANK(ANASAYFA!$F8),\" \",ANASAYFA!$D$20)","v":" "},null,""]
["","",{"$f":"_xlfn.IFS(F31=\"\",\" \",F31=C11,$C$6,F31=D11,$D$6,F31=E11,$E$6)","v":" "},{"$f":"IF(ISBLANK(ANASAYFA!$F9),\" \",ANASAYFA!$D$20)","v":" "},null,""]
["","",{"$f":"_xlfn.IFS(F32=\"\",\" \",F32=C12,$C$6,F32=D12,$D$6,F32=E12,$E$6)","v":" "},{"$f":"IF(ISBLANK(ANASAYFA!$F10),\" \",ANASAYFA!$D$20)","v":" "},null,""]
["","",{"$f":"_xlfn.IFS(F33=\"\",\" \",F33=C13,$C$6,F33=D13,$D$6,F33=E13,$E$6)","v":" "},{"$f":"IF(ISBLANK(ANASAYFA!$F11),\" \",ANASAYFA!$D$20)","v":" "},null,""]
["","",{"$f":"_xlfn.IFS(F34=\"\",\" \",F34=C14,$C$6,F34=D14,$D$6,F34=E14,$E$6)","v":" "},{"$f":"IF(ISBLANK(ANASAYFA!$F12),\" \",ANASAYFA!$D$20)","v":" "},null,""]
["","",{"$f":"_xlfn.IFS(F35=\"\",\" \",F35=C15,$C$6,F35=D15,$D$6,F35=E15,$E$6)","v":" "},{"$f":"IF(ISBLANK(ANASAYFA!$F13),\" \",ANASAYFA!$D$20)","v":" "},null,""]
["","",{"$f":"_xlfn.IFS(F36=\"\",\" \",F36=C16,$C$6,F36=D16,$D$6,F36=E16,$E$6)","v":" "},{"$f":"IF(ISBLANK(ANASAYFA!$F14),\" \",ANASAYFA!$D$20)","v":" "},null,""]
["","",{"$f":"_xlfn.IFS(F37=\"\",\" \",F37=C17,$C$6,F37=D17,$D$6,F37=E17,$E$6)","v":" "},{"$f":"IF(ISBLANK(ANASAYFA!$F15),\" \",ANASAYFA!$D$20)","v":" "},null,""]
["","",{"$f":"_xlfn.IFS(F38=\"\",\" \",F38=C18,$C$6,F38=D18,$D$6,F38=E18,$E$6)","v":" "},{"$f":"IF(ISBLANK(ANASAYFA!$F16),\" \",ANASAYFA!$D$20)","v":" "},null,""]
["","",{"$f":"_xlfn.IFS(F39=\"\",\" \",F39=C19,$C$6,F39=D19,$D$6,F39=E19,$E$6)","v":" "},{"$f":"IF(ISBLANK(ANASAYFA!$F17),\" \",ANASAYFA!$D$20)","v":" "},null,""]
["","",{"$f":"_xlfn.IFS(F40=\"\",\" \",F40=C20,$C$6,F40=D20,$D$6,F40=E20,$E$6)","v":" "},{"$f":"IF(ISBLANK(ANASAYFA!$F18),\" \",ANASAYFA!$D$20)","v":" "},null,""]
["","",{"$f":"_xlfn.IFS(F41=\"\",\" \",F41=C21,$C$6,F41=D21,$D$6,F41=E21,$E$6)","v":" "},{"$f":"IF(ISBLANK(ANASAYFA!$F19),\" \",ANASAYFA!$D$20)","v":" "},null,""]
["","",{"$f":"_xlfn.IFS(F42=\"\",\" \",F42=C22,$C$6,F42=D22,$D$6,F42=E22,$E$6)","v":" "},{"$f":"IF(ISBLANK(ANASAYFA!$F20),\" \",ANASAYFA!$D$20)","v":" "},null,""]
[" ","",{"$f":"_xlfn.IFS(F43=\"\",\" \",F43=C23,$C$6,F43=D23,$D$6,F43=E23,$E$6)","v":" "},{"$f":"IF(ISBLANK(ANASAYFA!$F21),\" \",ANASAYFA!$D$20)","v":" "},null,""]
["TOPLAM",null,null,null,null,{"$f":"SUM(F27:F43)","v":0}]
[null,"4734 sayılı Kamu İhale Kanununun 22 nci Maddesi uyarınca doğrudan temin usulüyle yapılacak alımlara ilişkin yapılan piyasa araştırmasında firmalarca teklif  edilen fiyatlar tarafımızca değerlendirilerek yukarıda adı ve adresleri belirtilen firmadan alım yapılması uygun görülmüştür. "]
[" "," Piyasa Fiyat Araştırması Görevlisi / Görevlileri"]
[" ","Adı Soyadı",{"$f":"IF(ISBLANK(ANASAYFA!A9),\" \",ANASAYFA!A9)","v":" "},{"$f":"IF(ISBLANK(ANASAYFA!B9),\" \",ANASAYFA!B9)","v":" "},{"$f":"IF(ISBLANK(ANASAYFA!C9),\" \",ANASAYFA!C9)","v":" "}]
[null,"Unvanı",{"$f":"IF(ISBLANK(ANASAYFA!A10),\" \",ANASAYFA!A10)","v":"Öğretmen"},{"$f":"IF(ISBLANK(ANASAYFA!B10),\" \",ANASAYFA!B10)","v":"Öğretmen"},{"$f":"IF(ISBLANK(ANASAYFA!C10),\" \",ANASAYFA!C10)","v":"Öğretmen"}]
[null,"İmzası"]

{"sheet":"Mua. Kab. Tut.","index":6,"n_rows":42,"n_cols":5,"rows_kept":42,"cut":false,"hidden":false,"merged":[[35,0,37,4],[38,0,38,4],[40,0,40,1],[40,3,40,4],[41,0,41,1],[41,3,41,4],[29,2,29,3],[30,2,30,3],[32,0,32,1],[32,2,32,4],[33,0,33,1],[33,2,33,4],[28,2,28,3],[0,0,0,4],[1,0,1,4],[2,0,2,4],[4,0,5,4],[8,0,8,4]]}
[]
[{"$f":"KAYNAK!J5","v":"KÖYCEĞİZ KAYMAKAMLIĞI"}]
[{"$f":"KAYNAK!J8","v":"KÖYCEĞİZ ANAOKULU MÜDÜRLÜĞÜ"}]
[]
["MUAYENE VE KABUL TUTANAĞI"]
[]
[" "]
[null," "]
["MUAYENE VE KABULÜ YAPILAN MALIN"]
["S.N.","ADI","ÖZELLİĞİ","MİKTARI","BİRİM FİYATI"]
[{"$f":"IF(ISBLANK(ANASAYFA!E5),\" \",ANASAYFA!E5)","v":1},{"$f":"IF(ISBLANK(ANASAYFA!$F5),\"\",ANASAYFA!F5)","v":"Ürün Adı"},{"$f":"IF(ISBLANK(ANASAYFA!G5),\" \",ANASAYFA!G5)","v":"Paketli, 20 gr, A Kalite"},{"$f":"IF(ISBLANK(ANASAYFA!H5),\" \",ANASAYFA!H5)","v":1},{"$f":"IFERROR('Piy. Fi. Ar. Tut'!F27/'Yak. Mal. Hes. Cet.'!D8,\" \")","v":" "}]
[{"$f":"IF(ISBLANK(ANASAYFA!E6),\" \",ANASAYFA!E6)","v":""},{"$f":"IF(ISBLANK(ANASAYFA!$F6),\"\",ANASAYFA!F6)","v":""},{"$f":"IF(ISBLANK(ANASAYFA!G6),\" \",ANASAYFA!G6)","v":" "},{"$f":"IF(ISBLANK(ANASAYFA!H6),\" \",ANASAYFA!H6)","v":" "},{"$f":"IFERROR('Piy. Fi. Ar. Tut'!F28/'Yak. Mal. Hes. Cet.'!D9,\" \")","v":" "}]
[{"$f":"IF(ISBLANK(ANASAYFA!E7),\" \",ANASAYFA!E7)","v":""},{"$f":"IF(ISBLANK(ANASAYFA!$F7),\"\",ANASAYFA!F7)","v":""},{"$f":"IF(ISBLANK(ANASAYFA!G7),\" \",ANASAYFA!G7)","v":" "},{"$f":"IF(ISBLANK(ANASAYFA!H7),\" \",ANASAYFA!H7)","v":" "},{"$f":"IFERROR('Piy. Fi. Ar. Tut'!F29/'Yak. Mal. Hes. Cet.'!D10,\" \")","v":" "}]
[{"$f":"IF(ISBLANK(ANASAYFA!E8),\" \",ANASAYFA!E8)","v":""},{"$f":"IF(ISBLANK(ANASAYFA!$F8),\"\",ANASAYFA!F8)","v":""},{"$f":"IF(ISBLANK(ANASAYFA!G8),\" \",ANASAYFA!G8)","v":"ı"},{"$f":"IF(ISBLANK(ANASAYFA!H8),\" \",ANASAYFA!H8)","v":" "},{"$f":"IFERROR('Piy. Fi. Ar. Tut'!F30/'Yak. Mal. Hes. Cet.'!D11,\" \")","v":" "}]
[{"$f":"IF(ISBLANK(ANASAYFA!E9),\" \",ANASAYFA!E9)","v":""},{"$f":"IF(ISBLANK(ANASAYFA!$F9),\"\",ANASAYFA!F9)","v":""},{"$f":"IF(ISBLANK(ANASAYFA!G9),\" \",ANASAYFA!G9)","v":" "},{"$f":"IF(ISBLANK(ANASAYFA!H9),\" \",ANASAYFA!H9)","v":" "},{"$f":"IFERROR('Piy. Fi. Ar. Tut'!F31/'Yak. Mal. Hes. Cet.'!D12,\" \")","v":" "}]
[{"$f":"IF(ISBLANK(ANASAYFA!E10),\" \",ANASAYFA!E10)","v":""},{"$f":"IF(ISBLANK(ANASAYFA!$F10),\"\",ANASAYFA!F10)","v":""},{"$f":"IF(ISBLANK(ANASAYFA!G10),\" \",ANASAYFA!G10)","v":" "},{"$f":"IF(ISBLANK(ANASAYFA!H10),\" \",ANASAYFA!H10)","v":" "},{"$f":"IFERROR('Piy. Fi. Ar. Tut'!F32/'Yak. Mal. Hes. Cet.'!D13,\" \")","v":" "}]
[{"$f":"IF(ISBLANK(ANASAYFA!E11),\" \",ANASAYFA!E11)","v":""},{"$f":"IF(ISBLANK(ANASAYFA!$F11),\"\",ANASAYFA!F11)","v":""},{"$f":"IF(ISBLANK(ANASAYFA!G11),\" \",ANASAYFA!G11)","v":" "},{"$f":"IF(ISBLANK(ANASAYFA!H11),\" \",ANASAYFA!H11)","v":" "},{"$f":"IFERROR('Piy. Fi. Ar. Tut'!F33/'Yak. Mal. Hes. Cet.'!D14,\" \")","v":" "}]
[{"$f":"IF(ISBLANK(ANASAYFA!E12),\" \",ANASAYFA!E12)","v":""},{"$f":"IF(ISBLANK(ANASAYFA!$F12),\"\",ANASAYFA!F12)","v":""},{"$f":"IF(ISBLANK(ANASAYFA!G12),\" \",ANASAYFA!G12)","v":" "},{"$f":"IF(ISBLANK(ANASAYFA!H12),\" \",ANASAYFA!H12)","v":" "},{"$f":"IFERROR('Piy. Fi. Ar. Tut'!F34/'Yak. Mal. Hes. Cet.'!D15,\" \")","v":" "}]
[{"$f":"IF(ISBLANK(ANASAYFA!E13),\" \",ANASAYFA!E13)","v":""},{"$f":"IF(ISBLANK(ANASAYFA!$F13),\"\",ANASAYFA!F13)","v":""},{"$f":"IF(ISBLANK(ANASAYFA!G13),\" \",ANASAYFA!G13)","v":" "},{"$f":"IF(ISBLANK(ANASAYFA!H13),\" \",ANASAYFA!H13)","v":" "},{"$f":"IFERROR('Piy. Fi. Ar. Tut'!F35/'Yak. Mal. Hes. Cet.'!D16,\" \")","v":" "}]
[{"$f":"IF(ISBLANK(ANASAYFA!E14),\" \",ANASAYFA!E14)","v":""},{"$f":"IF(ISBLANK(ANASAYFA!$F14),\"\",ANASAYFA!F14)","v":""},{"$f":"IF(ISBLANK(ANASAYFA!G14),\" \",ANASAYFA!G14)","v":" "},{"$f":"IF(ISBLANK(ANASAYFA!H14),\" \",ANASAYFA!H14)","v":" "},{"$f":"IFERROR('Piy. Fi. Ar. Tut'!F36/'Yak. Mal. Hes. Cet.'!D17,\" \")","v":" "}]
[{"$f":"IF(ISBLANK(ANASAYFA!E15),\" \",ANASAYFA!E15)","v":""},{"$f":"IF(ISBLANK(ANASAYFA!$F15),\"\",ANASAYFA!F15)","v":""},{"$f":"IF(ISBLANK(ANASAYFA!G15),\" \",ANASAYFA!G15)","v":" "},{"$f":"IF(ISBLANK(ANASAYFA!H15),\" \",ANASAYFA!H15)","v":" "},{"$f":"IFERROR('Piy. Fi. Ar. Tut'!F37/'Yak. Mal. Hes. Cet.'!D18,\" \")","v":" "}]
[{"$f":"IF(ISBLANK(ANASAYFA!E16),\" \",ANASAYFA!E16)","v":""},{"$f":"IF(ISBLANK(ANASAYFA!$F16),\"\",ANASAYFA!F16)","v":""},{"$f":"IF(ISBLANK(ANASAYFA!G16),\" \",ANASAYFA!G16)","v":" "},{"$f":"IF(ISBLANK(ANASAYFA!H16),\" \",ANASAYFA!H16)","v":" "},{"$f":"IFERROR('Piy. Fi. Ar. Tut'!F38/'Yak. Mal. Hes. Cet.'!D19,\" \")","v":" "}]
[{"$f":"IF(ISBLANK(ANASAYFA!E17),\" \",ANASAYFA!E17)","v":""},{"$f":"IF(ISBLANK(ANASAYFA!$F17),\"\",ANASAYFA!F17)","v":""},{"$f":"IF(ISBLANK(ANASAYFA!G17),\" \",ANASAYFA!G17)","v":" "},{"$f":"IF(ISBLANK(ANASAYFA!H17),\" \",ANASAYFA!H17)","v":" "},{"$f":"IFERROR('Piy. Fi. Ar. Tut'!F39/'Yak. Mal. Hes. Cet.'!D20,\" \")","v":" "}]
[{"$f":"IF(ISBLANK(ANASAYFA!E18),\" \",ANASAYFA!E18)","v":""},{"$f":"IF(ISBLANK(ANASAYFA!$F18),\"\",ANASAYFA!F18)","v":""},{"$f":"IF(ISBLANK(ANASAYFA!G18),\" \",ANASAYFA!G18)","v":" "},{"$f":"IF(ISBLANK(ANASAYFA!H18),\" \",ANASAYFA!H18)","v":" "},{"$f":"IFERROR('Piy. Fi. Ar. Tut'!F40/'Yak. Mal. Hes. Cet.'!D21,\" \")","v":" "}]
[{"$f":"IF(ISBLANK(ANASAYFA!E19),\" \",ANASAYFA!E19)","v":""},{"$f":"IF(ISBLANK(ANASAYFA!$F19),\"\",ANASAYFA!F19)","v":""},{"$f":"IF(ISBLANK(ANASAYFA!G19),\" \",ANASAYFA!G19)","v":" "},{"$f":"IF(ISBLANK(ANASAYFA!H19),\" \",ANASAYFA!H19)","v":" "},{"$f":"IFERROR('Piy. Fi. Ar. Tut'!F41/'Yak. Mal. Hes. Cet.'!D22,\" \")","v":" "}]
[{"$f":"IF(ISBLANK(ANASAYFA!E20),\" \",ANASAYFA!E20)","v":""},{"$f":"IF(ISBLANK(ANASAYFA!$F20),\"\",ANASAYFA!F20)","v":""},{"$f":"IF(ISBLANK(ANASAYFA!G20),\" \",ANASAYFA!G20)","v":" "},{"$f":"IF(ISBLANK(ANASAYFA!H20),\" \",ANASAYFA!H20)","v":" "},{"$f":"IFERROR('Piy. Fi. Ar. Tut'!F42/'Yak. Mal. Hes. Cet.'!D23,\" \")","v":" "}]
[{"$f":"IF(ISBLANK(ANASAYFA!E21),\" \",ANASAYFA!E21)","v":" "},{"$f":"IF(ISBLANK(ANASAYFA!$F21),\"\",ANASAYFA!F21)","v":""},{"$f":"IF(ISBLANK(ANASAYFA!G21),\" \",ANASAYFA!G21)","v":" "},{"$f":"IF(ISBLANK(ANASAYFA!H21),\" \",ANASAYFA!H21)","v":" "},{"$f":"IFERROR('Piy. Fi. Ar. Tut'!F43/'Yak. Mal. Hes. Cet.'!D24,\" \")","v":" "}]
[]
[" ",null,"FİYAT TOPLAMI :",null,{"$f":"SUM('Piy. Fi. Ar. Tut'!F27:F43)","v":0}]
[" ",null,"KDV TOPLAMI :",null,{"$f":"SUMPRODUCT(IF(ISERROR(KAYNAK!G8:G24),0,KAYNAK!G8:G24))","v":0}]
[null,null,"TOPLAM TUTAR :",null,{"$f":"IFERROR(E29+E30,\" \")","v":0}]
[]
["YÜKLENİCİ FİRMA / KİŞİ",null,{"$f":"IF(ISBLANK('Piy. Fi. Ar. Tut'!C27),\" \",'Piy. Fi. Ar. Tut'!C27)","v":" "}]
["YÜKLENİCİ VKN",null,{"$f":"_xlfn.IFS(C33=\" \",\" \",'Mua. Kab. Tut.'!C33=ANASAYFA!J3,ANASAYFA!J2,'Mua. Kab. Tut.'!C33=ANASAYFA!L3,ANASAYFA!L2,'Mua. Kab. Tut.'!C33=ANASAYFA!N3,ANASAYFA!N2)","v":" "}]
[{"$f":"COUNT(A11:A27)","v":1}]
[{"$f":"\"Yukarıda Adı ve miktarı yazılı \"&A35&\" kalem malın doğrudan temin evraklarında yazılı nitelikleri muayene edilmiş olup, komisyonumuzca tespit edilen niteliklere uygundur.\"","v":"Yukarıda Adı ve miktarı yazılı 1 kalem malın doğrudan temin evraklarında yazılı nitelikleri muayene edilmiş olup, komisyonumuzca tespit edilen niteliklere uygundur."}]
[]
[]
[{"$f":"IF(ISBLANK(ANASAYFA!D19),\" \",ANASAYFA!D19)","v":"2023-06-20"}]
[]
[{"$f":"IF(ISBLANK(ANASAYFA!A13),\" \",ANASAYFA!A13)","v":" "},null,{"$f":"IF(ISBLANK(ANASAYFA!B13),\" \",ANASAYFA!B13)","v":" "},{"$f":"IF(ISBLANK(ANASAYFA!C13),\" \",ANASAYFA!C13)","v":" "}]
[{"$f":"IF(ISBLANK(ANASAYFA!A14),\" \",ANASAYFA!A14)","v":"Öğretmen"},null,{"$f":"IF(ISBLANK(ANASAYFA!B14),\" \",ANASAYFA!B14)","v":"Öğretmen"},{"$f":"IF(ISBLANK(ANASAYFA!C14),\" \",ANASAYFA!C14)","v":"Öğretmen"}]

{"sheet":"MYS Yk. Maliyet","index":7,"n_rows":17,"n_cols":8,"rows_kept":17,"cut":false,"hidden":false,"merged":[]}
["Ürün Adı","Miktar","Ölçü Birimi","Ürün No","Model","Marka","Birim Tutar","Firma VKN/TCKN"]
[{"$f":"KAYNAK!J33","v":"Ürün Adı"},{"$f":"IF(ISBLANK(ANASAYFA!H5),\"\",ANASAYFA!H5)","v":1},{"$f":"IF(ISBLANK(ANASAYFA!I5),\"\",KAYNAK!O10)","v":"ADET_BIRIM"}]
[null,null,null,{"$f":"A2","v":"Ürün Adı"},{"$f":"A2","v":"Ürün Adı"},{"$f":"A2","v":"Ürün Adı"},{"$f":"IF(ISBLANK(ANASAYFA!J5),\"\",ANASAYFA!J5)","v":""},{"$f":"IF(ISBLANK(ANASAYFA!F5),\"\",ANASAYFA!J2)","v":0}]
[null,null,null,{"$f":"A2","v":"Ürün Adı"},{"$f":"A2","v":"Ürün Adı"},{"$f":"A2","v":"Ürün Adı"},{"$f":"IF(ISBLANK(ANASAYFA!L5),\"\",ANASAYFA!L5)","v":""},{"$f":"IF(ISBLANK(ANASAYFA!F5),\"\",ANASAYFA!L2)","v":0}]
[null,null,null,{"$f":"A2","v":"Ürün Adı"},{"$f":"A2","v":"Ürün Adı"},{"$f":"A2","v":"Ürün Adı"},{"$f":"IF(ISBLANK(ANASAYFA!N5),\"\",ANASAYFA!N5)","v":""},{"$f":"IF(ISBLANK(ANASAYFA!F5),\"\",ANASAYFA!N2)","v":0}]
[{"$f":"KAYNAK!J34","v":""},{"$f":"IF(ISBLANK(ANASAYFA!H6),\"\",ANASAYFA!H6)","v":""},{"$f":"IF(ISBLANK(ANASAYFA!I6),\"\",KAYNAK!O11)","v":""}]
[null,null,null,{"$f":"A6","v":""},{"$f":"A6","v":""},{"$f":"A6","v":""},{"$f":"IF(ISBLANK(ANASAYFA!J6),\"\",ANASAYFA!J6)","v":""},{"$f":"IF(ISBLANK(ANASAYFA!F6),\"\",ANASAYFA!J2)","v":""}]
[null,null,null,{"$f":"A6","v":""},{"$f":"A6","v":""},{"$f":"A6","v":""},{"$f":"IF(ISBLANK(ANASAYFA!L6),\"\",ANASAYFA!L6)","v":""},{"$f":"IF(ISBLANK(ANASAYFA!F6),\"\",ANASAYFA!L2)","v":""}]
[null,null,null,{"$f":"A6","v":""},{"$f":"A6","v":""},{"$f":"A6","v":""},{"$f":"IF(ISBLANK(ANASAYFA!N6),\"\",ANASAYFA!N6)","v":""},{"$f":"IF(ISBLANK(ANASAYFA!F6),\"\",ANASAYFA!N2)","v":""}]
[{"$f":"KAYNAK!J35","v":""},{"$f":"IF(ISBLANK(ANASAYFA!H7),\"\",ANASAYFA!H7)","v":""},{"$f":"IF(ISBLANK(ANASAYFA!I7),\"\",KAYNAK!O12)","v":""}]
[null,null,null,{"$f":"A10","v":""},{"$f":"A10","v":""},{"$f":"A10","v":""},{"$f":"IF(ISBLANK(ANASAYFA!J7),\"\",ANASAYFA!J7)","v":""},{"$f":"IF(ISBLANK(ANASAYFA!F7),\"\",ANASAYFA!J2)","v":""}]
[null,null,null,{"$f":"A10","v":""},{"$f":"A10","v":""},{"$f":"A10","v":""},{"$f":"IF(ISBLANK(ANASAYFA!L7),\"\",ANASAYFA!L7)","v":""},{"$f":"IF(ISBLANK(ANASAYFA!F7),\"\",ANASAYFA!L2)","v":""}]
[null,null,null,{"$f":"A10","v":""},{"$f":"A10","v":""},{"$f":"A10","v":""},{"$f":"IF(ISBLANK(ANASAYFA!N7),\"\",ANASAYFA!N7)","v":""},{"$f":"IF(ISBLANK(ANASAYFA!F7),\"\",ANASAYFA!N2)","v":""}]
[{"$f":"KAYNAK!J36","v":""},{"$f":"IF(ISBLANK(ANASAYFA!H8),\"\",ANASAYFA!H8)","v":""},{"$f":"IF(ISBLANK(ANASAYFA!I8),\"\",KAYNAK!O13)","v":""}]
[null,null,null,{"$f":"A14","v":""},{"$f":"A14","v":""},{"$f":"A14","v":""},{"$f":"IF(ISBLANK(ANASAYFA!J8),\"\",ANASAYFA!J8)","v":""},{"$f":"KAYNAK!N36","v":""}]
[null,null,null,{"$f":"A14","v":""},{"$f":"A14","v":""},{"$f":"A14","v":""},{"$f":"IF(ISBLANK(ANASAYFA!L8),\"\",ANASAYFA!L8)","v":""},{"$f":"KAYNAK!O36","v":""}]
[null,null,null,{"$f":"A14","v":""},{"$f":"A14","v":""},{"$f":"A14","v":""},{"$f":"IF(ISBLANK(ANASAYFA!N8),\"\",ANASAYFA!N8)","v":""},{"$f":"KAYNAK!P36","v":""}]

{"sheet":"AÇIKLAMALAR","index":8,"n_rows":5,"n_cols":2,"rows_kept":5,"cut":false,"hidden":false,"merged":[]}
["1. AŞAMA","KURUM BİLGİLERİNİ VE GÖREVLİ BİLGİLERİNİ DOLDURUNUZ.\nALINACAK MALZEMELERİN BİLGİLERİNİ FİYATLAR HARİÇ GİRİNİZ.\n(ADI-NİTELİĞİ-MİKTARI-BİRİMİ) "]
["2. AŞAMA","GÖREVLENDİRME YAZISINI DYS ÜZERİNDEN YAZINIZ.\nSOL ALTTA SARI RENKLİ ALANDA\n1-2-3-4-5-6-7-8-9-10-11 KISIMLARI PLANLAMANIZA GÖRE DOLDURUNUZ."]
["3. AŞAMA","PİYASA FİYAT ARAŞTIRMASI VE YAKLAŞIK MALİYET TEKLİF FORMU ÇIKTILARINI ALINIZ.\nİLGİLİ FİRMALARDAN TEKLİF ALINIZ."]
["4. AŞAMA","ALINAN TEKLİFLERİ, TEKLİF VEREN FİRMA ADI-VKN BİLGİLERİNİ VE KDV ORANLARINI\nMALZEME BİLGİLERİ KISMINA GİRİŞ YAPINIZ.\nMYS HARCAMA BELGESİ İÇİN YAKLAŞIK MALİYET EXCELİ OLUŞTURUNUZ VE SİSTEME YÜKLEYİNİZ"]
["5. AŞAMA","PROGRAM EN UYGUN TEKLİF VEREN FİRMANIN TEKLİFİNE GÖRE TÜM İHALE DOSYAYI HAZIRLAYACAKTIR\n12 NOLU ALANLARDAKİ BİLGİLERİ DOLDURDUĞUNUZDA İHALE EVRAKININ TAMAMINI ÇIKTI ALINIZ."]

{"sheet":"KAYNAK","index":9,"n_rows":1004,"n_cols":18,"rows_kept":1004,"cut":false,"hidden":false,"merged":[[1,3,1,8],[2,3,2,8],[6,4,6,5],[7,3,19,3]]}
[0,null,null,null,null,null,null,null,null,null,null,null,null,"ADET_BIRIM",null,"Adet"]
[1,null,null,{"$f":"\"   \"&ANASAYFA!B3&\" İhale yetkilisince aşağıda cins ve miktarı yazılı malzeme alımı için fiyat araştırması yapmak üzere görevlendirilmiş bulunmaktayız.\"","v":"   Köyceğiz Anaokulu İhale yetkilisince aşağıda cins ve miktarı yazılı malzeme alımı için fiyat araştırması yapmak üzere görevlendirilmiş bulunmaktayız."},null,null,null,null,null,"http://cobanlar.meb.gov.tr/",null,null,null,"KILOGRAM_ADET",null,"Kg"]
[2,null,null,"4734 Sayılı Kamu İhale Kanununun 9. Maddesi gereğince aşağıda cins ve nevi belirtilen mal ve emtianın KDV hariç olmak üzere fiyatlarının bildirilmesi rica olunur",null,null,null,null,null,null,null,null,null,"LITRE",null,"Litre"]
[3,null,null,null,null,null,null,null,null,null,null,null,null,"METRE",null,"Metre",null,{"$f":"IF(ISBLANK(ANASAYFA!F5),\"\",ANASAYFA!J2)","v":0}]
[4,null,null,null,null,null,null,null,null,{"$f":"CONCATENATE(ANASAYFA!C3,\" KAYMAKAMLIĞI\")","v":"KÖYCEĞİZ KAYMAKAMLIĞI"},null,null,null,"METREKARE",null,"Metrekare",null,{"$f":"IF(ISBLANK(ANASAYFA!F5),\"\",ANASAYFA!L2)","v":0}]
[5,null,null,null,null,null,null,null,null,{"$f":"CONCATENATE(UPPER(ANASAYFA!B3),\" \",\"MÜDÜRLÜĞÜ\")","v":"KÖYCEĞİZ ANAOKULU MÜDÜRLÜĞÜ"},null,null,null,"METREKUP",null,"Metreküp",null,{"$f":"IF(ISBLANK(ANASAYFA!F5),\"\",ANASAYFA!N2)","v":0}]
[6,null,null,null,"MALZEME ÖZET",null,"KDV TUTARI",null,null,null,null,null,null,"YUZ_ADET",null,"Yüz Adet"]
[7,null,null,"BU SAYFADA DEĞİŞİKLİK YAPMAYINIZ.",1,{"$f":"CONCATENATE(ANASAYFA!F5,\" \",ANASAYFA!G5,\" \",ANASAYFA!H5,\" \",ANASAYFA!I5)","v":"Ürün Adı Paketli, 20 gr, A Kalite 1 Adet"},{"$f":"IF(ANASAYFA!P5,(ANASAYFA!P5*'Piy. Fi. Ar. Tut'!F27),\"\")","v":{"$error":"#VALUE!"}},null,null,{"$f":"UPPER(J6)","v":"KÖYCEĞİZ ANAOKULU MÜDÜRLÜĞÜ"}]
[8,null,null,null,2,{"$f":"CONCATENATE(ANASAYFA!F6,\" \",ANASAYFA!G6,\" \",ANASAYFA!H6,\" \",ANASAYFA!I6)","v":"   "},{"$f":"IF(ANASAYFA!P6,(ANASAYFA!P6*'Piy. Fi. Ar. Tut'!F28),\"\")","v":""}]
[9,null,null,null,3,{"$f":"CONCATENATE(ANASAYFA!F7,\" \",ANASAYFA!G7,\" \",ANASAYFA!H7,\" \",ANASAYFA!I7)","v":"   "},{"$f":"IF(ANASAYFA!P7,(ANASAYFA!P7*'Piy. Fi. Ar. Tut'!F29),\"\")","v":""},null,null,null,null,null,null,null,{"$f":"IF(ANASAYFA!I5=\"\",\"\",\nIF(ANASAYFA!I5=\"Adet\",$N$1,\nIF(ANASAYFA!I5=\"Kg\",$N$2,\nIF(ANASAYFA!I5=\"Litre\",$N$3,\nIF(ANASAYFA!I5=\"Metre\",$N$4,\nIF(ANASAYFA!I5=\"Metrekare\",$N$5,\nIF(ANASAYFA!I5=\"Metreküp\",$N$6,\nIF(ANASAYFA!I5=\"Yüz Adet\",$N$7,ANASAYFA!I5))))))))","v":"ADET_BIRIM"}]
[10,null,null,null,4,{"$f":"CONCATENATE(ANASAYFA!F8,\" \",ANASAYFA!G8,\" \",ANASAYFA!H8,\" \",ANASAYFA!I8)","v":" ı  "},{"$f":"IF(ANASAYFA!P8,(ANASAYFA!P8*'Piy. Fi. Ar. Tut'!F30),\"\")","v":""},null,null,null,null,null,null,null,{"$f":"IF(ANASAYFA!I6=\"\",\"\",\nIF(ANASAYFA!I6=\"Adet\",$N$1,\nIF(ANASAYFA!I6=\"Kg\",$N$2,\nIF(ANASAYFA!I6=\"Litre\",$N$3,\nIF(ANASAYFA!I6=\"Metre\",$N$4,\nIF(ANASAYFA!I6=\"Metrekare\",$N$5,\nIF(ANASAYFA!I6=\"Metreküp\",$N$6,\nIF(ANASAYFA!I6=\"Yüz Adet\",$N$7,ANASAYFA!I6))))))))","v":""}]
[11,null,null,null,5,{"$f":"CONCATENATE(ANASAYFA!F9,\" \",ANASAYFA!G9,\" \",ANASAYFA!H9,\" \",ANASAYFA!I9)","v":"   "},{"$f":"IF(ANASAYFA!P9,(ANASAYFA!P9*'Piy. Fi. Ar. Tut'!F31),\"\")","v":""},null,null,null,null,null,null,null,{"$f":"IF(ANASAYFA!I7=\"\",\"\",\nIF(ANASAYFA!I7=\"Adet\",$N$1,\nIF(ANASAYFA!I7=\"Kg\",$N$2,\nIF(ANASAYFA!I7=\"Litre\",$N$3,\nIF(ANASAYFA!I7=\"Metre\",$N$4,\nIF(ANASAYFA!I7=\"Metrekare\",$N$5,\nIF(ANASAYFA!I7=\"Metreküp\",$N$6,\nIF(ANASAYFA!I7=\"Yüz Adet\",$N$7,ANASAYFA!I7))))))))","v":""}]
[12,null,null,null,6,{"$f":"CONCATENATE(ANASAYFA!F10,\" \",ANASAYFA!G10,\" \",ANASAYFA!H10,\" \",ANASAYFA!I10)","v":"   "},{"$f":"IF(ANASAYFA!P10,(ANASAYFA!P10*'Piy. Fi. Ar. Tut'!F32),\"\")","v":""},null,null,null,null,null,null,null,{"$f":"IF(ANASAYFA!I8=\"\",\"\",\nIF(ANASAYFA!I8=\"Adet\",$N$1,\nIF(ANASAYFA!I8=\"Kg\",$N$2,\nIF(ANASAYFA!I8=\"Litre\",$N$3,\nIF(ANASAYFA!I8=\"Metre\",$N$4,\nIF(ANASAYFA!I8=\"Metrekare\",$N$5,\nIF(ANASAYFA!I8=\"Metreküp\",$N$6,\nIF(ANASAYFA!I8=\"Yüz Adet\",$N$7,ANASAYFA!I8))))))))","v":""}]
[13,null,null,null,7,{"$f":"CONCATENATE(ANASAYFA!F11,\" \",ANASAYFA!G11,\" \",ANASAYFA!H11,\" \",ANASAYFA!I11)","v":"   "},{"$f":"IF(ANASAYFA!P11,(ANASAYFA!P11*'Piy. Fi. Ar. Tut'!F33),\"\")","v":""},null,null,"İlçe Milli Eğitim Müdürü",null,null,null,null,{"$f":"IF(ANASAYFA!I9=\"\",\"\",\nIF(ANASAYFA!I9=\"Adet\",$N$1,\nIF(ANASAYFA!I9=\"Kg\",$N$2,\nIF(ANASAYFA!I9=\"Litre\",$N$3,\nIF(ANASAYFA!I9=\"Metre\",$N$4,\nIF(ANASAYFA!I9=\"Metrekare\",$N$5,\nIF(ANASAYFA!I9=\"Metreküp\",$N$6,\nIF(ANASAYFA!I9=\"Yüz Adet\",$N$7,ANASAYFA!I9))))))))","v":""}]
[14,null,null,null,8,{"$f":"CONCATENATE(ANASAYFA!F12,\" \",ANASAYFA!G12,\" \",ANASAYFA!H12,\" \",ANASAYFA!I12)","v":"   "},{"$f":"IF(ANASAYFA!P12,(ANASAYFA!P12*'Piy. Fi. Ar. Tut'!F34),\"\")","v":""},null,null,"Şube Müdürü",null,null,null,null,{"$f":"IF(ANASAYFA!I10=\"\",\"\",\nIF(ANASAYFA!I10=\"Adet\",$N$1,\nIF(ANASAYFA!I10=\"Kg\",$N$2,\nIF(ANASAYFA!I10=\"Litre\",$N$3,\nIF(ANASAYFA!I10=\"Metre\",$N$4,\nIF(ANASAYFA!I10=\"Metrekare\",$N$5,\nIF(ANASAYFA!I10=\"Metreküp\",$N$6,\nIF(ANASAYFA!I10=\"Yüz Adet\",$N$7,ANASAYFA!I10))))))))","v":""}]
[15,null,null,null,9,{"$f":"CONCATENATE(ANASAYFA!F13,\" \",ANASAYFA!G13,\" \",ANASAYFA!H13,\" \",ANASAYFA!I13)","v":"   "},{"$f":"IF(ANASAYFA!P13,(ANASAYFA!P13*'Piy. Fi. Ar. Tut'!F35),\"\")","v":""},null,null,"Okul Müdürü",null,null,null,null,{"$f":"IF(ANASAYFA!I11=\"\",\"\",\nIF(ANASAYFA!I11=\"Adet\",$N$1,\nIF(ANASAYFA!I11=\"Kg\",$N$2,\nIF(ANASAYFA!I11=\"Litre\",$N$3,\nIF(ANASAYFA!I11=\"Metre\",$N$4,\nIF(ANASAYFA!I11=\"Metrekare\",$N$5,\nIF(ANASAYFA!I11=\"Metreküp\",$N$6,\nIF(ANASAYFA!I11=\"Yüz Adet\",$N$7,ANASAYFA!I11))))))))","v":""}]
[16,null,null,null,10,{"$f":"CONCATENATE(ANASAYFA!F14,\" \",ANASAYFA!G14,\" \",ANASAYFA!H14,\" \",ANASAYFA!I14)","v":"   "},{"$f":"IF(ANASAYFA!P14,(ANASAYFA!P14*'Piy. Fi. Ar. Tut'!F36),\"\")","v":""},null,null,"Müdür Başyardımcısı",null,null,null,null,{"$f":"IF(ANASAYFA!I12=\"\",\"\",\nIF(ANASAYFA!I12=\"Adet\",$N$1,\nIF(ANASAYFA!I12=\"Kg\",$N$2,\nIF(ANASAYFA!I12=\"Litre\",$N$3,\nIF(ANASAYFA!I12=\"Metre\",$N$4,\nIF(ANASAYFA!I12=\"Metrekare\",$N$5,\nIF(ANASAYFA!I12=\"Metreküp\",$N$6,\nIF(ANASAYFA!I12=\"Yüz Adet\",$N$7,ANASAYFA!I12))))))))","v":""}]
[17,null,null,null,11,{"$f":"CONCATENATE(ANASAYFA!F15,\" \",ANASAYFA!G15,\" \",ANASAYFA!H15,\" \",ANASAYFA!I15)","v":"   "},{"$f":"IF(ANASAYFA!P15,(ANASAYFA!P15*'Piy. Fi. Ar. Tut'!F37),\"\")","v":""},null,null,"Müdür Yardımcısı",null,null,null,null,{"$f":"IF(ANASAYFA!I13=\"\",\"\",\nIF(ANASAYFA!I13=\"Adet\",$N$1,\nIF(ANASAYFA!I13=\"Kg\",$N$2,\nIF(ANASAYFA!I13=\"Litre\",$N$3,\nIF(ANASAYFA!I13=\"Metre\",$N$4,\nIF(ANASAYFA!I13=\"Metrekare\",$N$5,\nIF(ANASAYFA!I13=\"Metreküp\",$N$6,\nIF(ANASAYFA!I13=\"Yüz Adet\",$N$7,ANASAYFA!I13))))))))","v":""}]
[18,null,null,null,12,{"$f":"CONCATENATE(ANASAYFA!F16,\" \",ANASAYFA!G16,\" \",ANASAYFA!H16,\" \",ANASAYFA!I16)","v":"   "},{"$f":"IF(ANASAYFA!P16,(ANASAYFA!P16*'Piy. Fi. Ar. Tut'!F38),\"\")","v":""},null,null,"Öğretmen",null,0,null,null,{"$f":"IF(ANASAYFA!I14=\"\",\"\",\nIF(ANASAYFA!I14=\"Adet\",$N$1,\nIF(ANASAYFA!I14=\"Kg\",$N$2,\nIF(ANASAYFA!I14=\"Litre\",$N$3,\nIF(ANASAYFA!I14=\"Metre\",$N$4,\nIF(ANASAYFA!I14=\"Metrekare\",$N$5,\nIF(ANASAYFA!I14=\"Metreküp\",$N$6,\nIF(ANASAYFA!I14=\"Yüz Adet\",$N$7,ANASAYFA!I14))))))))","v":""}]
[19,null,null,null,13,{"$f":"CONCATENATE(ANASAYFA!F17,\" \",ANASAYFA!G17,\" \",ANASAYFA!H17,\" \",ANASAYFA!I17)","v":"   "},{"$f":"IF(ANASAYFA!P17,(ANASAYFA!P17*'Piy. Fi. Ar. Tut'!F39),\"\")","v":""},null,null,"Memur",null,0.01,null,null,{"$f":"IF(ANASAYFA!I15=\"\",\"\",\nIF(ANASAYFA!I15=\"Adet\",$N$1,\nIF(ANASAYFA!I15=\"Kg\",$N$2,\nIF(ANASAYFA!I15=\"Litre\",$N$3,\nIF(ANASAYFA!I15=\"Metre\",$N$4,\nIF(ANASAYFA!I15=\"Metrekare\",$N$5,\nIF(ANASAYFA!I15=\"Metreküp\",$N$6,\nIF(ANASAYFA!I15=\"Yüz Adet\",$N$7,ANASAYFA!I15))))))))","v":""}]
[20,null,null,null,14,{"$f":"CONCATENATE(ANASAYFA!F18,\" \",ANASAYFA!G18,\" \",ANASAYFA!H18,\" \",ANASAYFA!I18)","v":"   "},{"$f":"IF(ANASAYFA!P18,(ANASAYFA!P18*'Piy. Fi. Ar. Tut'!F40),\"\")","v":""},null,null,"Büro Personeli",null,0.08,null,null,{"$f":"IF(ANASAYFA!I16=\"\",\"\",\nIF(ANASAYFA!I16=\"Adet\",$N$1,\nIF(ANASAYFA!I16=\"Kg\",$N$2,\nIF(ANASAYFA!I16=\"Litre\",$N$3,\nIF(ANASAYFA!I16=\"Metre\",$N$4,\nIF(ANASAYFA!I16=\"Metrekare\",$N$5,\nIF(ANASAYFA!I16=\"Metreküp\",$N$6,\nIF(ANASAYFA!I16=\"Yüz Adet\",$N$7,ANASAYFA!I16))))))))","v":""}]
[null,null,null,null,15,{"$f":"CONCATENATE(ANASAYFA!F19,\" \",ANASAYFA!G19,\" \",ANASAYFA!H19,\" \",ANASAYFA!I19)","v":"   "},{"$f":"IF(ANASAYFA!P19,(ANASAYFA!P19*'Piy. Fi. Ar. Tut'!F41),\"\")","v":""},null,null,"V.H.K.İ",null,0.1,null,null,{"$f":"IF(ANASAYFA!I17=\"\",\"\",\nIF(ANASAYFA!I17=\"Adet\",$N$1,\nIF(ANASAYFA!I17=\"Kg\",$N$2,\nIF(ANASAYFA!I17=\"Litre\",$N$3,\nIF(ANASAYFA!I17=\"Metre\",$N$4,\nIF(ANASAYFA!I17=\"Metrekare\",$N$5,\nIF(ANASAYFA!I17=\"Metreküp\",$N$6,\nIF(ANASAYFA!I17=\"Yüz Adet\",$N$7,ANASAYFA!I17))))))))","v":""}]
[null,null,null,null,16,{"$f":"CONCATENATE(ANASAYFA!F20,\" \",ANASAYFA!G20,\" \",ANASAYFA!H20,\" \",ANASAYFA!I20)","v":"   "},{"$f":"IF(ANASAYFA!P20,(ANASAYFA!P20*'Piy. Fi. Ar. Tut'!F42),\"\")","v":""},null,null,"Hizmetli",null,0.18,null,null,{"$f":"IF(ANASAYFA!I18=\"\",\"\",\nIF(ANASAYFA!I18=\"Adet\",$N$1,\nIF(ANASAYFA!I18=\"Kg\",$N$2,\nIF(ANASAYFA!I18=\"Litre\",$N$3,\nIF(ANASAYFA!I18=\"Metre\",$N$4,\nIF(ANASAYFA!I18=\"Metrekare\",$N$5,\nIF(ANASAYFA!I18=\"Metreküp\",$N$6,\nIF(ANASAYFA!I18=\"Yüz Adet\",$N$7,ANASAYFA!I18))))))))","v":""}]
[null,null,null,null,17,{"$f":"CONCATENATE(ANASAYFA!F21,\" \",ANASAYFA!G21,\" \",ANASAYFA!H21,\" \",ANASAYFA!I21)","v":"   "},{"$f":"IF(ANASAYFA!P21,(ANASAYFA!P21*'Piy. Fi. Ar. Tut'!F43),\"\")","v":""},null,null,null,null,0.2,null,null,{"$f":"IF(ANASAYFA!I19=\"\",\"\",\nIF(ANASAYFA!I19=\"Adet\",$N$1,\nIF(ANASAYFA!I19=\"Kg\",$N$2,\nIF(ANASAYFA!I19=\"Litre\",$N$3,\nIF(ANASAYFA!I19=\"Metre\",$N$4,\nIF(ANASAYFA!I19=\"Metrekare\",$N$5,\nIF(ANASAYFA!I19=\"Metreküp\",$N$6,\nIF(ANASAYFA!I19=\"Yüz Adet\",$N$7,ANASAYFA!I19))))))))","v":""}]
[null,null,null,null,null,null,null,null,null,null,null,null,null,null,{"$f":"IF(ANASAYFA!I20=\"\",\"\",\nIF(ANASAYFA!I20=\"Adet\",$N$1,\nIF(ANASAYFA!I20=\"Kg\",$N$2,\nIF(ANASAYFA!I20=\"Litre\",$N$3,\nIF(ANASAYFA!I20=\"Metre\",$N$4,\nIF(ANASAYFA!I20=\"Metrekare\",$N$5,\nIF(ANASAYFA!I20=\"Metreküp\",$N$6,\nIF(ANASAYFA!I20=\"Yüz Adet\",$N$7,ANASAYFA!I20))))))))","v":""}]
[null,null,null,null,null,null,{"$f":"ANASAYFA!P22*'Piy. Fi. Ar. Tut'!F44","v":0}]
[]
[null,null,null,null,null,{"$f":"'Piy. Fi. Ar. Tut'!F44","v":0},null,null,null,{"$f":"_xlfn.IFNA(CONCATENATE(J29,\" \",J30),\" \")","v":"1 Adet"}]
[null,null,null,null,null,{"$f":"IF(F28>5000,\"Borcu Yoktur Belgesi\",\" \")","v":" "},null,null,null,{"$f":"IF(ISBLANK(ANASAYFA!H5),\" \",SUM(ANASAYFA!H5:'ANASAYFA'!H21))","v":1}]
[null,null,null,null,null,null,null,null,null,{"$f":"IF(ISBLANK(ANASAYFA!I5),\" \",ANASAYFA!I5)","v":"Adet"}]
[]
[null,null,null,"3. MAL VE HİZMET ALIM GİDERLERİ",null,null,"ABANA",null,"S","İSİM","1.","2.","3."]
[null,null,null,"3.1. ÜRETİME YÖNELİK MAL VE MALZEME ALIMLARI",null,null,"ACIGÖL",null,1,{"$f":"IF(ISBLANK(ANASAYFA!F5),\"\",ANASAYFA!F5)","v":"Ürün Adı"},{"$f":"IF(ISBLANK(ANASAYFA!J5),\"\",ANASAYFA!J5)","v":""},{"$f":"IF(ISBLANK(ANASAYFA!L5),\"\",ANASAYFA!L5)","v":""},{"$f":"IF(ISBLANK(ANASAYFA!N5),\"\",ANASAYFA!N5)","v":""},{"$f":"IF(ISBLANK(ANASAYFA!F5),\"\",ANASAYFA!$J$2)","v":0},{"$f":"IF(ISBLANK(ANASAYFA!F5),\"\",ANASAYFA!$L$2)","v":0},{"$f":"IF(ISBLANK(ANASAYFA!F5),\"\",ANASAYFA!$N$2)","v":0}]
[null,null,null,"3.1.1 Hammadde Alımları",null,null,"ACIPAYAM",null,2,{"$f":"IF(ISBLANK(ANASAYFA!F6),\"\",ANASAYFA!F6)","v":""},{"$f":"IF(ISBLANK(ANASAYFA!J6),\"\",ANASAYFA!J6)","v":""},{"$f":"IF(ISBLANK(ANASAYFA!L6),\"\",ANASAYFA!L6)","v":""},{"$f":"IF(ISBLANK(ANASAYFA!N6),\"\",ANASAYFA!N6)","v":""},{"$f":"IF(ISBLANK(ANASAYFA!F6),\"\",ANASAYFA!$J$2)","v":""},{"$f":"IF(ISBLANK(ANASAYFA!F6),\"\",ANASAYFA!$L$2)","v":""},{"$f":"IF(ISBLANK(ANASAYFA!F6),\"\",ANASAYFA!$N$2)","v":""}]
[null,null,null,"3.1.1.1. Hammadde Alımları",null,null,"ADAKLI",null,3,{"$f":"IF(ISBLANK(ANASAYFA!F7),\"\",ANASAYFA!F7)","v":""},{"$f":"IF(ISBLANK(ANASAYFA!J7),\"\",ANASAYFA!J7)","v":""},{"$f":"IF(ISBLANK(ANASAYFA!L7),\"\",ANASAYFA!L7)","v":""},{"$f":"IF(ISBLANK(ANASAYFA!N7),\"\",ANASAYFA!N7)","v":""},{"$f":"IF(ISBLANK(ANASAYFA!F7),\"\",ANASAYFA!$J$2)","v":""},{"$f":"IF(ISBLANK(ANASAYFA!F7),\"\",ANASAYFA!$L$2)","v":""},{"$f":"IF(ISBLANK(ANASAYFA!F7),\"\",ANASAYFA!$N$2)","v":""}]
[null,null,null,"3.1.2 Gıda Ürünleri İçecekler ve Tütün  Alımları",null,null,"ADALAR",null,4,{"$f":"IF(ISBLANK(ANASAYFA!F8),\"\",ANASAYFA!F8)","v":""},{"$f":"IF(ISBLANK(ANASAYFA!J8),\"\",ANASAYFA!J8)","v":""},{"$f":"IF(ISBLANK(ANASAYFA!L8),\"\",ANASAYFA!L8)","v":""},{"$f":"IF(ISBLANK(ANASAYFA!N8),\"\",ANASAYFA!N8)","v":""},{"$f":"IF(ISBLANK(ANASAYFA!F8),\"\",ANASAYFA!$J$2)","v":""},{"$f":"IF(ISBLANK(ANASAYFA!F8),\"\",ANASAYFA!$L$2)","v":""},{"$f":"IF(ISBLANK(ANASAYFA!F8),\"\",ANASAYFA!$N$2)","v":""}]
[null,null,null,"3.1.2.1. Gıda Ürünleri İçecekler ve Tütün  Alımları",null,null,"ADAPAZARI",null,5,{"$f":"IF(ISBLANK(ANASAYFA!F9),\"\",ANASAYFA!F9)","v":""},{"$f":"IF(ISBLANK(ANASAYFA!J9),\"\",ANASAYFA!J9)","v":""},{"$f":"IF(ISBLANK(ANASAYFA!L9),\"\",ANASAYFA!L9)","v":""},{"$f":"IF(ISBLANK(ANASAYFA!N9),\"\",ANASAYFA!N9)","v":""},{"$f":"IF(ISBLANK(ANASAYFA!F9),\"\",ANASAYFA!$J$2)","v":""},{"$f":"IF(ISBLANK(ANASAYFA!F9),\"\",ANASAYFA!$L$2)","v":""},{"$f":"IF(ISBLANK(ANASAYFA!F9),\"\",ANASAYFA!$N$2)","v":""}]
[null,null,null,"3.1.3 Tekstil ve Tekstil Ürünleri, Deri ve Deri Ürünleri  Alımları",null,null,"ADIYAMAN MERKEZ",null,6,{"$f":"IF(ISBLANK(ANASAYFA!F10),\"\",ANASAYFA!F10)","v":""},{"$f":"IF(ISBLANK(ANASAYFA!J10),\"\",ANASAYFA!J10)","v":""},{"$f":"IF(ISBLANK(ANASAYFA!L10),\"\",ANASAYFA!L10)","v":""},{"$f":"IF(ISBLANK(ANASAYFA!N10),\"\",ANASAYFA!N10)","v":""},{"$f":"IF(ISBLANK(ANASAYFA!F10),\"\",ANASAYFA!$J$2)","v":""},{"$f":"IF(ISBLANK(ANASAYFA!F10),\"\",ANASAYFA!$L$2)","v":""},{"$f":"IF(ISBLANK(ANASAYFA!F10),\"\",ANASAYFA!$N$2)","v":""}]
[null,null,null,"3.1.3.1. Tekstil ve Tekstil Ürünleri, Deri ve Deri Ürünleri  Alımları",null,null,"ADİLCEVAZ",null,7,{"$f":"IF(ISBLANK(ANASAYFA!F11),\"\",ANASAYFA!F11)","v":""},{"$f":"IF(ISBLANK(ANASAYFA!J11),\"\",ANASAYFA!J11)","v":""},{"$f":"IF(ISBLANK(ANASAYFA!L11),\"\",ANASAYFA!L11)","v":""},{"$f":"IF(ISBLANK(ANASAYFA!N11),\"\",ANASAYFA!N11)","v":""},{"$f":"IF(ISBLANK(ANASAYFA!F11),\"\",ANASAYFA!$J$2)","v":""},{"$f":"IF(ISBLANK(ANASAYFA!F11),\"\",ANASAYFA!$L$2)","v":""},{"$f":"IF(ISBLANK(ANASAYFA!F11),\"\",ANASAYFA!$N$2)","v":""}]
[null,null,null,"3.1.4 Kereste ve Kereste Ürünleri Alımları",null,null,"AFŞİN",null,8,{"$f":"IF(ISBLANK(ANASAYFA!F12),\"\",ANASAYFA!F12)","v":""},{"$f":"IF(ISBLANK(ANASAYFA!J12),\"\",ANASAYFA!J12)","v":""},{"$f":"IF(ISBLANK(ANASAYFA!L12),\"\",ANASAYFA!L12)","v":""},{"$f":"IF(ISBLANK(ANASAYFA!N12),\"\",ANASAYFA!N12)","v":""},{"$f":"IF(ISBLANK(ANASAYFA!F12),\"\",ANASAYFA!$J$2)","v":""},{"$f":"IF(ISBLANK(ANASAYFA!F12),\"\",ANASAYFA!$L$2)","v":""},{"$f":"IF(ISBLANK(ANASAYFA!F12),\"\",ANASAYFA!$N$2)","v":""}]
[null,null,null,"3.1.4.1. Kereste ve Kereste Ürünleri Alımları",null,null,"AFYON MERKEZ",null,9,{"$f":"IF(ISBLANK(ANASAYFA!F13),\"\",ANASAYFA!F13)","v":""},{"$f":"IF(ISBLANK(ANASAYFA!J13),\"\",ANASAYFA!J13)","v":""},{"$f":"IF(ISBLANK(ANASAYFA!L13),\"\",ANASAYFA!L13)","v":""},{"$f":"IF(ISBLANK(ANASAYFA!N13),\"\",ANASAYFA!N13)","v":""},{"$f":"IF(ISBLANK(ANASAYFA!F13),\"\",ANASAYFA!$J$2)","v":""},{"$f":"IF(ISBLANK(ANASAYFA!F13),\"\",ANASAYFA!$L$2)","v":""},{"$f":"IF(ISBLANK(ANASAYFA!F13),\"\",ANASAYFA!$N$2)","v":""}]
[null,null,null,"3.1.5 Kağıt ve Kağıt Ürünleri Alımları",null,null,"AĞAÇÖREN",null,10,{"$f":"IF(ISBLANK(ANASAYFA!F14),\"\",ANASAYFA!F14)","v":""},{"$f":"IF(ISBLANK(ANASAYFA!J14),\"\",ANASAYFA!J14)","v":""},{"$f":"IF(ISBLANK(ANASAYFA!L14),\"\",ANASAYFA!L14)","v":""},{"$f":"IF(ISBLANK(ANASAYFA!N14),\"\",ANASAYFA!N14)","v":""},{"$f":"IF(ISBLANK(ANASAYFA!F14),\"\",ANASAYFA!$J$2)","v":""},{"$f":"IF(ISBLANK(ANASAYFA!F14),\"\",ANASAYFA!$L$2)","v":""},{"$f":"IF(ISBLANK(ANASAYFA!F14),\"\",ANASAYFA!$N$2)","v":""}]
[null,null,null,"3.1.5.1. Kağıt ve Kağıt Ürünleri Alımları",null,null,"AĞIN",null,11,{"$f":"IF(ISBLANK(ANASAYFA!F15),\"\",ANASAYFA!F15)","v":""},{"$f":"IF(ISBLANK(ANASAYFA!J15),\"\",ANASAYFA!J15)","v":""},{"$f":"IF(ISBLANK(ANASAYFA!L15),\"\",ANASAYFA!L15)","v":""},{"$f":"IF(ISBLANK(ANASAYFA!N15),\"\",ANASAYFA!N15)","v":""},{"$f":"IF(ISBLANK(ANASAYFA!F15),\"\",ANASAYFA!$J$2)","v":""},{"$f":"IF(ISBLANK(ANASAYFA!F15),\"\",ANASAYFA!$L$2)","v":""},{"$f":"IF(ISBLANK(ANASAYFA!F15),\"\",ANASAYFA!$N$2)","v":""}]
[null,null,null,"3.1.6 Kimyevi Ürün Alımları",null,null,"AĞLASUN",null,12,{"$f":"IF(ISBLANK(ANASAYFA!F16),\"\",ANASAYFA!F16)","v":""},{"$f":"IF(ISBLANK(ANASAYFA!J16),\"\",ANASAYFA!J16)","v":""},{"$f":"IF(ISBLANK(ANASAYFA!L16),\"\",ANASAYFA!L16)","v":""},{"$f":"IF(ISBLANK(ANASAYFA!N16),\"\",ANASAYFA!N16)","v":""},{"$f":"IF(ISBLANK(ANASAYFA!F16),\"\",ANASAYFA!$J$2)","v":""},{"$f":"IF(ISBLANK(ANASAYFA!F16),\"\",ANASAYFA!$L$2)","v":""},{"$f":"IF(ISBLANK(ANASAYFA!F16),\"\",ANASAYFA!$N$2)","v":""}]
[null,null,null,"3.1.6.1. Kimyevi Ürün Alımları",null,null,"AĞLI",null,13,{"$f":"IF(ISBLANK(ANASAYFA!F17),\"\",ANASAYFA!F17)","v":""},{"$f":"IF(ISBLANK(ANASAYFA!J17),\"\",ANASAYFA!J17)","v":""},{"$f":"IF(ISBLANK(ANASAYFA!L17),\"\",ANASAYFA!L17)","v":""},{"$f":"IF(ISBLANK(ANASAYFA!N17),\"\",ANASAYFA!N17)","v":""},{"$f":"IF(ISBLANK(ANASAYFA!F17),\"\",ANASAYFA!$J$2)","v":""},{"$f":"IF(ISBLANK(ANASAYFA!F17),\"\",ANASAYFA!$L$2)","v":""},{"$f":"IF(ISBLANK(ANASAYFA!F17),\"\",ANASAYFA!$N$2)","v":""}]
[null,null,null,"3.1.7 Kauçuk ve Plastik Ürün  Alımları",null,null,"AĞRI MERKEZ",null,14,{"$f":"IF(ISBLANK(ANASAYFA!F18),\"\",ANASAYFA!F18)","v":""},{"$f":"IF(ISBLANK(ANASAYFA!J18),\"\",ANASAYFA!J18)","v":""},{"$f":"IF(ISBLANK(ANASAYFA!L18),\"\",ANASAYFA!L18)","v":""},{"$f":"IF(ISBLANK(ANASAYFA!N18),\"\",ANASAYFA!N18)","v":""},{"$f":"IF(ISBLANK(ANASAYFA!F18),\"\",ANASAYFA!$J$2)","v":""},{"$f":"IF(ISBLANK(ANASAYFA!F18),\"\",ANASAYFA!$L$2)","v":""},{"$f":"IF(ISBLANK(ANASAYFA!F18),\"\",ANASAYFA!$N$2)","v":""}]
[null,null,null,"3.1.7.1. Kauçuk ve Plastik Ürün  Alımları",null,null,"AHIRLI",null,15,{"$f":"IF(ISBLANK(ANASAYFA!F19),\"\",ANASAYFA!F19)","v":""},{"$f":"IF(ISBLANK(ANASAYFA!J19),\"\",ANASAYFA!J19)","v":""},{"$f":"IF(ISBLANK(ANASAYFA!L19),\"\",ANASAYFA!L19)","v":""},{"$f":"IF(ISBLANK(ANASAYFA!N19),\"\",ANASAYFA!N19)","v":""},{"$f":"IF(ISBLANK(ANASAYFA!F19),\"\",ANASAYFA!$J$2)","v":""},{"$f":"IF(ISBLANK(ANASAYFA!F19),\"\",ANASAYFA!$L$2)","v":""},{"$f":"IF(ISBLANK(ANASAYFA!F19),\"\",ANASAYFA!$N$2)","v":""}]
[null,null,null,"3.1.8 Metal Ürünü Alımları",null,null,"AHLAT",null,16,{"$f":"IF(ISBLANK(ANASAYFA!F20),\"\",ANASAYFA!F20)","v":""},{"$f":"IF(ISBLANK(ANASAYFA!J20),\"\",ANASAYFA!J20)","v":""},{"$f":"IF(ISBLANK(ANASAYFA!L20),\"\",ANASAYFA!L20)","v":""},{"$f":"IF(ISBLANK(ANASAYFA!N20),\"\",ANASAYFA!N20)","v":""},{"$f":"IF(ISBLANK(ANASAYFA!F20),\"\",ANASAYFA!$J$2)","v":""},{"$f":"IF(ISBLANK(ANASAYFA!F20),\"\",ANASAYFA!$L$2)","v":""},{"$f":"IF(ISBLANK(ANASAYFA!F20),\"\",ANASAYFA!$N$2)","v":""}]
[null,null,null,"3.1.8.1. Metal Ürünü Alımları",null,null,"AHMETLİ",null,17,{"$f":"IF(ISBLANK(ANASAYFA!F21),\"\",ANASAYFA!F21)","v":""},{"$f":"IF(ISBLANK(ANASAYFA!J21),\"\",ANASAYFA!J21)","v":""},{"$f":"IF(ISBLANK(ANASAYFA!L21),\"\",ANASAYFA!L21)","v":""},{"$f":"IF(ISBLANK(ANASAYFA!N21),\"\",ANASAYFA!N21)","v":""},{"$f":"IF(ISBLANK(ANASAYFA!F21),\"\",ANASAYFA!$J$2)","v":""},{"$f":"IF(ISBLANK(ANASAYFA!F21),\"\",ANASAYFA!$L$2)","v":""},{"$f":"IF(ISBLANK(ANASAYFA!F21),\"\",ANASAYFA!$N$2)","v":""}]
[null,null,null,"3.1.9 Diğer Mal ve Malzeme  Alımları",null,null,"AKÇAABAT"]
[null,null,null,"3.1.9.1. Diğer Mal ve Malzeme  Alımları",null,null,"AKÇADAĞ"]
[null,null,null,"3.2. TÜKETİME YÖNELİK MAL VE MALZEME ALIMLARI",null,null,"AKÇAKALE"]
[null,null,null,"3.2.1 Kırtasiye ve Büro Malzemesi  Alımları",null,null,"AKÇAKENT"]
[null,null,null,"3.2.1.1. Kırtasiye Alımları",null,null,"AKÇAKOCA"]
[null,null,null,"3.2.1.2. Büro  Malzemesi Alımları",null,null,"AKDAĞMADENİ"]
[null,null,null,"3.2.1.3. Periyodik Yayın Alımları",null,null,"AKDENİZ"]
[null,null,null,"3.2.1.4. Diğer Yayın Alımları",null,null,"AKHİSAR"]
[null,null,null,"3.2.1.5. Baskı ve Cilt Giderleri",null,null,"AKINCILAR"]
[null,null,null,"3.2.1.90. Diğer Kırtasiye ve Büro Malzemesi Alımları",null,null,"AKKIŞLA"]
[null,null,null,"3.2.2 Su ve Temizlik Malzemesi Alımları",null,null,"AKKÖY"]
[null,null,null,"3.2.2.1. Su Alımları",null,null,"AKKUŞ"]
[null,null,null,"3.2.2.2. Temizlik Malzemesi Alımları",null,null,"AKÖREN"]
[null,null,null,"3.2.3 Enerji Alımları",null,null,"AKPINAR"]
[null,null,null,"3.2.3.1. Yakacak  Alımları",null,null,"AKSARAY MERKEZ"]
[null,null,null,"3.2.3.2. Akaryakıt ve Yağ  Alımları",null,null,"AKSEKİ"]
[null,null,null,"3.2.3.3. Elektrik Alımları",null,null,"AKSU"]
[null,null,null,"3.2.3.90. Diğer Enerji Alımları",null,null,"AKSU/ANTALYA"]
[null,null,null,"3.2.4 Yiyecek, İçecek ve Yem Alımları",null,null,"AKŞEHİR"]
[null,null,null,"3.2.4.1. Yiyecek Alımları ",null,null,"AKYAKA"]
[null,null,null,"3.2.4.2. İçecek Alımları",null,null,"AKYAZI"]
[null,null,null,"3.2.4.3. Yem Alımları",null,null,"AKYURT"]
[null,null,null,"3.2.4.90. Diğer Yiyecek, İçecek ve Yem Alımları",null,null,"ALACA"]
[null,null,null,"3.2.5 Giyim ve Kuşam Alımları",null,null,"ALACAKAYA"]
[null,null,null,"3.2.5.1. Giyecek Alımları  ",null,null,"ALAÇAM"]
[null,null,null,"3.2.5.2. Spor Malzemeleri Alımları",null,null,"ALADAĞ"]
[null,null,null,"3.2.5.3. Tören Malzemeleri Alımları",null,null,"ALANYA"]
[null,null,null,"3.2.5.4. Bando Malzemeleri Alımları",null,null,"ALAPLI"]
[null,null,null,"3.2.5.5. Kuşam Alımları  ",null,null,"ALAŞEHİR"]
[null,null,null,"3.2.5.90. Diğer Giyim ve Kuşam Alımları",null,null,"ALİAĞA"]
[null,null,null,"3.2.6 Özel Malzeme Alımları",null,null,"ALMUS"]
[null,null,null,"3.2.6.1. Laboratuvar Malzemesi ile Kimyevi ve Temrinlik Malzeme Alımları",null,null,"ALPU"]
[null,null,null,"3.2.6.2. Tıbbi Malzeme ve İlaç Alımları",null,null,"ALTINDAĞ"]
[null,null,null,"3.2.6.3. Zirai Malzeme ve İlaç Alımları",null,null,"ALTINEKİN"]
[null,null,null,"3.2.6.4. Canlı Hayvan Alım, Bakım ve Diğer Giderleri",null,null,"ALTINOVA"]
[null,null,null,"3.2.6.90. Diğer Özel Malzeme Alımları",null,null,"ALTINÖZÜ"]
[null,null,null,"3.2.9 Diğer Tüketim Mal ve Malzemesi Alımları",null,null,"ALTINTAŞ"]
[null,null,null,"3.2.9.1. Bahçe Malzemesi Alımları ile Yapım ve Bakım Giderleri",null,null,"ALTINYAYLA"]
[null,null,null,"3.2.9.90. Diğer Tüketim Mal ve Malzemesi Alımları",null,null,"ALTINYAYLA"]
[null,null,null,"3.5. HİZMET ALIMLARI",null,null,"ALTUNHİSAR"]
[null,null,null,"3.5.1 Müşavir Firma ve Kişilere Ödemeler",null,null,"ALUCRA"]
[null,null,null,"3.5.1.1. Etüt-Proje Bilirkişi Ekspertiz Giderleri",null,null,"AMASRA"]
[null,null,null,"3.5.1.10. İş sağlığı ve Güvenliği Hizmeti Alım Giderleri",null,null,"AMASYA MERKEZ"]
[null,null,null,"3.5.1.12. Çağrı Merkezi Hizmeti Alım Giderleri",null,null,"ANAMUR"]
[null,null,null,"3.5.1.2. Araştırma ve Geliştirme Giderleri",null,null,"ANDIRIN"]
[null,null,null,"3.5.1.3. Bilgisayar Hizmeti Alımları",null,null,"ANKARA"]
[null,null,null,"3.5.1.4. Müteahhitlik Hizmetleri",null,null,"ANTALYA MERKEZ"]
[null,null,null,"3.5.1.5. Harita Yapım ve Alım Giderleri",null,null,"ARABAN"]
[null,null,null,"3.5.1.6. Enformasyon ve Raporlama Giderleri",null,null,"ARAÇ"]
[null,null,null,"3.5.1.7. Danışma Yönetim ve İşletim Giderleri",null,null,"ARAKLI"]
[null,null,null,"3.5.1.90. Diğer Müşavir Firma ve Kişilere Ödemeler",null,null,"ARALIK"]
[null,null,null,"3.5.2 Haberleşme Giderleri",null,null,"ARAPGİR"]
[null,null,null,"3.5.2.1. Posta ve Telgraf Giderleri",null,null,"ARDAHAN MERKEZ"]
[null,null,null,"3.5.2.2. Telefon Abonelik ve Kullanım Ücretleri",null,null,"ARDANUÇ"]
[null,null,null,"3.5.2.3. Bilgiye Abonelik ve İnternet Erişimi Giderleri",null,null,"ARDEŞEN"]
[null,null,null,"3.5.2.4. Haberleşme Cihazları Ruhsat ve Kullanım Giderleri",null,null,"ARGUVAN"]
[null,null,null,"3.5.2.5. Uydu Haberleşme Giderleri",null,null,"ARHAVİ"]
[null,null,null,"3.5.2.6. Hat Kira Giderleri",null,null,"ARICAK"]
[null,null,null,"3.5.2.90. Diğer Haberleşme Giderleri",null,null,"ARİFİYE"]
[null,null,null,"3.5.3 Taşıma Giderleri",null,null,"ARMUTLU"]
[null,null,null,"3.5.3.1. Taşımaya İlişkin Beslenme, Barındırma Giderleri",null,null,"ARNAVUTKÖY"]
[null,null,null,"3.5.3.2. Yolcu Taşıma Giderleri",null,null,"ARPAÇAY"]
[null,null,null,"3.5.3.3. Yük Taşıma Giderleri",null,null,"ARSİN"]
[null,null,null,"3.5.3.4. Geçiş Ücretleri",null,null,"ARTOVA"]
[null,null,null,"3.5.3.90. Diğer Taşıma Giderleri",null,null,"ARTVİN MERKEZ"]
[null,null,null,"3.5.4 Tarifeye Bağlı Ödemeler",null,null,"ASARCIK"]
[null,null,null,"3.5.4.1. İlan Giderleri",null,null,"ASLANAPA"]
[null,null,null,"3.5.4.2. Sigorta Giderleri",null,null,"AŞKALE"]
[null,null,null,"3.5.4.3. Komisyon Giderleri",null,null,"ATABEY"]
[null,null,null,"3.5.4.90. Diğer Tarifeye Bağlı Ödemeler",null,null,"ATAKUM"]
[null,null,null,"3.5.5 Kiralar",null,null,"ATAŞEHİR"]
[null,null,null,"3.5.5.1. Dayanıklı Mal ve Malzeme Kiralaması Giderleri",null,null,"ATKARACALAR"]
[null,null,null,"3.5.5.10. Bilgisayar, Bilgisayar Sistemleri ve Yazılımları Kiralaması Giderleri",null,null,"AVANOS"]
[null,null,null,"3.5.5.11. Tersane Kiralaması Giderleri",null,null,"AVCILAR"]
[null,null,null,"3.5.5.12. Personel Servisi Kiralama Giderleri",null,null,"AYANCIK"]
[null,null,null,"3.5.5.2. Taşıt Kiralaması Giderleri",null,null,"AYAŞ"]
[null,null,null,"3.5.5.3. İş Makinası Kiralaması Giderleri",null,null,"AYBASTI"]
[null,null,null,"3.5.5.4. Canlı Hayvan Kiralaması Giderleri",null,null,"AYDIN MERKEZ"]
[null,null,null,"3.5.5.5. Hizmet Binası Kiralama Giderleri",null,null,"AYDINCIK"]
[null,null,null,"3.5.5.6. Lojman Kiralama Giderleri",null,null,"AYDINCIK"]
[null,null,null,"3.5.5.7. Arsa ve Arazi Kiralaması Giderleri",null,null,"AYDINLAR"]
[null,null,null,"3.5.5.8. Yüzer Taşıt Kiralaması Giderleri",null,null,"AYDINTEPE"]
[null,null,null,"3.5.5.9. Hava Taşıtı Kiralaması Giderleri",null,null,"AYRANCI"]
[null,null,null,"3.5.5.90. Diğer Kiralama Giderleri",null,null,"AYVACIK"]
[null,null,null,"3.5.6 Devlet Borçları Genel Giderleri",null,null,"AYVACIK"]
[null,null,null,"3.5.6.1. İç Borçlanma Hazine Bonosu Genel Giderleri",null,null,"AYVALIK"]
[null,null,null,"3.5.6.2. İç Borçlanma Devlet Tahvili Genel  Giderleri",null,null,"AZDAVAY"]
[null,null,null,"3.5.6.3. Dış Borçlanma Genel Giderleri",null,null,"BABADAĞ"]
[null,null,null,"3.5.6.4. Hazine İşlemleri Diğer Genel Giderleri",null,null,"BABAESKİ"]
[null,null,null,"3.5.6.51. Mahalli İdarelerin İç Borçlanma Genel Giderleri",null,null,"BAFRA"]
[null,null,null,"3.5.6.52. Mahalli İdarelerin Dış Borçlanma Genel Giderleri",null,null,"BAĞCILAR"]
[null,null,null,"3.5.7 Yargılama Giderleri",null,null,"BAĞLAR"]
[null,null,null,"3.5.7.1. Adli Yardım Giderleri",null,null,"BAHÇE"]
[null,null,null,"3.5.7.2. Keşif Giderleri",null,null,"BAHÇELİEVLER"]
[null,null,null,"3.5.7.3. Rapor ve Bilirkişi Giderleri",null,null,"BAHÇESARAY"]
[null,null,null,"3.5.7.4. Uzlaşma Giderleri",null,null,"BAHŞİLİ"]
[null,null,null,"3.5.7.5. Arabuluculuk Ücreti Giderleri",null,null,"BAKIRKÖY"]
[null,null,null,"3.5.7.90. Diğer Yargılama Giderleri",null,null,"BAKLAN"]
[null,null,null,"3.5.9 Diğer Hizmet Alımları",null,null,"BALÂ"]
[null,null,null,"3.5.9.1. Yurtiçi Staj ve Öğrenim Giderleri",null,null,"BALÇOVA"]
[null,null,null,"3.5.9.10. Lojman İşletme Maliyetlerine Katılım Giderleri ",null,null,"BALIKESİR MERKEZ"]
[null,null,null,"3.5.9.11. Diğer Binaların İşletme Maliyetlerine Katılım Giderleri ",null,null,"BALIŞEYH"]
[null,null,null,"3.5.9.2. Yurtdışı Staj ve Öğrenim Giderleri",null,null,"BALYA"]
[null,null,null,"3.5.9.3. Kurslara Katılma ve Eğitim Giderleri",null,null,"BANAZ"]
[null,null,null,"3.5.9.4. Öğretim Üyesi Yetiştirme Projesi Giderleri",null,null,"BANDIRMA"]
[null,null,null,"3.5.9.90. Diğer Hizmet Alımları",null,null,"BARTIN MERKEZ"]
[null,null,null,"3.6. TEMSİL VE TANITMA GİDERLERİ",null,null,"BASKİL"]
[null,null,null,"3.6.1 Temsil Giderleri",null,null,"BAŞAKŞEHİR"]
[null,null,null,"3.6.1.1. Temsil, Ağırlama, Tören, Fuar, Organizasyon Giderleri",null,null,"BAŞÇİFTLİK"]
[null,null,null,"3.6.2 Tanıtma Giderleri",null,null,"BAŞİSKELE"]
[null,null,null,"3.6.2.1. Tanıtma, Ağırlama, Tören, Fuar, Organizasyon Giderleri",null,null,"BAŞKALE"]
[null,null,null,"3.7. MENKUL MAL,GAYRİMADDİ HAK ALIM, BAKIM VE ONARIM GİDERLERİ",null,null,"BAŞMAKÇI"]
[null,null,null,"3.7.1 Menkul Mal  Alım Giderleri",null,null,"BAŞYAYLA"]
[null,null,null,"3.7.1.1. Büro ve İşyeri Mal ve Malzeme Alımları",null,null,"BATMAN MERKEZ"]
[null,null,null,"3.7.1.2. Büro ve İşyeri Makine ve Techizat Alımları",null,null,"BATTALGAZİ"]
[null,null,null,"3.7.1.3. Avadanlık ve Yedek Parça Alımları ",null,null,"BAYAT"]
[null,null,null,"3.7.1.4. Yangından Korunma Malzemeleri Alımları",null,null,"BAYAT"]
[null,null,null,"3.7.1.90. Diğer Dayanıklı Mal ve Malzeme Alımları",null,null,"BAYBURT MERKEZ"]
[null,null,null,"3.7.2 Gayri Maddi Hak Alımları",null,null,"BAYINDIR"]
[null,null,null,"3.7.2.1. Bilgisayar Yazılım Alımları ve Yapımları",null,null,"BAYKAN"]
[null,null,null,"3.7.2.2. Fikri Hak Alımları",null,null,"BAYRAKLI"]
[null,null,null,"3.7.2.90. Diğer Gayri Maddi Hak Alımları",null,null,"BAYRAMİÇ"]
[null,null,null,"3.7.3 Bakım ve Onarım Giderleri",null,null,"BAYRAMÖREN"]
[null,null,null,"3.7.3.1. Tefrişat Bakım ve Onarım Giderleri",null,null,"BAYRAMPAŞA"]
[null,null,null,"3.7.3.2. Makine Teçhizat Bakım ve Onarım Giderleri",null,null,"BEKİLLİ"]
[null,null,null,"3.7.3.3. Taşıt Bakım ve Onarım Giderleri",null,null,"BELEN"]
[null,null,null,"3.7.3.4. İş Makinası Onarım Giderleri",null,null,"BERGAMA"]
[null,null,null,"3.7.3.90. Diğer Bakım ve Onarım Giderleri",null,null,"BESNİ"]
[null,null,null,"3.8. GAYRİMENKUL MAL BAKIM VE ONARIM GİDERLERİ",null,null,"BEŞİKDÜZÜ"]
[null,null,null,"3.8.1 Hizmet Binası  Bakım ve Onarım Giderleri",null,null,"BEŞİKTAŞ"]
[null,null,null,"3.8.1.1. Büro Bakım ve Onarımı Giderleri",null,null,"BEŞİRİ"]
[null,null,null,"3.8.1.2. Okul Bakım ve Onarımı Giderleri",null,null,"BEYAĞAÇ"]
[null,null,null,"3.8.1.3. Hastane Bakım ve Onarımı Giderleri",null,null,"BEYDAĞ"]
[null,null,null,"3.8.1.4. Atölye ve Tesis Binaları Bakım ve Onarımı Giderleri",null,null,"BEYKOZ"]
[null,null,null,"3.8.1.90. Diğer Hizmet Binası  Bakım ve Onarım Giderleri",null,null,"BEYLİKDÜZÜ"]
[null,null,null,"3.8.2 Lojman  Bakım ve Onarımı Giderleri",null,null,"BEYLİKOVA"]
[null,null,null,"3.8.2.1. Lojman Bakım ve Onarımı Giderleri",null,null,"BEYOĞLU"]
[null,null,null,"3.8.3 Sosyal Tesis  Bakım ve Onarımı Giderleri",null,null,"BEYPAZARI"]
[null,null,null,"3.8.3.1. Sosyal Tesis  Bakım ve Onarımı Giderleri",null,null,"BEYŞEHİR"]
[null,null,null,"6.SERMAYE GİDERLERİ",null,null,"BEYTÜŞŞEBAP"]
[null,null,null,"6.1.MAMUL MAL ALIMLARI",null,null,"BİGA"]
[null,null,null,"6.1.1.Büro ve İşyeri Mefruşatı Alımları",null,null,"BİGADİÇ"]
[null,null,null,"6.1.1.1.Büro Mefruşatı Alımları",null,null,"BİLECİK MERKEZ"]
[null,null,null,"6.1.1.2.İşyeri Mefruşatı Alımları ",null,null,"BİNGÖL MERKEZ"]
[null,null,null,"6.1.1.3.Okul Mefruşatı Alımları",null,null,"BİRECİK"]
[null,null,null,"6.1.1.4.Hastane Mefruşatı Alımları",null,null,"BİSMİL"]
[null,null,null,"6.1.1.5.Sosyal Tesis Mefruşatı Alımları",null,null,"BİTLİS MERKEZ"]
[null,null,null,"6.1.1.90.Diğer Mefruşat Alımları",null,null,"BODRUM"]
[null,null,null,"6.1.2..Büro ve İşyeri Makine Teçhizat Alımları",null,null,"BOĞAZKALE"]
[null,null,null,"6.1.2.1.Büro Makinaları Alımları ",null,null,"BOĞAZLIYAN"]
[null,null,null,"6.1.2.2.Bilgisayar Alımları",null,null,"BOLU MERKEZ"]
[null,null,null,"6.1.2.3.Tıbbi Cihaz Alımları",null,null,"BOLVADİN"]
[null,null,null,"6.1.2.4.Laboratuar Cihazı Alımları",null,null,"BOR"]
[null,null,null,"6.1.2.5.İşyeri Makine Teçhizat Alımları",null,null,"BORÇKA"]
[null,null,null,"6.1.2.90.Diğer Makine Teçhizat Alımları",null,null,"BORNOVA"]
[null,null,null,"6.1.3..Avadanlık Alımları",null,null,"BOYABAT"]
[null,null,null,"6.1.3.1.Tamir Bakım Aleti Alımları",null,null,"BOZCAADA"]
[null,null,null,"6.1.3.2.Atölye Gereçleri Alımları",null,null,"BOZDOĞAN"]
[null,null,null,"6.1.3.3.Tıbbi Gereçler Alımları",null,null,"BOZKIR"]
[null,null,null,"6.1.3.4.Laboratuar Gereçleri Alımları",null,null,"BOZKURT"]
[null,null,null,"6.1.3.5.Zirai Gereç Alımları",null,null,"BOZKURT"]
[null,null,null,"6.1.3.90.Diğer Avadanlık Alımları",null,null,"BOZOVA"]
[null,null,null,"6.1.4..Taşıt Alımları",null,null,"BOZTEPE"]
[null,null,null,"6.1.4.1.Kara Taşıtı  Alımları   ",null,null,"BOZÜYÜK"]
[null,null,null,"6.1.4.30.Demiryolu Taşıtı  Alımları",null,null,"BOZYAZI"]
[null,null,null,"6.1.4.40.Deniz ve Suyolu Taşıtı  Alımları",null,null,"BUCA"]
[null,null,null,"6.1.4.41.İmal Ettirilecek Deniz ve Suyolu Taşıtları",null,null,"BUCAK"]
[null,null,null,"6.1.4.50.Denizaltı Taşıtı  Alımları",null,null,"BUHARKENT"]
[null,null,null,"6.1.4.60.Havayolu Taşıtı  Alımları",null,null,"BULANCAK"]
[null,null,null,"6.1.4.70.Uzay Taşıtı  Alımları",null,null,"BULANIK"]
[null,null,null,"6.1.4.90.Diğer Taşıt Alımları",null,null,"BULDAN"]
[null,null,null,"6.1.5..İş Makinası Alımları",null,null,"BURDUR MERKEZ"]
[null,null,null,"6.1.5.1.Sabit iş Makinası Alımları",null,null,"BURHANİYE"]
[null,null,null,"6.1.5.30.Hareketli İş Makinası Alımları",null,null,"BURSA MERKEZ"]
[null,null,null,"6.1.6..Yayın Alımları ve Yapımları",null,null,"BÜNYAN"]
[null,null,null,"6.1.6.1.Basılı Yayın Alımları ve Yapımları",null,null,"BÜYÜKÇEKMECE"]
[null,null,null,"6.1.6.2.El Yazması Alımları ve Yapımları",null,null,"BÜYÜKORHAN"]
[null,null,null,"6.1.6.3.Elektronik Ortamda Yayın Alımları ve Yapımları",null,null,"CANİK"]
[null,null,null,"6.1.6.4.Görüntülü Yayın Alımları ve Yapımları",null,null,"CEYHAN"]
[null,null,null,"6.1.6.90.Diğer Yayın Alımları ve Yapımları",null,null,"CEYLANPINAR"]
[null,null,null,"6.1.7..Kültür Varlığı Yapımları, Alımları ve Korunması Giderleri",null,null,"CİDE"]
[null,null,null,"6.1.7.1.Arkeolojik Kazı Giderleri",null,null,"CİHANBEYLİ"]
[null,null,null,"6.1.7.2.Tablo-Heykel Yapım, Alım ve Onarımları",null,null,"CİZRE"]
[null,null,null,"6.1.7.3.Eski Eser Alım ve Onarımları",null,null,"CUMAYERİ"]
[null,null,null,"6.1.7.90.Diğer Kültür Varlığı Yapım, Alım ve Korunması Giderleri",null,null,"ÇAĞLIYANCERİT"]
[null,null,null,"6.2. MENKUL SERMAYE ÜRETİM GİDERLERİ",null,null,"ÇAL"]
[null,null,null,"6.2.1 Müşavir Firma ve Kişilere Ödemeler",null,null,"ÇALDIRAN"]
[null,null,null,"6.2.1.1. Proje Giderleri",null,null,"ÇAMARDI"]
[null,null,null,"6.2.1.2. Müşavirlik Giderleri",null,null,"ÇAMAŞ"]
[null,null,null,"6.2.1.3. Kontrol Giderleri",null,null,"ÇAMELİ"]
[null,null,null,"6.2.1.90. Diğer Giderler",null,null,"ÇAMLIDERE"]
[null,null,null,"6.2.2 Hammadde Alımları",null,null,"ÇAMLIHEMŞİN"]
[null,null,null,"6.2.2.1. Hammadde Alımları",null,null,"ÇAMLIYAYLA"]
[null,null,null,"6.2.3 Gıda Ürünleri, İçecekler ve Tütün  Alımları",null,null,"ÇAMOLUK"]
[null,null,null,"6.2.3.1. Gıda Ürünleri, İçecekler ve Tütün  Alımları",null,null,"ÇAN"]
[null,null,null,"6.2.4 Tekstil ve Tekstil Ürünleri, Deri ve Deri Ürünleri  Alımları",null,null,"ÇANAKÇI"]
[null,null,null,"6.2.4.1. Tekstil ve Tekstil Ürünleri, Deri ve Deri Ürünleri  Alımları",null,null,"ÇANAKKALE MERKEZ"]
[null,null,null,"6.2.5 Kereste ve Kereste Ürünleri  Alımları",null,null,"ÇANDIR"]
[null,null,null,"6.2.5.1. Kereste ve Kereste Ürünleri  Alımları",null,null,"ÇANKAYA"]
[null,null,null,"6.2.6 Kağıt ve Kağıt Ürünleri  Alımları",null,null,"ÇANKIRI MERKEZ"]
[null,null,null,"6.2.6.1. Kağıt ve Kağıt Ürünleri  Alımları",null,null,"ÇARDAK"]
[null,null,null,"6.2.7 Kimyevi Madde İle Kauçuk ve Plastik Ürün  Alımları",null,null,"ÇARŞAMBA"]
[null,null,null,"6.2.7.1. Kimyevi Madde İle Kauçuk ve Plastik Ürün  Alımları",null,null,"ÇARŞIBAŞI"]
[null,null,null,"6.2.8 Metal Ürün  Alımları",null,null,"ÇAT"]
[null,null,null,"6.2.8.1. Metal Ürün  Alımları",null,null,"ÇATAK"]
[null,null,null,"6.2.9 Diğer Alımlar",null,null,"ÇATALCA"]
[null,null,null,"6.2.9.1. Diğer Alımlar",null,null,"ÇATALPINAR"]
[null,null,null,"6.3. GAYRİ MADDİ HAK ALIMLARI",null,null,"ÇATALZEYTİN"]
[null,null,null,"6.3.1 Bilgisayar Yazılımı Alımları",null,null,"ÇAVDARHİSAR"]
[null,null,null,"6.3.1.1. Bilgisayar Yazılımı Alımları",null,null,"ÇAVDIR"]
[null,null,null,"6.3.2 Harita Plan Proje Alımları",null,null,"ÇAY"]
[null,null,null,"6.3.2.1. Harita Alımları",null,null,"ÇAYBAŞI"]
[null,null,null,"6.3.2.2. Plan Proje Alımları",null,null,"ÇAYCUMA"]
[null,null,null,"6.3.3 Lisans Alımları",null,null,"ÇAYELİ"]
[null,null,null,"6.3.3.1. Lisans Alımları",null,null,"ÇAYIRALAN"]
[null,null,null,"6.3.4 Patent Alımları",null,null,"ÇAYIRLI"]
[null,null,null,"6.3.4.1. Patent Alımları",null,null,"ÇAYIROVA"]
[null,null,null,"6.3.9 Diğer Fikri Hak Alımları",null,null,"ÇAYKARA"]
[null,null,null,"6.3.9.1. Diğer Fikri Hak Alımları",null,null,"ÇEKEREK"]
[null,null,null,"6.5. GAYRİMENKUL SERMAYE ÜRETİM GİDERLERİ",null,null,"ÇEKMEKÖY"]
[null,null,null,"6.5.1 Müşavir Firma ve Kişilere Ödemeler",null,null,"ÇELEBİ"]
[null,null,null,"6.5.1.1. Proje Giderleri",null,null,"ÇELİKHAN"]
[null,null,null,"6.5.1.2. Müşavirlik Giderleri",null,null,"ÇELTİK"]
[null,null,null,"6.5.1.3. Kontrol Giderleri",null,null,"ÇELTİKÇİ"]
[null,null,null,"6.5.1.90. Diğer Giderler",null,null,"ÇEMİŞGEZEK"]
[null,null,null,"6.5.2 Malzeme Giderleri",null,null,"ÇERKEŞ"]
[null,null,null,"6.5.2.1. İnşaat Malzemesi Giderleri",null,null,"ÇERKEZKÖY"]
[null,null,null,"6.5.2.2. Elektrik Tesisatı Giderleri",null,null,"ÇERMİK"]
[null,null,null,"6.5.2.3. Sıhhi Tesisat Giderleri",null,null,"ÇEŞME"]
[null,null,null,"6.5.2.4. Özel Tesisat Giderleri",null,null,"ÇILDIR"]
[null,null,null,"6.5.2.90. Diğer Giderler",null,null,"ÇINAR"]
[null,null,null,"6.5.3 Taşıma Giderleri",null,null,"ÇINARCIK"]
[null,null,null,"6.5.3.1. Taşımaya ilişkin Beslenme, Barındırma Giderleri",null,null,"ÇİÇEKDAĞI"]
[null,null,null,"6.5.3.2. Yolcu Taşıma Giderleri",null,null,"ÇİFTELER"]
[null,null,null,"6.5.3.3. Yük Taşıma Giderleri",null,null,"ÇİFTLİK"]
[null,null,null,"6.5.3.90. Diğer Taşıma Giderleri",null,null,"ÇİFTLİKKÖY"]
[null,null,null,"6.5.4 Enerji Giderleri",null,null,"ÇİĞLİ"]
[null,null,null,"6.5.4.1. Yakacak  Alımları",null,null,"ÇİLİMLİ"]
[null,null,null,"6.5.4.2. Akaryakıt ve Yağ  Alımları",null,null,"ÇİNE"]
[null,null,null,"6.5.4.3. Elektrik Alımları",null,null,"ÇİVRİL"]
[null,null,null,"6.5.4.90. Diğer Enerji Alımları",null,null,"ÇOBANLAR"]
[null,null,null,"6.5.5 Haberleşme Giderleri",null,null,"ÇORLU"]
[null,null,null,"6.5.5.1. Posta ve Telgraf Giderleri",null,null,"ÇORUM MERKEZ"]
[null,null,null,"6.5.5.2. Telefon Abonelik ve Kullanım Ücretleri",null,null,"ÇUBUK"]
[null,null,null,"6.5.5.3. Bilgiye Abonelik ve İnternet Erişimi Giderleri",null,null,"ÇUKURCA"]
[null,null,null,"6.5.5.4. Haberleşme Cihazları Ruhsat ve Kullanım Giderleri",null,null,"ÇUKUROVA"]
[null,null,null,"6.5.5.5. Uydu Haberleşme Giderleri",null,null,"ÇUMRA"]
[null,null,null,"6.5.5.6. Hat Kira Giderleri",null,null,"ÇÜNGÜŞ"]
[null,null,null,"6.5.5.90. Diğer Haberleşme Giderleri",null,null,"DADAY"]
[null,null,null,"6.5.6 Kira Giderleri",null,null,"DALAMAN"]
[null,null,null,"6.5.6.1. Dayanıklı Mal ve Malzeme Kiralaması Giderleri",null,null,"DAMAL"]
[null,null,null,"6.5.6.10. Yüzer Tersane Kiralaması Giderleri",null,null,"DARENDE"]
[null,null,null,"6.5.6.2. Taşıt Kiralaması Giderleri",null,null,"DARGEÇİT"]
[null,null,null,"6.5.6.3. İş Makinası Kiralaması Giderleri",null,null,"DARICA"]
[null,null,null,"6.5.6.4. Canlı Hayvan Kiralaması Giderleri",null,null,"DATÇA"]
[null,null,null,"6.5.6.5. Bina Kiralaması Giderleri",null,null,"DAZKIRI"]
[null,null,null,"6.5.6.6. Arazi Kiralaması Giderleri",null,null,"DELİCE"]
[null,null,null,"6.5.6.7. Yüzer Taşıt Kiralaması Giderleri",null,null,"DEMİRCİ"]
[null,null,null,"6.5.6.8. Uçak Kiralaması Giderleri",null,null,"DEMİRKÖY"]
[null,null,null,"6.5.6.9. Bilgisayar ve Bilgisayar Sistemleri Kiralaması Giderleri",null,null,"DEMİRÖZÜ"]
[null,null,null,"6.5.6.90. Diğer Kiralamalar",null,null,"DENİZLİ MERKEZ"]
[null,null,null,"6.5.9.1. Diğer Giderler",null,null,"DERBENT"]
[null,null,null,"6.6. MENKUL MALLARIN BÜYÜK ONARIM GİDERLERİ",null,null,"DEREBUCAK"]
[null,null,null,"6.6.1 Müşavir Firma ve Kişilere Ödemeler",null,null,"DERELİ"]
[null,null,null,"6.6.1.1. Proje Giderleri",null,null,"DEREPAZARI"]
[null,null,null,"6.6.1.2. Müşavirlik Giderleri",null,null,"DERİK"]
[null,null,null,"6.6.1.3. Kontrol Giderleri",null,null,"DERİNCE"]
[null,null,null,"6.6.1.90. Diğer Giderler",null,null,"DERİNKUYU"]
[null,null,null,"6.6.2 Malzeme Giderleri",null,null,"DERNEKPAZARI"]
[null,null,null,"6.6.2.1. Malzeme Giderleri",null,null,"DEVELİ"]
[null,null,null,"6.6.3 Taşıma Giderleri",null,null,"DEVREK"]
[null,null,null,"6.6.3.1. Taşımaya ilişkin Beslenme, Barındırma Giderleri",null,null,"DEVREKÂNİ"]
[null,null,null,"6.6.3.2. Yolcu Taşıma Giderleri",null,null,"DİCLE"]
[null,null,null,"6.6.3.3. Yük Taşıma Giderleri",null,null,"DİDİM (YENİHİSAR)"]
[null,null,null,"6.6.3.90. Diğer Taşıma Giderleri",null,null,"DİGOR"]
[null,null,null,"6.6.4 Enerji Giderleri",null,null,"DİKİLİ"]
[null,null,null,"6.6.4.1. Yakacak  Alımları",null,null,"DİKMEN"]
[null,null,null,"6.6.4.2. Akaryakıt ve Yağ  Alımları",null,null,"DİLOVASI"]
[null,null,null,"6.6.4.3. Elektrik Alımları",null,null,"DİNAR"]
[null,null,null,"6.6.4.90. Diğer Enerji Alımları",null,null,"DİVRİĞİ"]
[null,null,null,"6.6.5 Haberleşme Giderleri",null,null,"DİYADİN"]
[null,null,null,"6.6.5.1. Posta ve Telgraf Giderleri",null,null,"DİYARBAKIR MERKEZ"]
[null,null,null,"6.6.5.2. Telefon Abonelik ve Kullanım Ücretleri",null,null,"DODURGA"]
[null,null,null,"6.6.5.3. Bilgiye Abonelik ve İnternet Erişimi Giderleri",null,null,"DOĞANHİSAR"]
[null,null,null,"6.6.5.4. Haberleşme Cihazları Ruhsat ve Kullanım Giderleri",null,null,"DOĞANKENT"]
[null,null,null,"6.6.5.5. Uydu Haberleşme Giderleri",null,null,"DOĞANŞAR"]
[null,null,null,"6.6.5.6. Hat Kira Giderleri",null,null,"DOĞANŞEHİR"]
[null,null,null,"6.6.5.90. Diğer Haberleşme Giderleri",null,null,"DOĞANYOL"]
[null,null,null,"6.6.6 Kira Giderleri",null,null,"DOĞANYURT"]
[null,null,null,"6.6.6.1. Dayanıklı Mal ve Malzeme Kiralaması Giderleri",null,null,"DOĞUBAYAZIT"]
[null,null,null,"6.6.6.2. Taşıt Kiralaması Giderleri",null,null,"DOMANİÇ"]
[null,null,null,"6.6.6.3. İş Makinası Kiralaması Giderleri",null,null,"DÖRTDİVAN"]
[null,null,null,"6.6.6.4. Canlı Hayvan Kiralaması Giderleri",null,null,"DÖRTYOL"]
[null,null,null,"6.6.6.5. Bina Kiralaması Giderleri",null,null,"DÖŞEMEALTI"]
[null,null,null,"6.6.6.6. Arazi Kiralaması Giderleri",null,null,"DUMLUPINAR"]
[null,null,null,"6.6.6.7. Yüzer Taşıt Kiralaması Giderleri",null,null,"DURAĞAN"]
[null,null,null,"6.6.6.8. Uçak Kiralaması Giderleri",null,null,"DURSUNBEY"]
[null,null,null,"6.6.6.9. Bilgisayar ve Bilgisayar Sistemleri Kiralaması Giderleri",null,null,"DÜZCE MERKEZ"]
[null,null,null,"6.6.6.90. Diğer Kiralamalar",null,null,"DÜZİÇİ"]
[null,null,null,"6.6.7 Müteahhitlik Giderleri",null,null,"DÜZKÖY"]
[null,null,null,"6.6.7.1. Müteahhitlik Giderleri",null,null,"ECEABAT"]
[null,null,null,"6.6.9 Diğer Giderler",null,null,"EDİRNE MERKEZ"]
[null,null,null,"6.6.9.1. Diğer Giderler",null,null,"EDREMİT"]
[null,null,null,"6.7. GAYRİMENKUL BÜYÜK ONARIM GİDERLERİ",null,null,"EDREMİT"]
[null,null,null,"6.7.1 Müşavir Firma ve Kişilere Ödemeler",null,null,"EFLÂNİ"]
[null,null,null,"6.7.1.1. Proje Giderleri",null,null,"EĞİL"]
[null,null,null,"6.7.1.2. Müşavirlik Giderleri",null,null,"EĞİRDİR"]
[null,null,null,"6.7.1.3. Kontrol Giderleri",null,null,"EKİNÖZÜ"]
[null,null,null,"6.7.1.90. Diğer Giderler",null,null,"ELAZIĞ MERKEZ"]
[null,null,null,"6.7.2 Malzeme Giderleri",null,null,"ELBEYLİ"]
[null,null,null,"6.7.2.1. İnşaat Malzemesi Giderleri",null,null,"ELBİSTAN"]
[null,null,null,"6.7.2.2. Elektrik Tesisatı Giderleri",null,null,"ELDİVAN"]
[null,null,null,"6.7.2.3. Sıhhi Tesisat Giderleri",null,null,"ELEŞKİRT"]
[null,null,null,"6.7.2.4. Özel Tesisat Giderleri",null,null,"ELMADAĞ"]
[null,null,null,"6.7.2.90. Diğer Giderler",null,null,"ELMALI"]
[null,null,null,"6.7.3 Taşıma Giderleri",null,null,"EMET"]
[null,null,null,"6.7.3.1. Taşımaya ilişkin Beslenme, Barındırma Giderleri",null,null,"EMİNÖNÜ"]
[null,null,null,"6.7.3.2. Yolcu Taşıma Giderleri",null,null,"EMİRDAĞ"]
[null,null,null,"6.7.3.3. Yük Taşıma Giderleri",null,null,"EMİRGAZİ"]
[null,null,null,"6.7.3.90. Diğer Taşıma Giderleri",null,null,"ENEZ"]
[null,null,null,"6.7.4 Enerji Giderleri",null,null,"ERBAA"]
[null,null,null,"6.7.4.1. Yakacak  Alımları",null,null,"ERCİŞ"]
[null,null,null,"6.7.4.2. Akaryakıt ve Yağ  Alımları",null,null,"ERDEK"]
[null,null,null,"6.7.4.3. Elektrik Alımları",null,null,"ERDEMLİ"]
[null,null,null,"6.7.4.90. Diğer Enerji Alımları",null,null,"EREĞLİ"]
[null,null,null,"6.7.5 Haberleşme Giderleri",null,null,"EREĞLİ"]
[null,null,null,"6.7.5.1. Posta ve Telgraf Giderleri",null,null,"ERENLER"]
[null,null,null,"6.7.5.2. Telefon Abonelik ve Kullanım Ücretleri",null,null,"ERFELEK"]
[null,null,null,"6.7.5.3. Bilgiye Abonelik ve İnternet Erişimi Giderleri",null,null,"ERGANİ"]
[null,null,null,"6.7.5.4. Haberleşme Cihazları Ruhsat ve Kullanım Giderleri",null,null,"ERMENEK"]
[null,null,null,"6.7.5.5. Uydu Haberleşme Giderleri",null,null,"ERUH"]
[null,null,null,"6.7.5.6. Hat Kira Giderleri",null,null,"ERZİN"]
[null,null,null,"6.7.5.90. Diğer Haberleşme Giderleri",null,null,"ERZİNCAN MERKEZ"]
[null,null,null,"6.7.6 Kira Giderleri",null,null,"ERZURUM MERKEZ"]
[null,null,null,"6.7.6.1. Dayanıklı Mal ve Malzeme Kiralaması Giderleri",null,null,"ESENLER"]
[null,null,null,"6.7.6.10. Tersane Kiralaması Giderleri",null,null,"ESENYURT"]
[null,null,null,"6.7.6.2. Taşıt Kiralaması Giderleri",null,null,"ESKİL"]
[null,null,null,"6.7.6.3. İş Makinası Kiralaması Giderleri",null,null,"ESKİPAZAR"]
[null,null,null,"6.7.6.4. Canlı Hayvan Kiralaması Giderleri",null,null,"ESKİŞEHİR MERKEZ"]
[null,null,null,"6.7.6.5. Bina Kiralaması Giderleri",null,null,"ESPİYE"]
[null,null,null,"6.7.6.6. Arazi Kiralaması Giderleri",null,null,"EŞME"]
[null,null,null,"6.7.6.7. Yüzer Taşıt Kiralaması Giderleri",null,null,"ETİMESGUT"]
[null,null,null,"6.7.6.8. Hava Taşıtı  Kiralaması Giderleri",null,null,"EVCİLER"]
[null,null,null,"6.7.6.9. Bilgisayar Sistemleri ve Yazılımları Kiralaması Giderleri",null,null,"EVREN"]
[null,null,null,"6.7.6.90. Diğer Kiralamalar",null,null,"EYNESİL"]
[null,null,null,"6.7.7 Müteahhitlik Giderleri",null,null,"EYÜP"]
[null,null,null,"6.7.7.1. Hizmet Binası",null,null,"EZİNE"]
[null,null,null,"6.7.7.2. Hizmet Tesisleri",null,null,"FATİH"]
[null,null,null,"6.7.7.3. Lojmanlar",null,null,"FATSA"]
[null,null,null,"6.7.7.4. Sosyal Tesisler",null,null,"FEKE"]
[null,null,null,"6.7.7.5. Gemiler",null,null,"FELAHİYE"]
[null,null,null,"6.7.7.6. Yüzer Tersaneler",null,null,"FERİZLİ"]
[null,null,null,"6.7.7.90. Diğerleri",null,null,"FETHİYE"]
[null,null,null,"6.7.9 Diğer Giderler",null,null,"FINDIKLI"]
[null,null,null,"6.7.9.1. Diğer Giderler",null,null,"FİNİKE"]
[null,null,null,"6.8. STOK ALIMLARI ",null,null,"FOÇA"]
[null,null,null,"6.8.1 Stratejik ve Acil Durum Malzemesi",null,null,"GAZİANTEP MERKEZ"]
[null,null,null,"6.8.1.1. Stratejik ve Acil Durum Malzemesi",null,null,"GAZİEMİR"]
[null,null,null,"6.8.2 Tarımsal Ürünler",null,null,"GAZİOSMANPAŞA"]
[null,null,null,"6.8.2.1. Buğday Alımları",null,null,"GAZİPAŞA"]
[null,null,null,"6.8.2.90. Diğer",null,null,"GEBZE"]
[null,null,null,"6.8.3 Sanayi Ürünleri Alımları",null,null,"GEDİZ"]
[null,null,null,"6.8.3.1. Tekstil Ürünleri Alımları",null,null,"GELENDOST"]
[null,null,null,"6.8.3.90. Diğer Ürünler Alımları",null,null,"GELİBOLU"]
[null,null,null,"6.8.4 Hammadde Alımları",null,null,"GEMEREK"]
[null,null,null,"6.8.4.1. Hammadde Alımları",null,null,"GEMLİK"]
[null,null,null,"6.8.9 Diğer Alımlar",null,null,"GENÇ"]
[null,null,null,"6.8.9.1. Diğer Alımlar",null,null,"GERCÜŞ"]
[null,null,null,null,null,null,"GEREDE"]
[null,null,null,null,null,null,"GERGER"]
[null,null,null,null,null,null,"GERMENCİK"]
[null,null,null,null,null,null,"GERZE"]
[null,null,null,null,null,null,"GEVAŞ"]
[null,null,null,null,null,null,"GEYVE"]
[null,null,null,null,null,null,"GİRESUN MERKEZ"]
[null,null,null,null,null,null,"GÖKÇEADA (İMROZ)"]
[null,null,null,null,null,null,"GÖKÇEBEY"]
[null,null,null,null,null,null,"GÖKSUN"]
[null,null,null,null,null,null,"GÖLBAŞI"]
[null,null,null,null,null,null,"GÖLBAŞI"]
[null,null,null,null,null,null,"GÖLCÜK"]
[null,null,null,null,null,null,"GÖLE"]
[null,null,null,null,null,null,"GÖLHİSAR"]
[null,null,null,null,null,null,"GÖLKÖY"]
[null,null,null,null,null,null,"GÖLMARMARA"]
[null,null,null,null,null,null,"GÖLOVA"]
[null,null,null,null,null,null,"GÖLPAZARI"]
[null,null,null,null,null,null,"GÖLYAKA"]
[null,null,null,null,null,null,"GÖMEÇ"]
[null,null,null,null,null,null,"GÖNEN"]
[null,null,null,null,null,null,"GÖNEN"]
[null,null,null,null,null,null,"GÖRDES"]
[null,null,null,null,null,null,"GÖRELE"]
[null,null,null,null,null,null,"GÖYNÜCEK"]
[null,null,null,null,null,null,"GÖYNÜK"]
[null,null,null,null,null,null,"GÜCE"]
[null,null,null,null,null,null,"GÜÇLÜKONAK"]
[null,null,null,null,null,null,"GÜDÜL"]
[null,null,null,null,null,null,"GÜLAĞAÇ"]
[null,null,null,null,null,null,"GÜLNAR"]
[null,null,null,null,null,null,"GÜLŞEHİR"]
[null,null,null,null,null,null,"GÜLYALI"]
[null,null,null,null,null,null,"GÜMÜŞHACIKÖY"]
[null,null,null,null,null,null,"GÜMÜŞHANE MERKEZ"]
[null,null,null,null,null,null,"GÜMÜŞOVA"]
[null,null,null,null,null,null,"GÜNDOĞMUŞ"]
[null,null,null,null,null,null,"GÜNEY"]
[null,null,null,null,null,null,"GÜNEYSINIR"]
[null,null,null,null,null,null,"GÜNEYSU"]
[null,null,null,null,null,null,"GÜNGÖREN"]
[null,null,null,null,null,null,"GÜNYÜZÜ"]
[null,null,null,null,null,null,"GÜRGENTEPE"]
[null,null,null,null,null,null,"GÜROYMAK"]
[null,null,null,null,null,null,"GÜRPINAR"]
[null,null,null,null,null,null,"GÜRSU"]
[null,null,null,null,null,null,"GÜRÜN"]
[null,null,null,null,null,null,"GÜZELBAHÇE"]
[null,null,null,null,null,null,"GÜZELYURT"]
[null,null,null,null,null,null,"HACIBEKTAŞ"]
[null,null,null,null,null,null,"HACILAR"]
[null,null,null,null,null,null,"HADIM"]
[null,null,null,null,null,null,"HAFİK"]
[null,null,null,null,null,null,"HAKKARİ MERKEZ"]
[null,null,null,null,null,null,"HALFETİ"]
[null,null,null,null,null,null,"HALKAPINAR"]
[null,null,null,null,null,null,"HAMAMÖZÜ"]
[null,null,null,null,null,null,"HAMUR"]
[null,null,null,null,null,null,"HAN"]
[null,null,null,null,null,null,"HANAK"]
[null,null,null,null,null,null,"HANİ"]
[null,null,null,null,null,null,"HANÖNÜ"]
[null,null,null,null,null,null,"HARMANCIK"]
[null,null,null,null,null,null,"HARRAN"]
[null,null,null,null,null,null,"HASANBEYLİ"]
[null,null,null,null,null,null,"HASANKEYF"]
[null,null,null,null,null,null,"HASKÖY"]
[null,null,null,null,null,null,"HASSA"]
[null,null,null,null,null,null,"HATAY MERKEZ"]
[null,null,null,null,null,null,"HAVRAN"]
[null,null,null,null,null,null,"HAVSA"]
[null,null,null,null,null,null,"HAVZA"]
[null,null,null,null,null,null,"HAYMANA"]
[null,null,null,null,null,null,"HAYRABOLU"]
[null,null,null,null,null,null,"HAYRAT"]
[null,null,null,null,null,null,"HAZRO"]
[null,null,null,null,null,null,"HEKİMHAN"]
[null,null,null,null,null,null,"HEMŞİN"]
[null,null,null,null,null,null,"HENDEK"]
[null,null,null,null,null,null,"HINIS"]
[null,null,null,null,null,null,"HİLVAN"]
[null,null,null,null,null,null,"HİSARCIK"]
[null,null,null,null,null,null,"HİZAN"]
[null,null,null,null,null,null,"HOCALAR"]
[null,null,null,null,null,null,"HONAZ"]
[null,null,null,null,null,null,"HOPA"]
[null,null,null,null,null,null,"HORASAN"]
[null,null,null,null,null,null,"HOZAT"]
[null,null,null,null,null,null,"HÜYÜK"]
[null,null,null,null,null,null,"IĞDIR MERKEZ"]
[null,null,null,null,null,null,"ILGAZ"]
[null,null,null,null,null,null,"ILGIN"]
[null,null,null,null,null,null,"ILICA"]
[null,null,null,null,null,null,"ISPARTA MERKEZ"]
[null,null,null,null,null,null,"İBRADI"]
[null,null,null,null,null,null,"İÇEL MERKEZ"]
[null,null,null,null,null,null,"İDİL"]
[null,null,null,null,null,null,"İHSANGAZİ"]
[null,null,null,null,null,null,"İHSANİYE"]
[null,null,null,null,null,null,"İKİZCE"]
[null,null,null,null,null,null,"İKİZDERE"]
[null,null,null,null,null,null,"İLİÇ"]
[null,null,null,null,null,null,"İLKADIM"]
[null,null,null,null,null,null,"İMAMOĞLU"]
[null,null,null,null,null,null,"İMRANLI"]
[null,null,null,null,null,null,"İNCESU"]
[null,null,null,null,null,null,"İNCİRLİOVA"]
[null,null,null,null,null,null,"İNEBOLU"]
[null,null,null,null,null,null,"İNEGÖL"]
[null,null,null,null,null,null,"İNHİSAR"]
[null,null,null,null,null,null,"İNÖNÜ"]
[null,null,null,null,null,null,"İPSALA"]
[null,null,null,null,null,null,"İSCEHİSAR"]
[null,null,null,null,null,null,"İSKENDERUN"]
[null,null,null,null,null,null,"İSKİLİP"]
[null,null,null,null,null,null,"İSLAHİYE"]
[null,null,null,null,null,null,"İSPİR"]
[null,null,null,null,null,null,"İSTANBUL MERKEZ"]
[null,null,null,null,null,null,"İVRİNDİ"]
[null,null,null,null,null,null,"İYİDERE"]
[null,null,null,null,null,null,"İZMİR MERKEZ"]
[null,null,null,null,null,null,"İZMİT"]
[null,null,null,null,null,null,"İZNİK"]
[null,null,null,null,null,null,"KABADÜZ"]
[null,null,null,null,null,null,"KABATAŞ"]
[null,null,null,null,null,null,"KADIKÖY"]
[null,null,null,null,null,null,"KADINHANI"]
[null,null,null,null,null,null,"KADIŞEHRİ"]
[null,null,null,null,null,null,"KADİRLİ"]
[null,null,null,null,null,null,"KAĞITHANE"]
[null,null,null,null,null,null,"KAĞIZMAN"]
[null,null,null,null,null,null,"KAHRAMANMARAŞ MERKEZ"]
[null,null,null,null,null,null,"KAHTA"]
[null,null,null,null,null,null,"KALE"]
[null,null,null,null,null,null,"KALE"]
[null,null,null,null,null,null,"KALE"]
[null,null,null,null,null,null,"KALECİK"]
[null,null,null,null,null,null,"KALKANDERE"]
[null,null,null,null,null,null,"KAMAN"]
[null,null,null,null,null,null,"KANDIRA"]
[null,null,null,null,null,null,"KANGAL"]
[null,null,null,null,null,null,"KARABAĞLAR"]
[null,null,null,null,null,null,"KARABURUN"]
[null,null,null,null,null,null,"KARABÜK MERKEZ"]
[null,null,null,null,null,null,"KARACABEY"]
[null,null,null,null,null,null,"KARACASU"]
[null,null,null,null,null,null,"KARAÇOBAN"]
[null,null,null,null,null,null,"KARAHALLI"]
[null,null,null,null,null,null,"KARAİSALI"]
[null,null,null,null,null,null,"KARAKEÇİLİ"]
[null,null,null,null,null,null,"KARAKOÇAN"]
[null,null,null,null,null,null,"KARAKOYUNLU"]
[null,null,null,null,null,null,"KARAMAN MERKEZ"]
[null,null,null,null,null,null,"KARAMANLI"]
[null,null,null,null,null,null,"KARAMÜRSEL"]
[null,null,null,null,null,null,"KARAPINAR"]
[null,null,null,null,null,null,"KARAPÜRÇEK"]
[null,null,null,null,null,null,"KARASU"]
[null,null,null,null,null,null,"KARATAŞ"]
[null,null,null,null,null,null,"KARATAY"]
[null,null,null,null,null,null,"KARAYAZI"]
[null,null,null,null,null,null,"KARGI"]
[null,null,null,null,null,null,"KARKAMIŞ"]
[null,null,null,null,null,null,"KARLIOVA"]
[null,null,null,null,null,null,"KARPUZLU"]
[null,null,null,null,null,null,"KARS MERKEZ"]
[null,null,null,null,null,null,"KARŞIYAKA"]
[null,null,null,null,null,null,"KARTAL"]
[null,null,null,null,null,null,"KARTEPE"]
[null,null,null,null,null,null,"KASTAMONU MERKEZ"]
[null,null,null,null,null,null,"KAŞ"]
[null,null,null,null,null,null,"KAVAK"]
[null,null,null,null,null,null,"KAVAKLIDERE"]
[null,null,null,null,null,null,"KAYAPINAR"]
[null,null,null,null,null,null,"KAYNARCA"]
[null,null,null,null,null,null,"KAYNAŞLI"]
[null,null,null,null,null,null,"KAYSERİ MERKEZ"]
[null,null,null,null,null,null,"KAZAN"]
[null,null,null,null,null,null,"KÂZIMKARABEKİR"]
[null,null,null,null,null,null,"KEBAN"]
[null,null,null,null,null,null,"KEÇİBORLU"]
[null,null,null,null,null,null,"KEÇİÖREN"]
[null,null,null,null,null,null,"KELES"]
[null,null,null,null,null,null,"KELKİT"]
[null,null,null,null,null,null,"KEMAH"]
[null,null,null,null,null,null,"KEMALİYE"]
[null,null,null,null,null,null,"KEMALPAŞA"]
[null,null,null,null,null,null,"KEMER"]
[null,null,null,null,null,null,"KEMER"]
[null,null,null,null,null,null,"KEPEZ"]
[null,null,null,null,null,null,"KEPSUT"]
[null,null,null,null,null,null,"KESKİN"]
[null,null,null,null,null,null,"KESTEL"]
[null,null,null,null,null,null,"KEŞAN"]
[null,null,null,null,null,null,"KEŞAP"]
[null,null,null,null,null,null,"KIBRISCIK"]
[null,null,null,null,null,null,"KINIK"]
[null,null,null,null,null,null,"KIRIKHAN"]
[null,null,null,null,null,null,"KIRIKKALE MERKEZ"]
[null,null,null,null,null,null,"KIRKAĞAÇ"]
[null,null,null,null,null,null,"KIRKLARELİ MERKEZ"]
[null,null,null,null,null,null,"KIRŞEHİR MERKEZ"]
[null,null,null,null,null,null,"KIZILCAHAMAM"]
[null,null,null,null,null,null,"KIZILIRMAK"]
[null,null,null,null,null,null,"KIZILÖREN"]
[null,null,null,null,null,null,"KIZILTEPE"]
[null,null,null,null,null,null,"KİĞI"]
[null,null,null,null,null,null,"KİLİS MERKEZ"]
[null,null,null,null,null,null,"KİRAZ"]
[null,null,null,null,null,null,"KOCAALİ"]
[null,null,null,null,null,null,"KOCAELİ MERKEZ (İZMİT)"]
[null,null,null,null,null,null,"KOCAKÖY"]
[null,null,null,null,null,null,"KOCASİNAN"]
[null,null,null,null,null,null,"KOÇARLI"]
[null,null,null,null,null,null,"KOFÇAZ"]
[null,null,null,null,null,null,"KONAK"]
[null,null,null,null,null,null,"KONYA MERKEZ"]
[null,null,null,null,null,null,"KONYAALTI"]
[null,null,null,null,null,null,"KORGAN"]
[null,null,null,null,null,null,"KORGUN"]
[null,null,null,null,null,null,"KORKUT"]
[null,null,null,null,null,null,"KORKUTELİ"]
[null,null,null,null,null,null,"KOVANCILAR"]
[null,null,null,null,null,null,"KOYULHİSAR"]
[null,null,null,null,null,null,"KOZAKLI"]
[null,null,null,null,null,null,"KOZAN"]
[null,null,null,null,null,null,"KOZLUK"]
[null,null,null,null,null,null,"KÖPRÜBAŞI"]
[null,null,null,null,null,null,"KÖPRÜBAŞI"]
[null,null,null,null,null,null,"KÖPRÜKÖY"]
[null,null,null,null,null,null,"KÖRFEZ"]
[null,null,null,null,null,null,"KÖSE"]
[null,null,null,null,null,null,"KÖŞK"]
[null,null,null,null,null,null,"KÖYCEĞİZ"]
[null,null,null,null,null,null,"KULA"]
[null,null,null,null,null,null,"KULP"]
[null,null,null,null,null,null,"KULU"]
[null,null,null,null,null,null,"KULUNCAK"]
[null,null,null,null,null,null,"KUMLU"]
[null,null,null,null,null,null,"KUMLUCA"]
[null,null,null,null,null,null,"KUMRU"]
[null,null,null,null,null,null,"KURŞUNLU"]
[null,null,null,null,null,null,"KURTALAN"]
[null,null,null,null,null,null,"KURUCAŞİLE"]
[null,null,null,null,null,null,"KUŞADASI"]
[null,null,null,null,null,null,"KUYUCAK"]
[null,null,null,null,null,null,"KÜÇÜKÇEKMECE"]
[null,null,null,null,null,null,"KÜRE"]
[null,null,null,null,null,null,"KÜRTÜN"]
[null,null,null,null,null,null,"KÜTAHYA MERKEZ"]
[null,null,null,null,null,null,"LAÇİN"]
[null,null,null,null,null,null,"LADİK"]
[null,null,null,null,null,null,"LALAPAŞA"]
[null,null,null,null,null,null,"LAPSEKİ"]
[null,null,null,null,null,null,"LİCE"]
[null,null,null,null,null,null,"LÜLEBURGAZ"]
[null,null,null,null,null,null,"MAÇKA"]
[null,null,null,null,null,null,"MADEN"]
[null,null,null,null,null,null,"MAHMUDİYE"]
[null,null,null,null,null,null,"MALATYA MERKEZ"]
[null,null,null,null,null,null,"MALAZGİRT"]
[null,null,null,null,null,null,"MALKARA"]
[null,null,null,null,null,null,"MALTEPE"]
[null,null,null,null,null,null,"MAMAK"]
[null,null,null,null,null,null,"MANAVGAT"]
[null,null,null,null,null,null,"MANİSA MERKEZ"]
[null,null,null,null,null,null,"MANYAS"]
[null,null,null,null,null,null,"MARDİN MERKEZ"]
[null,null,null,null,null,null,"MARMARA"]
[null,null,null,null,null,null,"MARMARAEREĞLİSİ"]
[null,null,null,null,null,null,"MARMARİS"]
[null,null,null,null,null,null,"MAZGİRT"]
[null,null,null,null,null,null,"MAZIDAĞI"]
[null,null,null,null,null,null,"MECİTÖZÜ"]
[null,null,null,null,null,null,"MELİKGAZİ"]
[null,null,null,null,null,null,"MENDERES"]
[null,null,null,null,null,null,"MENEMEN"]
[null,null,null,null,null,null,"MENGEN"]
[null,null,null,null,null,null,"MERAM"]
[null,null,null,null,null,null,"MERİÇ"]
[null,null,null,null,null,null,"MERZİFON"]
[null,null,null,null,null,null,"MESUDİYE"]
[null,null,null,null,null,null,"MEZİTLİ"]
[null,null,null,null,null,null,"MİDYAT"]
[null,null,null,null,null,null,"MİHALGAZİ"]
[null,null,null,null,null,null,"MİHALIÇÇIK"]
[null,null,null,null,null,null,"MİLAS"]
[null,null,null,null,null,null,"MUCUR"]
[null,null,null,null,null,null,"MUDANYA"]
[null,null,null,null,null,null,"MUDURNU"]
[null,null,null,null,null,null,"MUĞLA MERKEZ"]
[null,null,null,null,null,null,"MURADİYE"]
[null,null,null,null,null,null,"MURATLI"]
[null,null,null,null,null,null,"MURATPAŞA"]
[null,null,null,null,null,null,"MURGUL"]
[null,null,null,null,null,null,"MUSABEYLİ"]
[null,null,null,null,null,null,"MUSTAFA KEMAL PAŞA"]
[null,null,null,null,null,null,"MUŞ MERKEZ"]
[null,null,null,null,null,null,"MUT"]
[null,null,null,null,null,null,"MUTKİ"]
[null,null,null,null,null,null,"NALLIHAN"]
[null,null,null,null,null,null,"NARLIDERE"]
[null,null,null,null,null,null,"NARMAN"]
[null,null,null,null,null,null,"NAZIMİYE"]
[null,null,null,null,null,null,"NAZİLLİ"]
[null,null,null,null,null,null,"NEVŞEHİR MERKEZ"]
[null,null,null,null,null,null,"NİĞDE MERKEZ"]
[null,null,null,null,null,null,"NİKSAR"]
[null,null,null,null,null,null,"NİLÜFER"]
[null,null,null,null,null,null,"NİZİP"]
[null,null,null,null,null,null,"NURDAĞI"]
[null,null,null,null,null,null,"NURHAK"]
[null,null,null,null,null,null,"NUSAYBİN"]
[null,null,null,null,null,null,"ODUNPAZARI"]
[null,null,null,null,null,null,"OF"]
[null,null,null,null,null,null,"OĞUZELİ"]
[null,null,null,null,null,null,"OĞUZLAR"]
[null,null,null,null,null,null,"OLTU"]
[null,null,null,null,null,null,"OLUR"]
[null,null,null,null,null,null,"ONDOKUZMAYIS"]
[null,null,null,null,null,null,"ORDU MERKEZ"]
[null,null,null,null,null,null,"ORHANELİ"]
[null,null,null,null,null,null,"ORHANGAZİ"]
[null,null,null,null,null,null,"ORTA"]
[null,null,null,null,null,null,"ORTACA"]
[null,null,null,null,null,null,"ORTAKÖY"]
[null,null,null,null,null,null,"ORTAKÖY"]
[null,null,null,null,null,null,"OSMANCIK"]
[null,null,null,null,null,null,"OSMANELİ"]
[null,null,null,null,null,null,"OSMANGAZİ"]
[null,null,null,null,null,null,"OSMANİYE MERKEZ"]
[null,null,null,null,null,null,"OTLUKBELİ"]
[null,null,null,null,null,null,"OVACIK"]
[null,null,null,null,null,null,"OVACIK"]
[null,null,null,null,null,null,"ÖDEMİŞ"]
[null,null,null,null,null,null,"ÖMERLİ"]
[null,null,null,null,null,null,"ÖZALP"]
[null,null,null,null,null,null,"ÖZVATAN"]
[null,null,null,null,null,null,"PALANDÖKEN"]
[null,null,null,null,null,null,"PALU"]
[null,null,null,null,null,null,"PAMUKOVA"]
[null,null,null,null,null,null,"PASİNLER"]
[null,null,null,null,null,null,"PATNOS"]
[null,null,null,null,null,null,"PAZAR"]
[null,null,null,null,null,null,"PAZAR"]
[null,null,null,null,null,null,"PAZARCIK"]
[null,null,null,null,null,null,"PAZARLAR"]
[null,null,null,null,null,null,"PAZARYERİ"]
[null,null,null,null,null,null,"PAZARYOLU"]
[null,null,null,null,null,null,"PEHLİVANKÖY"]
[null,null,null,null,null,null,"PENDİK"]
[null,null,null,null,null,null,"PERŞEMBE"]
[null,null,null,null,null,null,"PERTEK"]
[null,null,null,null,null,null,"PERVARİ"]
[null,null,null,null,null,null,"PINARBAŞI"]
[null,null,null,null,null,null,"PINARBAŞI"]
[null,null,null,null,null,null,"PINARHİSAR"]
[null,null,null,null,null,null,"PİRAZİZ"]
[null,null,null,null,null,null,"POLATELİ"]
[null,null,null,null,null,null,"POLATLI"]
[null,null,null,null,null,null,"POSOF"]
[null,null,null,null,null,null,"POZANTI"]
[null,null,null,null,null,null,"PURSAKLAR"]
[null,null,null,null,null,null,"PÜLÜMÜR"]
[null,null,null,null,null,null,"PÜTÜRGE"]
[null,null,null,null,null,null,"REFAHİYE"]
[null,null,null,null,null,null,"REŞADİYE"]
[null,null,null,null,null,null,"REYHANLI"]
[null,null,null,null,null,null,"RİZE MERKEZ"]
[null,null,null,null,null,null,"SAFRANBOLU"]
[null,null,null,null,null,null,"SAİMBEYLİ"]
[null,null,null,null,null,null,"SAKARYA MERKEZ (ADAPAZARI)"]
[null,null,null,null,null,null,"SALIPAZARI"]
[null,null,null,null,null,null,"SALİHLİ"]
[null,null,null,null,null,null,"SAMANDAĞ"]
[null,null,null,null,null,null,"SAMSAT"]
[null,null,null,null,null,null,"SAMSUN MERKEZ"]
[null,null,null,null,null,null,"SANCAKTEPE"]
[null,null,null,null,null,null,"SANDIKLI"]
[null,null,null,null,null,null,"SAPANCA"]
[null,null,null,null,null,null,"SARAY"]
[null,null,null,null,null,null,"SARAY"]
[null,null,null,null,null,null,"SARAYDÜZÜ"]
[null,null,null,null,null,null,"SARAYKENT"]
[null,null,null,null,null,null,"SARAYKÖY"]
[null,null,null,null,null,null,"SARAYÖNÜ"]
[null,null,null,null,null,null,"SARICAKAYA"]
[null,null,null,null,null,null,"SARIÇAM"]
[null,null,null,null,null,null,"SARIGÖL"]
[null,null,null,null,null,null,"SARIKAMIŞ"]
[null,null,null,null,null,null,"SARIKAYA"]
[null,null,null,null,null,null,"SARIOĞLAN"]
[null,null,null,null,null,null,"SARIVELİLER"]
[null,null,null,null,null,null,"SARIYAHŞİ"]
[null,null,null,null,null,null,"SARIYER"]
[null,null,null,null,null,null,"SARIZ"]
[null,null,null,null,null,null,"SARUHANLI"]
[null,null,null,null,null,null,"SASON"]
[null,null,null,null,null,null,"SAVAŞTEPE"]
[null,null,null,null,null,null,"SAVUR"]
[null,null,null,null,null,null,"SEBEN"]
[null,null,null,null,null,null,"SEFERİHİSAR"]
[null,null,null,null,null,null,"SELÇUK"]
[null,null,null,null,null,null,"SELÇUKLU"]
[null,null,null,null,null,null,"SELENDİ"]
[null,null,null,null,null,null,"SELİM"]
[null,null,null,null,null,null,"SENİRKENT"]
[null,null,null,null,null,null,"SERDİVAN"]
[null,null,null,null,null,null,"SERİK"]
[null,null,null,null,null,null,"SERİNHİSAR"]
[null,null,null,null,null,null,"SEYDİLER"]
[null,null,null,null,null,null,"SEYDİŞEHİR"]
[null,null,null,null,null,null,"SEYHAN"]
[null,null,null,null,null,null,"SEYİTGAZİ"]
[null,null,null,null,null,null,"SINDIRGI"]
[null,null,null,null,null,null,"SİİRT MERKEZ"]
[null,null,null,null,null,null,"SİLİFKE"]
[null,null,null,null,null,null,"SİLİVRİ"]
[null,null,null,null,null,null,"SİLOPİ"]
[null,null,null,null,null,null,"SİLVAN"]
[null,null,null,null,null,null,"SİMAV"]
[null,null,null,null,null,null,"SİNCAN"]
[null,null,null,null,null,null,"SİNCANLI"]
[null,null,null,null,null,null,"SİNCİK"]
[null,null,null,null,null,null,"SİNOP MERKEZ"]
[null,null,null,null,null,null,"SİVAS MERKEZ"]
[null,null,null,null,null,null,"SİVASLI"]
[null,null,null,null,null,null,"SİVEREK"]
[null,null,null,null,null,null,"SİVRİCE"]
[null,null,null,null,null,null,"SİVRİHİSAR"]
[null,null,null,null,null,null,"SOLHAN"]
[null,null,null,null,null,null,"SOMA"]
[null,null,null,null,null,null,"SORGUN"]
[null,null,null,null,null,null,"SÖĞÜT"]
[null,null,null,null,null,null,"SÖĞÜTLÜ"]
[null,null,null,null,null,null,"SÖKE"]
[null,null,null,null,null,null,"SULAKYURT"]
[null,null,null,null,null,null,"SULTANBEYLİ"]
[null,null,null,null,null,null,"SULTANDAĞI"]
[null,null,null,null,null,null,"SULTANGAZİ"]
[null,null,null,null,null,null,"SULTANHİSAR"]
[null,null,null,null,null,null,"SULUOVA"]
[null,null,null,null,null,null,"SULUSARAY"]
[null,null,null,null,null,null,"SUMBAS"]
[null,null,null,null,null,null,"SUNGURLU"]
[null,null,null,null,null,null,"SUR"]
[null,null,null,null,null,null,"SURUÇ"]
[null,null,null,null,null,null,"SUSURLUK"]
[null,null,null,null,null,null,"SUSUZ"]
[null,null,null,null,null,null,"SUŞEHRİ"]
[null,null,null,null,null,null,"SÜLOĞLU"]
[null,null,null,null,null,null,"SÜRMENE"]
[null,null,null,null,null,null,"SÜTÇÜLER"]
[null,null,null,null,null,null,"ŞABANÖZÜ"]
[null,null,null,null,null,null,"ŞAHİNBEY"]
[null,null,null,null,null,null,"ŞALPAZARI"]
[null,null,null,null,null,null,"ŞANLIURFA MERKEZ"]
[null,null,null,null,null,null,"ŞAPHANE"]
[null,null,null,null,null,null,"ŞARKIŞLA"]
[null,null,null,null,null,null,"ŞARKİKARAAĞAÇ"]
[null,null,null,null,null,null,"ŞARKÖY"]
[null,null,null,null,null,null,"ŞAVŞAT"]
[null,null,null,null,null,null,"ŞEBİNKARAHİSAR"]
[null,null,null,null,null,null,"ŞEFAATLİ"]
[null,null,null,null,null,null,"ŞEHİTKAMİL"]
[null,null,null,null,null,null,"ŞEMDİNLİ"]
[null,null,null,null,null,null,"ŞENKAYA"]
[null,null,null,null,null,null,"ŞENPAZAR"]
[null,null,null,null,null,null,"ŞEREFLİKOÇHİSAR"]
[null,null,null,null,null,null,"ŞIRNAK MERKEZ"]
[null,null,null,null,null,null,"ŞİLE"]
[null,null,null,null,null,null,"ŞİRAN"]
[null,null,null,null,null,null,"ŞİRVAN"]
[null,null,null,null,null,null,"ŞİŞLİ"]
[null,null,null,null,null,null,"ŞUHUT"]
[null,null,null,null,null,null,"TALAS"]
[null,null,null,null,null,null,"TARAKLI"]
[null,null,null,null,null,null,"TARSUS"]
[null,null,null,null,null,null,"TAŞKENT"]
[null,null,null,null,null,null,"TAŞKÖPRÜ"]
[null,null,null,null,null,null,"TAŞLIÇAY"]
[null,null,null,null,null,null,"TAŞOVA"]
[null,null,null,null,null,null,"TATVAN"]
[null,null,null,null,null,null,"TAVAS"]
[null,null,null,null,null,null,"TAVŞANLI"]
[null,null,null,null,null,null,"TEFENNİ"]
[null,null,null,null,null,null,"TEKİRDAĞ MERKEZ"]
[null,null,null,null,null,null,"TEKKEKÖY"]
[null,null,null,null,null,null,"TEKMAN"]
[null,null,null,null,null,null,"TEPEBAŞI"]
[null,null,null,null,null,null,"TERCAN"]
[null,null,null,null,null,null,"TERMAL"]
[null,null,null,null,null,null,"TERME"]
[null,null,null,null,null,null,"TİRE"]
[null,null,null,null,null,null,"TİREBOLU"]
[null,null,null,null,null,null,"TOKAT MERKEZ"]
[null,null,null,null,null,null,"TOMARZA"]
[null,null,null,null,null,null,"TONYA"]
[null,null,null,null,null,null,"TOPRAKKALE"]
[null,null,null,null,null,null,"TORBALI"]
[null,null,null,null,null,null,"TOROSLAR"]
[null,null,null,null,null,null,"TORTUM"]
[null,null,null,null,null,null,"TORUL"]
[null,null,null,null,null,null,"TOSYA"]
[null,null,null,null,null,null,"TRABZON MERKEZ"]
[null,null,null,null,null,null,"TUFANBEYLİ"]
[null,null,null,null,null,null,"TUNCELİ MERKEZ"]
[null,null,null,null,null,null,"TURGUTLU"]
[null,null,null,null,null,null,"TURHAL"]
[null,null,null,null,null,null,"TUT"]
[null,null,null,null,null,null,"TUTAK"]
[null,null,null,null,null,null,"TUZLA"]
[null,null,null,null,null,null,"TUZLUCA"]
[null,null,null,null,null,null,"TUZLUKÇU"]
[null,null,null,null,null,null,"TÜRKELİ"]
[null,null,null,null,null,null,"TÜRKOĞLU"]
[null,null,null,null,null,null,"UĞURLUDAĞ"]
[null,null,null,null,null,null,"ULA"]
[null,null,null,null,null,null,"ULAŞ"]
[null,null,null,null,null,null,"ULUBEY"]
[null,null,null,null,null,null,"ULUBEY"]
[null,null,null,null,null,null,"ULUBORLU"]
[null,null,null,null,null,null,"ULUDERE"]
[null,null,null,null,null,null,"ULUKIŞLA"]
[null,null,null,null,null,null,"ULUS"]
[null,null,null,null,null,null,"URLA"]
[null,null,null,null,null,null,"UŞAK MERKEZ"]
[null,null,null,null,null,null,"UZUNDERE"]
[null,null,null,null,null,null,"UZUNKÖPRÜ"]
[null,null,null,null,null,null,"ÜMRANİYE"]
[null,null,null,null,null,null,"ÜNYE"]
[null,null,null,null,null,null,"ÜRGÜP"]
[null,null,null,null,null,null,"ÜSKÜDAR"]
[null,null,null,null,null,null,"ÜZÜMLÜ"]
[null,null,null,null,null,null,"VAKFIKEBİR"]
[null,null,null,null,null,null,"VAN MERKEZ"]
[null,null,null,null,null,null,"VARTO"]
[null,null,null,null,null,null,"VEZİRKÖPRÜ"]
[null,null,null,null,null,null,"VİRANŞEHİR"]
[null,null,null,null,null,null,"VİZE"]
[null,null,null,null,null,null,"YAĞLIDERE"]
[null,null,null,null,null,null,"YAHŞİHAN"]
[null,null,null,null,null,null,"YAHYALI"]
[null,null,null,null,null,null,"YAKAKENT"]
[null,null,null,null,null,null,"YAKUTİYE"]
[null,null,null,null,null,null,"YALIHÜYÜK"]
[null,null,null,null,null,null,"YALOVA MERKEZ"]
[null,null,null,null,null,null,"YALVAÇ"]
[null,null,null,null,null,null,"YAPRAKLI"]
[null,null,null,null,null,null,"YATAĞAN"]
[null,null,null,null,null,null,"YAVUZELİ"]
[null,null,null,null,null,null,"YAYLADAĞI"]
[null,null,null,null,null,null,"YAYLADERE"]
[null,null,null,null,null,null,"YAZIHAN"]
[null,null,null,null,null,null,"YEDİSU"]
[null,null,null,null,null,null,"YENİCE"]
[null,null,null,null,null,null,"YENİCE"]
[null,null,null,null,null,null,"YENİÇAĞA"]
[null,null,null,null,null,null,"YENİFAKILI"]
[null,null,null,null,null,null,"YENİMAHALLE"]
[null,null,null,null,null,null,"YENİPAZAR"]
[null,null,null,null,null,null,"YENİPAZAR"]
[null,null,null,null,null,null,"YENİŞARBADEMLİ"]
[null,null,null,null,null,null,"YENİŞEHİR"]
[null,null,null,null,null,null,"YENİŞEHİR/DİYARBAKIR"]
[null,null,null,null,null,null,"YENİŞEHİR/MERSİN"]
[null,null,null,null,null,null,"YERKÖY"]
[null,null,null,null,null,null,"YEŞİLHİSAR"]
[null,null,null,null,null,null,"YEŞİLLİ"]
[null,null,null,null,null,null,"YEŞİLOVA"]
[null,null,null,null,null,null,"YEŞİLYURT"]
[null,null,null,null,null,null,"YEŞİLYURT"]
[null,null,null,null,null,null,"YIĞILCA"]
[null,null,null,null,null,null,"YILDIRIM"]
[null,null,null,null,null,null,"YILDIZELİ"]
[null,null,null,null,null,null,"YOMRA"]
[null,null,null,null,null,null,"YOZGAT MERKEZ"]
[null,null,null,null,null,null,"YUMURTALIK"]
[null,null,null,null,null,null,"YUNAK"]
[null,null,null,null,null,null,"YUSUFELİ"]
[null,null,null,null,null,null,"YÜKSEKOVA"]
[null,null,null,null,null,null,"YÜREĞİR"]
[null,null,null,null,null,null,"ZARA"]
[null,null,null,null,null,null,"ZEYTİNBURNU"]
[null,null,null,null,null,null,"ZİLE"]
[null,null,null,null,null,null,"ZONGULDAK MERKEZ"]

{"sheet":"YAK.MAL KYN","index":10,"n_rows":69,"n_cols":11,"rows_kept":69,"cut":false,"hidden":false,"merged":[[7,10,14,12]]}
["Ürün Adı","Miktar","Ölçü Birimi","Ürün No","Model","Marka","Birim Tutar","Firma VKN/TCKN"]
[{"$f":"KAYNAK!J33","v":"Ürün Adı"},{"$f":"IF(ISBLANK(ANASAYFA!H5),\"\",ANASAYFA!H5)","v":1},{"$f":"IF(ISBLANK(ANASAYFA!I5),\"\",KAYNAK!O10)","v":"ADET_BIRIM"}]
[null,null,null,{"$f":"A2","v":"Ürün Adı"},{"$f":"A2","v":"Ürün Adı"},{"$f":"A2","v":"Ürün Adı"},{"$f":"IF(ISBLANK(ANASAYFA!J5),\"\",ANASAYFA!J5)","v":""},{"$f":"IF(ISBLANK(ANASAYFA!F5),\"\",ANASAYFA!J2)","v":0}]
[null,null,null,{"$f":"A2","v":"Ürün Adı"},{"$f":"A2","v":"Ürün Adı"},{"$f":"A2","v":"Ürün Adı"},{"$f":"IF(ISBLANK(ANASAYFA!L5),\"\",ANASAYFA!L5)","v":""},{"$f":"IF(ISBLANK(ANASAYFA!F5),\"\",ANASAYFA!L2)","v":0}]
[null,null,null,{"$f":"A2","v":"Ürün Adı"},{"$f":"A2","v":"Ürün Adı"},{"$f":"A2","v":"Ürün Adı"},{"$f":"IF(ISBLANK(ANASAYFA!N5),\"\",ANASAYFA!N5)","v":""},{"$f":"IF(ISBLANK(ANASAYFA!F5),\"\",ANASAYFA!N2)","v":0}]
[{"$f":"KAYNAK!J34","v":""},{"$f":"IF(ISBLANK(ANASAYFA!H6),\"\",ANASAYFA!H6)","v":""},{"$f":"IF(ISBLANK(ANASAYFA!I6),\"\",KAYNAK!O11)","v":""}]
[null,null,null,{"$f":"A6","v":""},{"$f":"A6","v":""},{"$f":"A6","v":""},{"$f":"IF(ISBLANK(ANASAYFA!J6),\"\",ANASAYFA!J6)","v":""},{"$f":"IF(ISBLANK(ANASAYFA!F6),\"\",ANASAYFA!J2)","v":""}]
[null,null,null,{"$f":"A6","v":""},{"$f":"A6","v":""},{"$f":"A6","v":""},{"$f":"IF(ISBLANK(ANASAYFA!L6),\"\",ANASAYFA!L6)","v":""},{"$f":"IF(ISBLANK(ANASAYFA!F6),\"\",ANASAYFA!L2)","v":""},null,null,"BU SAYFAYI KULLANMAYINIZ. DEĞİŞİKLİK YAPMAYINIZ."]
[null,null,null,{"$f":"A6","v":""},{"$f":"A6","v":""},{"$f":"A6","v":""},{"$f":"IF(ISBLANK(ANASAYFA!N6),\"\",ANASAYFA!N6)","v":""},{"$f":"IF(ISBLANK(ANASAYFA!F6),\"\",ANASAYFA!N2)","v":""}]
[{"$f":"KAYNAK!J35","v":""},{"$f":"IF(ISBLANK(ANASAYFA!H7),\"\",ANASAYFA!H7)","v":""},{"$f":"IF(ISBLANK(ANASAYFA!I7),\"\",KAYNAK!O12)","v":""}]
[null,null,null,{"$f":"A10","v":""},{"$f":"A10","v":""},{"$f":"A10","v":""},{"$f":"IF(ISBLANK(ANASAYFA!J7),\"\",ANASAYFA!J7)","v":""},{"$f":"IF(ISBLANK(ANASAYFA!F7),\"\",ANASAYFA!J2)","v":""}]
[null,null,null,{"$f":"A10","v":""},{"$f":"A10","v":""},{"$f":"A10","v":""},{"$f":"IF(ISBLANK(ANASAYFA!L7),\"\",ANASAYFA!L7)","v":""},{"$f":"IF(ISBLANK(ANASAYFA!F7),\"\",ANASAYFA!L2)","v":""}]
[null,null,null,{"$f":"A10","v":""},{"$f":"A10","v":""},{"$f":"A10","v":""},{"$f":"IF(ISBLANK(ANASAYFA!N7),\"\",ANASAYFA!N7)","v":""},{"$f":"IF(ISBLANK(ANASAYFA!F7),\"\",ANASAYFA!N2)","v":""}]
[{"$f":"KAYNAK!J36","v":""},{"$f":"IF(ISBLANK(ANASAYFA!H8),\"\",ANASAYFA!H8)","v":""},{"$f":"IF(ISBLANK(ANASAYFA!I8),\"\",KAYNAK!O13)","v":""}]
[null,null,null,{"$f":"A14","v":""},{"$f":"A14","v":""},{"$f":"A14","v":""},{"$f":"IF(ISBLANK(ANASAYFA!J8),\"\",ANASAYFA!J8)","v":""},{"$f":"KAYNAK!N36","v":""}]
[null,null,null,{"$f":"A14","v":""},{"$f":"A14","v":""},{"$f":"A14","v":""},{"$f":"IF(ISBLANK(ANASAYFA!L8),\"\",ANASAYFA!L8)","v":""},{"$f":"KAYNAK!O36","v":""}]
[null,null,null,{"$f":"A14","v":""},{"$f":"A14","v":""},{"$f":"A14","v":""},{"$f":"IF(ISBLANK(ANASAYFA!N8),\"\",ANASAYFA!N8)","v":""},{"$f":"KAYNAK!P36","v":""}]
[{"$f":"KAYNAK!J37","v":""},{"$f":"IF(ISBLANK(ANASAYFA!H9),\"\",ANASAYFA!H9)","v":""},{"$f":"IF(ISBLANK(ANASAYFA!I9),\"\",KAYNAK!O14)","v":""}]
[null,null,null,{"$f":"A18","v":""},{"$f":"A18","v":""},{"$f":"A18","v":""},{"$f":"IF(ISBLANK(ANASAYFA!J9),\"\",ANASAYFA!J9)","v":""},{"$f":"KAYNAK!N37","v":""}]
[null,null,null,{"$f":"A18","v":""},{"$f":"A18","v":""},{"$f":"A18","v":""},{"$f":"IF(ISBLANK(ANASAYFA!L9),\"\",ANASAYFA!L9)","v":""},{"$f":"KAYNAK!O37","v":""}]
[null,null,null,{"$f":"A18","v":""},{"$f":"A18","v":""},{"$f":"A18","v":""},{"$f":"IF(ISBLANK(ANASAYFA!N9),\"\",ANASAYFA!N9)","v":""},{"$f":"KAYNAK!P37","v":""}]
[{"$f":"KAYNAK!J38","v":""},{"$f":"IF(ISBLANK(ANASAYFA!H10),\"\",ANASAYFA!H10)","v":""},{"$f":"IF(ISBLANK(ANASAYFA!I10),\"\",KAYNAK!O15)","v":""}]
[null,null,null,{"$f":"A22","v":""},{"$f":"A22","v":""},{"$f":"A22","v":""},{"$f":"KAYNAK!K38","v":""},{"$f":"KAYNAK!N38","v":""}]
[null,null,null,{"$f":"A22","v":""},{"$f":"A22","v":""},{"$f":"A22","v":""},{"$f":"KAYNAK!L38","v":""},{"$f":"KAYNAK!O38","v":""}]
[null,null,null,{"$f":"A22","v":""},{"$f":"A22","v":""},{"$f":"A22","v":""},{"$f":"KAYNAK!M38","v":""},{"$f":"KAYNAK!P38","v":""}]
[{"$f":"KAYNAK!J39","v":""},{"$f":"IF(ISBLANK(ANASAYFA!H11),\"\",ANASAYFA!H11)","v":""},{"$f":"IF(ISBLANK(ANASAYFA!I11),\"\",KAYNAK!O16)","v":""}]
[null,null,null,{"$f":"A26","v":""},{"$f":"A26","v":""},{"$f":"A26","v":""},{"$f":"KAYNAK!K39","v":""},{"$f":"KAYNAK!N39","v":""}]
[null,null,null,{"$f":"A26","v":""},{"$f":"A26","v":""},{"$f":"A26","v":""},{"$f":"KAYNAK!L39","v":""},{"$f":"KAYNAK!O39","v":""}]
[null,null,null,{"$f":"A26","v":""},{"$f":"A26","v":""},{"$f":"A26","v":""},{"$f":"KAYNAK!M39","v":""},{"$f":"KAYNAK!P39","v":""}]
[{"$f":"KAYNAK!J40","v":""},{"$f":"IF(ISBLANK(ANASAYFA!H12),\"\",ANASAYFA!H12)","v":""},{"$f":"IF(ISBLANK(ANASAYFA!I12),\"\",KAYNAK!O17)","v":""}]
[null,null,null,{"$f":"A30","v":""},{"$f":"A30","v":""},{"$f":"A30","v":""},{"$f":"KAYNAK!K40","v":""},{"$f":"KAYNAK!N40","v":""}]
[null,null,null,{"$f":"A30","v":""},{"$f":"A30","v":""},{"$f":"A30","v":""},{"$f":"KAYNAK!L40","v":""},{"$f":"KAYNAK!O40","v":""}]
[null,null,null,{"$f":"A30","v":""},{"$f":"A30","v":""},{"$f":"A30","v":""},{"$f":"KAYNAK!M40","v":""},{"$f":"KAYNAK!P40","v":""}]
[{"$f":"KAYNAK!J41","v":""},{"$f":"IF(ISBLANK(ANASAYFA!H13),\"\",ANASAYFA!H13)","v":""},{"$f":"IF(ISBLANK(ANASAYFA!I13),\"\",KAYNAK!O18)","v":""}]
[null,null,null,{"$f":"A34","v":""},{"$f":"A34","v":""},{"$f":"A34","v":""},{"$f":"KAYNAK!K41","v":""},{"$f":"KAYNAK!N41","v":""}]
[null,null,null,{"$f":"A34","v":""},{"$f":"A34","v":""},{"$f":"A34","v":""},{"$f":"KAYNAK!L41","v":""},{"$f":"KAYNAK!O41","v":""}]
[null,null,null,{"$f":"A34","v":""},{"$f":"A34","v":""},{"$f":"A34","v":""},{"$f":"KAYNAK!M41","v":""},{"$f":"KAYNAK!P41","v":""}]
[{"$f":"KAYNAK!J42","v":""},{"$f":"IF(ISBLANK(ANASAYFA!H14),\"\",ANASAYFA!H14)","v":""},{"$f":"IF(ISBLANK(ANASAYFA!I14),\"\",KAYNAK!O19)","v":""}]
[null,null,null,{"$f":"A38","v":""},{"$f":"A38","v":""},{"$f":"A38","v":""},{"$f":"KAYNAK!K42","v":""},{"$f":"KAYNAK!N42","v":""}]
[null,null,null,{"$f":"A38","v":""},{"$f":"A38","v":""},{"$f":"A38","v":""},{"$f":"KAYNAK!L42","v":""},{"$f":"KAYNAK!O42","v":""}]
[null,null,null,{"$f":"A38","v":""},{"$f":"A38","v":""},{"$f":"A38","v":""},{"$f":"KAYNAK!M42","v":""},{"$f":"KAYNAK!P42","v":""}]
[{"$f":"KAYNAK!J43","v":""},{"$f":"IF(ISBLANK(ANASAYFA!H15),\"\",ANASAYFA!H15)","v":""},{"$f":"IF(ISBLANK(ANASAYFA!I15),\"\",KAYNAK!O20)","v":""}]
[null,null,null,{"$f":"A42","v":""},{"$f":"A42","v":""},{"$f":"A42","v":""},{"$f":"KAYNAK!K43","v":""},{"$f":"KAYNAK!N43","v":""}]
[null,null,null,{"$f":"A42","v":""},{"$f":"A42","v":""},{"$f":"A42","v":""},{"$f":"KAYNAK!L43","v":""},{"$f":"KAYNAK!O43","v":""}]
[null,null,null,{"$f":"A42","v":""},{"$f":"A42","v":""},{"$f":"A42","v":""},{"$f":"KAYNAK!M43","v":""},{"$f":"KAYNAK!P43","v":""}]
[{"$f":"KAYNAK!J44","v":""},{"$f":"IF(ISBLANK(ANASAYFA!H16),\"\",ANASAYFA!H16)","v":""},{"$f":"IF(ISBLANK(ANASAYFA!I16),\"\",KAYNAK!O21)","v":""}]
[null,null,null,{"$f":"A46","v":""},{"$f":"A46","v":""},{"$f":"A46","v":""},{"$f":"KAYNAK!K44","v":""},{"$f":"KAYNAK!N44","v":""}]
[null,null,null,{"$f":"A46","v":""},{"$f":"A46","v":""},{"$f":"A46","v":""},{"$f":"KAYNAK!L44","v":""},{"$f":"KAYNAK!O44","v":""}]
[null,null,null,{"$f":"A46","v":""},{"$f":"A46","v":""},{"$f":"A46","v":""},{"$f":"KAYNAK!M44","v":""},{"$f":"KAYNAK!P44","v":""}]
[{"$f":"KAYNAK!J45","v":""},{"$f":"IF(ISBLANK(ANASAYFA!H17),\"\",ANASAYFA!H17)","v":""},{"$f":"IF(ISBLANK(ANASAYFA!I17),\"\",KAYNAK!O22)","v":""}]
[null,null,null,{"$f":"A50","v":""},{"$f":"A50","v":""},{"$f":"A50","v":""},{"$f":"KAYNAK!K45","v":""},{"$f":"KAYNAK!N45","v":""}]
[null,null,null,{"$f":"A50","v":""},{"$f":"A50","v":""},{"$f":"A50","v":""},{"$f":"KAYNAK!L45","v":""},{"$f":"KAYNAK!O45","v":""}]
[null,null,null,{"$f":"A50","v":""},{"$f":"A50","v":""},{"$f":"A50","v":""},{"$f":"KAYNAK!M45","v":""},{"$f":"KAYNAK!P45","v":""}]
[{"$f":"KAYNAK!J46","v":""},{"$f":"IF(ISBLANK(ANASAYFA!H18),\"\",ANASAYFA!H18)","v":""},{"$f":"IF(ISBLANK(ANASAYFA!I18),\"\",KAYNAK!O23)","v":""}]
[null,null,null,{"$f":"A54","v":""},{"$f":"A54","v":""},{"$f":"A54","v":""},{"$f":"KAYNAK!K46","v":""},{"$f":"KAYNAK!N46","v":""}]
[null,null,null,{"$f":"A54","v":""},{"$f":"A54","v":""},{"$f":"A54","v":""},{"$f":"KAYNAK!L46","v":""},{"$f":"KAYNAK!O46","v":""}]
[null,null,null,{"$f":"A54","v":""},{"$f":"A54","v":""},{"$f":"A54","v":""},{"$f":"KAYNAK!M46","v":""},{"$f":"KAYNAK!P46","v":""}]
[{"$f":"KAYNAK!J47","v":""},{"$f":"IF(ISBLANK(ANASAYFA!H19),\"\",ANASAYFA!H19)","v":""},{"$f":"IF(ISBLANK(ANASAYFA!I19),\"\",KAYNAK!O24)","v":""}]
[null,null,null,{"$f":"A58","v":""},{"$f":"A58","v":""},{"$f":"A58","v":""},{"$f":"KAYNAK!K47","v":""},{"$f":"KAYNAK!N47","v":""}]
[null,null,null,{"$f":"A58","v":""},{"$f":"A58","v":""},{"$f":"A58","v":""},{"$f":"KAYNAK!L47","v":""},{"$f":"KAYNAK!O47","v":""}]
[null,null,null,{"$f":"A58","v":""},{"$f":"A58","v":""},{"$f":"A58","v":""},{"$f":"KAYNAK!M47","v":""},{"$f":"KAYNAK!P47","v":""}]
[{"$f":"KAYNAK!J48","v":""},{"$f":"IF(ISBLANK(ANASAYFA!H20),\"\",ANASAYFA!H20)","v":""},{"$f":"IF(ISBLANK(ANASAYFA!I20),\"\",KAYNAK!O25)","v":""}]
[null,null,null,{"$f":"A62","v":""},{"$f":"A62","v":""},{"$f":"A62","v":""},{"$f":"KAYNAK!K48","v":""},{"$f":"KAYNAK!N48","v":""}]
[null,null,null,{"$f":"A62","v":""},{"$f":"A62","v":""},{"$f":"A62","v":""},{"$f":"KAYNAK!L48","v":""},{"$f":"KAYNAK!O48","v":""}]
[null,null,null,{"$f":"A62","v":""},{"$f":"A62","v":""},{"$f":"A62","v":""},{"$f":"KAYNAK!M48","v":""},{"$f":"KAYNAK!P48","v":""}]
[{"$f":"KAYNAK!J49","v":""},{"$f":"IF(ISBLANK(ANASAYFA!H21),\"\",ANASAYFA!H21)","v":""},{"$f":"IF(ISBLANK(ANASAYFA!I21),\"\",ANASAYFA!I21)","v":""}]
[null,null,null,{"$f":"A66","v":""},{"$f":"A66","v":""},{"$f":"A66","v":""},{"$f":"KAYNAK!K49","v":""},{"$f":"KAYNAK!N49","v":""}]
[null,null,null,{"$f":"A66","v":""},{"$f":"A66","v":""},{"$f":"A66","v":""},{"$f":"KAYNAK!L49","v":""},{"$f":"KAYNAK!O49","v":""}]
[null,null,null,{"$f":"A66","v":""},{"$f":"A66","v":""},{"$f":"A66","v":""},{"$f":"KAYNAK!M49","v":""},{"$f":"KAYNAK!P49","v":""}]